Body_Code,Body_Name,Service,GL Code,GL Code Desc,Posting Date,Doc Number,Doc Net Amount,Supplier Name
http://statistics.data.gov.uk/id/local-authority/38,Oxfordshire County Council,ACSN MH Contribution,4940,Other Services,20/10/2021,2200918632,"-195,000.00",OXFORD HEALTH NHS FOUNDATION TRUST
http://statistics.data.gov.uk/id/local-authority/38,Oxfordshire County Council,Continuing Care - Care Homes - 65+,5687,,12/10/2021,3111050282,"-181,956.60",Coxwell Hall & Mews Nursing Home
http://statistics.data.gov.uk/id/local-authority/38,Oxfordshire County Council,CAP CHRGES-PRIM SCHS,8102,Payments to main contractor,21/10/2021,2200919282,"-167,717.17",Morgan Sindall
http://statistics.data.gov.uk/id/local-authority/38,Oxfordshire County Council,Support at Home U65 Learning Disability,5688,,12/10/2021,3111046885,"-102,713.94",SEEABILITY
http://statistics.data.gov.uk/id/local-authority/38,Oxfordshire County Council,Support at Home U65 Learning Disability,5688,,07/10/2021,3111045280,"-101,493.54",KEY2 FUTURES LTD
http://statistics.data.gov.uk/id/local-authority/38,Oxfordshire County Council,Support at Home U65 Learning Disability,5688,,12/10/2021,3111046831,"-59,874.18",SEEABILITY
http://statistics.data.gov.uk/id/local-authority/38,Oxfordshire County Council,Support at Home U65 Learning Disability,5688,,12/10/2021,3111048018,"-41,111.16",The Brandon Trust
http://statistics.data.gov.uk/id/local-authority/38,Oxfordshire County Council,Procurement Rebates & Income,7203,Other Miscellaneous Income,04/10/2021,3111043810,"-30,374.11",Cherry Care Services
http://statistics.data.gov.uk/id/local-authority/38,Oxfordshire County Council,COMM DRAWDOWN FUNDNG,8103,Payments to sub contractor,13/10/2021,2200916457,"-26,534.40",Oxford Direct Services Ltd
http://statistics.data.gov.uk/id/local-authority/38,Oxfordshire County Council,Support at Home U65 Learning Disability,5899,Social Care - Direct Payments,12/10/2021,3111048053,"-18,364.71",Purple Conversation Com In Co (DP)
http://statistics.data.gov.uk/id/local-authority/38,Oxfordshire County Council,Support at Home 65+ Mental Health,5686,,12/10/2021,3111047563,"-17,485.73",Kirlena House
http://statistics.data.gov.uk/id/local-authority/38,Oxfordshire County Council,CHC Fast Track - Care Homes - Over 65,5687,,12/10/2021,3111051053,"-16,914.28",HAMBERLEY CARE 2 LIMITED
http://statistics.data.gov.uk/id/local-authority/38,Oxfordshire County Council,Support at Home U65 MH OBC Contract,5688,,12/10/2021,3111046097,"-14,740.56",Children & Adolescent Placement Pro
http://statistics.data.gov.uk/id/local-authority/38,Oxfordshire County Council,Support at Home 65+ Physical Support,5686,,12/10/2021,3111046698,"-14,552.00",Orders of St John
http://statistics.data.gov.uk/id/local-authority/38,Oxfordshire County Council,Care Homes - Over 65 Memory & Cognition,5686,,12/10/2021,3111047895,"-14,017.72",Bridge House
http://statistics.data.gov.uk/id/local-authority/38,Oxfordshire County Council,Care Homes - Over 65 Physical Sypport,5685,B*Cycle tracks,12/10/2021,3111047192,"-12,087.93",Freeland House
http://statistics.data.gov.uk/id/local-authority/38,Oxfordshire County Council,Support at Home U65 HFA,5688,,12/10/2021,3111046121,"-11,777.92",Autism at Kingwood Limited
http://statistics.data.gov.uk/id/local-authority/38,Oxfordshire County Council,Support at Home 65+ Physical Support,5685,B*Cycle tracks,12/10/2021,3111047667,"-11,544.70",Beech Court Nursing Home
http://statistics.data.gov.uk/id/local-authority/38,Oxfordshire County Council,Support at Home U65 Mental Health,5690,,07/10/2021,3111045286,"-11,480.00",KEY2 FUTURES LTD
http://statistics.data.gov.uk/id/local-authority/38,Oxfordshire County Council,Support at Home U65 Memory & Cognition,5685,B*Cycle tracks,12/10/2021,3111050213,"-11,391.52",Coxwell Hall & Mews Nursing Home
http://statistics.data.gov.uk/id/local-authority/38,Oxfordshire County Council,Procurement Rebates & Income,7203,Other Miscellaneous Income,01/10/2021,3111043509,"-11,003.51",The Fortune Centre of Riding Therap
http://statistics.data.gov.uk/id/local-authority/38,Oxfordshire County Council,Support at Home 65+ Memory & Cognition,5686,,12/10/2021,3111046511,"-10,557.42",Orders of St John
http://statistics.data.gov.uk/id/local-authority/38,Oxfordshire County Council,Continuing Care - Care Homes - 65+,5687,,12/10/2021,3111047148,"-10,418.57",Freeland House
http://statistics.data.gov.uk/id/local-authority/38,Oxfordshire County Council,Support at Home 65+ Physical Support,5685,B*Cycle tracks,12/10/2021,3111047187,"-10,418.20",Orders of St John
http://statistics.data.gov.uk/id/local-authority/38,Oxfordshire County Council,Health Acquired Brain Injury C Homes U65,5687,,12/10/2021,3111047483,"-9,918.30",Elysium Neurological Services (Badb
http://statistics.data.gov.uk/id/local-authority/38,Oxfordshire County Council,Care Homes - Over 65 Memory & Cognition,5686,,12/10/2021,3111047030,"-9,840.00",Orders of St John
http://statistics.data.gov.uk/id/local-authority/38,Oxfordshire County Council,Continuing Care - Care Homes - 65+,5687,,12/10/2021,3111049294,"-9,753.83",Chacombe Park Care Home
http://statistics.data.gov.uk/id/local-authority/38,Oxfordshire County Council,CHC Fast Track - Care Homes - Over 65,5687,,12/10/2021,3111051924,"-9,165.00",St Lukes Nursing Home (Oxford)
http://statistics.data.gov.uk/id/local-authority/38,Oxfordshire County Council,Support at Home 65+ Physical Support,5686,,12/10/2021,3111046685,"-9,095.00",Orders of St John
http://statistics.data.gov.uk/id/local-authority/38,Oxfordshire County Council,,1448,Blackfield Inc & Exp A/c,04/10/2021,3111043796,"-8,722.32",OCC One Time Vendor
http://statistics.data.gov.uk/id/local-authority/38,Oxfordshire County Council,Care Homes - Over 65 Physical Sypport,5686,,12/10/2021,3111051546,"-8,623.86",Middletown Grange Care Home
http://statistics.data.gov.uk/id/local-authority/38,Oxfordshire County Council,Interim Funding  - Care Homes - Over 65,5687,,12/10/2021,3111048289,"-8,557.71",SANCTUARY CARE LTD
http://statistics.data.gov.uk/id/local-authority/38,Oxfordshire County Council,Support at Home 65+ Physical Support,5687,,12/10/2021,3111046437,"-7,770.71",Orders of St John
http://statistics.data.gov.uk/id/local-authority/38,Oxfordshire County Council,PLACEMENTS- RELEVANT,5785,Client Lodgings and Accommodation,27/10/2021,3111058606,"-7,768.87",Response Organisation
http://statistics.data.gov.uk/id/local-authority/38,Oxfordshire County Council,PLACEMENTS-FRELEVANT,5688,,07/10/2021,3111045279,"-7,424.62",KEY2 FUTURES LTD
http://statistics.data.gov.uk/id/local-authority/38,Oxfordshire County Council,Care Homes - Over 65 Physical Sypport,5686,,12/10/2021,3111046648,"-7,276.00",Orders of St John
http://statistics.data.gov.uk/id/local-authority/38,Oxfordshire County Council,Care Homes - Over 65 Memory & Cognition,5686,,12/10/2021,3111047378,"-7,250.00",Heathfield House Nursing Home
http://statistics.data.gov.uk/id/local-authority/38,Oxfordshire County Council,Continuing Care - Care Homes - 65+,5687,,12/10/2021,3111051033,"-6,879.08",HAMBERLEY CARE 2 LIMITED
http://statistics.data.gov.uk/id/local-authority/38,Oxfordshire County Council,Funded Nursing Care  - Under 65,5692,,12/10/2021,3111052253,"-6,796.15",Valorum Care Limited
http://statistics.data.gov.uk/id/local-authority/38,Oxfordshire County Council,POST18 UASC DCSF FND,5785,Client Lodgings and Accommodation,27/10/2021,3111058602,"-6,448.91",Response Organisation
http://statistics.data.gov.uk/id/local-authority/38,Oxfordshire County Council,Care Homes - Over 65 Physical Sypport,5686,,12/10/2021,3111046497,"-6,420.00",Orders of St John
http://statistics.data.gov.uk/id/local-authority/38,Oxfordshire County Council,Care Homes - Under 65 Physical Sypport,5687,,12/10/2021,3111052345,"-6,160.00",MARIA MALLABAND CARE GROUP
http://statistics.data.gov.uk/id/local-authority/38,Oxfordshire County Council,CHC Fast Track - Care Homes - Over 65,5687,,12/10/2021,3111052001,"-5,664.51",The Close Nursing Home
http://statistics.data.gov.uk/id/local-authority/38,Oxfordshire County Council,Healthy Place Shaping,4531,Materials,25/10/2021,2200920070,"-5,634.17",Landmark
http://statistics.data.gov.uk/id/local-authority/38,Oxfordshire County Council,Care Homes - Over 65 Physical Sypport,5686,,12/10/2021,3111047719,"-5,610.00",Mon Choisy
http://statistics.data.gov.uk/id/local-authority/38,Oxfordshire County Council,Support at Home 65+ Physical Support,5687,,12/10/2021,3111047963,"-5,510.14",Orders of St John
http://statistics.data.gov.uk/id/local-authority/38,Oxfordshire County Council,VOIDS/VACANCY COSTS,5688,,12/10/2021,3111046372,"-5,396.38",Dimensions (UK) Ltd
http://statistics.data.gov.uk/id/local-authority/38,Oxfordshire County Council,Care Homes - Over 65 Physical Sypport,5685,B*Cycle tracks,12/10/2021,3111050801,"-5,367.20",GCH (St Katherines) Ltd
http://statistics.data.gov.uk/id/local-authority/38,Oxfordshire County Council,Support at Home U65 Physical Support,5689,,12/10/2021,3111050546,"-5,327.87",Home Helpers Care Ltd
http://statistics.data.gov.uk/id/local-authority/38,Oxfordshire County Council,Support at Home 65+ Mental Health,5686,,12/10/2021,3111052156,"-5,271.43",The Langston
http://statistics.data.gov.uk/id/local-authority/38,Oxfordshire County Council,Support at Home 65+ Physical Support,5685,B*Cycle tracks,12/10/2021,3111046306,"-5,266.34",Orders of St John
http://statistics.data.gov.uk/id/local-authority/38,Oxfordshire County Council,Care Homes - Over 65 Physical Sypport,5687,,12/10/2021,3111048213,"-5,007.95",SANCTUARY CARE LTD
http://statistics.data.gov.uk/id/local-authority/38,Oxfordshire County Council,CHC Fast Track - Care Homes - Under 65,5687,,12/10/2021,3111052335,"-4,971.43",MARIA MALLABAND CARE GROUP
http://statistics.data.gov.uk/id/local-authority/38,Oxfordshire County Council,CHC Fast Track - Care Homes - Over 65,5687,,12/10/2021,3111051628,"-4,920.39",Oxford Beaumont
http://statistics.data.gov.uk/id/local-authority/38,Oxfordshire County Council,COMMUNITY TRANSPORT,5781,Payments to Transport Operators,11/10/2021,2200915074,"-4,833.00",Didcot Volunteer Drivers
http://statistics.data.gov.uk/id/local-authority/38,Oxfordshire County Council,ICT Operations & Maintenance,8103,Payments to sub contractor,21/10/2021,2200919299,"-4,778.25",TOTAL COMPUTERS NETWORK LTD
http://statistics.data.gov.uk/id/local-authority/38,Oxfordshire County Council,Care Homes - Over 65 Physical Sypport,5685,B*Cycle tracks,12/10/2021,3111049078,"-4,719.29",CARE UK COMMUNITY PARTNERSHIPS LIMI
http://statistics.data.gov.uk/id/local-authority/38,Oxfordshire County Council,Care Homes - Over 65 Physical Sypport,5686,,12/10/2021,3111046485,"-4,710.00",Orders of St John
http://statistics.data.gov.uk/id/local-authority/38,Oxfordshire County Council,Continuing Care - Support at Home - U65,5691,,19/10/2021,3111053494,"-4,584.01",Helping Hands
http://statistics.data.gov.uk/id/local-authority/38,Oxfordshire County Council,Care Homes - Over 65 Physical Sypport,5686,,12/10/2021,3111046304,"-4,512.86",Orders of St John
http://statistics.data.gov.uk/id/local-authority/38,Oxfordshire County Council,CHC Fast Track - Care Homes - Under 65,5687,,12/10/2021,3111051724,"-4,500.00",Rushcourt Nursing Home
http://statistics.data.gov.uk/id/local-authority/38,Oxfordshire County Council,CAMERA ENFORCEMENT,4861,Hired and Contracted Services,25/10/2021,2200920076,"-4,447.20",Patrol/Bus
http://statistics.data.gov.uk/id/local-authority/38,Oxfordshire County Council,POST18 UASC DCSF FND,5785,Client Lodgings and Accommodation,27/10/2021,3111058604,"-4,299.27",Response Organisation
http://statistics.data.gov.uk/id/local-authority/38,Oxfordshire County Council,Support at Home 65+ Physical Support,5686,,12/10/2021,3111052207,"-4,200.00",The Ridings (Anchor Trust)
http://statistics.data.gov.uk/id/local-authority/38,Oxfordshire County Council,Covid 19 CHC,5687,,12/10/2021,3111050878,"-4,107.14",Green Gates NH (BUPA)
http://statistics.data.gov.uk/id/local-authority/38,Oxfordshire County Council,Care Homes - Over 65 Physical Sypport,5686,,12/10/2021,3111047033,"-4,066.00",Orders of St John
http://statistics.data.gov.uk/id/local-authority/38,Oxfordshire County Council,MAINSTREAM-SECONDARY,4330,Transport to School Activities,26/10/2021,3111056031,"-3,941.40",Heyfordian Travel Ltd
http://statistics.data.gov.uk/id/local-authority/38,Oxfordshire County Council,Funded Nursing Care  - Over 65,5692,,12/10/2021,3111051465,"-3,939.60",Lincroft Meadow
http://statistics.data.gov.uk/id/local-authority/38,Oxfordshire County Council,CHC Fast Track - Care Homes - Over 65,5687,,12/10/2021,3111052350,"-3,857.14",MARIA MALLABAND CARE GROUP
http://statistics.data.gov.uk/id/local-authority/38,Oxfordshire County Council,LEGAL BUDGET,5251,Legal Costs,06/10/2021,2200913450,"-3,823.60",Harbourage uk
http://statistics.data.gov.uk/id/local-authority/38,Oxfordshire County Council,Care Homes - Over 65 Physical Sypport,5686,,12/10/2021,3111047421,"-3,821.43",Orders of St John
http://statistics.data.gov.uk/id/local-authority/38,Oxfordshire County Council,Care Homes - Over 65 Physical Sypport,5686,,12/10/2021,3111047499,"-3,821.43",OSJ Contract - Stirlings
http://statistics.data.gov.uk/id/local-authority/38,Oxfordshire County Council,Pool Cars,4861,Hired and Contracted Services,28/10/2021,2200920791,"-3,722.82",LeasePlan UK Ltd t/a Automotive Lea
http://statistics.data.gov.uk/id/local-authority/38,Oxfordshire County Council,Pool Cars,4270,HTM / Other Vehicle - Hire Charges,28/10/2021,2200920793,"-3,722.82",LeasePlan UK Ltd t/a Automotive Lea
http://statistics.data.gov.uk/id/local-authority/38,Oxfordshire County Council,Support at Home 65+ Physical Support,5686,,12/10/2021,3111047669,"-3,664.29",Mill House Nursing Home
http://statistics.data.gov.uk/id/local-authority/38,Oxfordshire County Council,CHC Fast Track - Care Homes - Under 65,5687,,12/10/2021,3111052000,"-3,489.97",The Close Nursing Home
http://statistics.data.gov.uk/id/local-authority/38,Oxfordshire County Council,Care Homes - Over 65 Physical Sypport,5687,,12/10/2021,3111052064,"-3,470.79",The Grange Care Centre
http://statistics.data.gov.uk/id/local-authority/38,Oxfordshire County Council,Care Homes - Over 65 Physical Sypport,5687,,12/10/2021,3111048049,"-3,351.43",Vale House
http://statistics.data.gov.uk/id/local-authority/38,Oxfordshire County Council,Funded Nursing Care  - Over 65,5692,,12/10/2021,3111052395,"-3,350.00",Caring Homes Healthcare Group Ltd
http://statistics.data.gov.uk/id/local-authority/38,Oxfordshire County Council,CHC Fast Track - Care Homes - Over 65,5687,,12/10/2021,3111050042,"-3,339.29",CHURCHFIELDS CARE HOME
http://statistics.data.gov.uk/id/local-authority/38,Oxfordshire County Council,Continuing Care - Care Homes - 65+,5687,,12/10/2021,3111052358,"-3,000.00",MARIA MALLABAND CARE GROUP
http://statistics.data.gov.uk/id/local-authority/38,Oxfordshire County Council,Support at Home 65+ Physical Support,5686,,12/10/2021,3111046548,"-2,996.00",Orders of St John
http://statistics.data.gov.uk/id/local-authority/38,Oxfordshire County Council,Support at Home 65+ Physical Support,5686,,12/10/2021,3111047326,"-2,996.00",OSJ  - Old Station House
http://statistics.data.gov.uk/id/local-authority/38,Oxfordshire County Council,Care Homes - Over 65 Memory & Cognition,5686,,12/10/2021,3111052075,"-2,985.71",The Grange - Goring Care Homes
http://statistics.data.gov.uk/id/local-authority/38,Oxfordshire County Council,SEN TRANSPORT,4330,Transport to School Activities,28/10/2021,3111058873,"-2,965.90",Crown Cabs Travel Ltd
http://statistics.data.gov.uk/id/local-authority/38,Oxfordshire County Council,Support at Home 65+ Physical Support,5686,,12/10/2021,3111047743,"-2,940.00",Mon Choisy
http://statistics.data.gov.uk/id/local-authority/38,Oxfordshire County Council,Support at Home 65+ Memory & Cognition,5686,,12/10/2021,3111047919,"-2,889.00",Orders of St John
http://statistics.data.gov.uk/id/local-authority/38,Oxfordshire County Council,Continuing Care - Care Homes - 65+,5687,,12/10/2021,3111051346,"-2,866.00",The Julie Richardson Nursing Home
http://statistics.data.gov.uk/id/local-authority/38,Oxfordshire County Council,Continuing Care - Care Homes - 65+,5687,,12/10/2021,3111051058,"-2,797.71",HAMBERLEY CARE 2 LIMITED
http://statistics.data.gov.uk/id/local-authority/38,Oxfordshire County Council,CHC Fast Track - Care Homes - Over 65,5687,,12/10/2021,3111052361,"-2,700.00",MARIA MALLABAND CARE GROUP
http://statistics.data.gov.uk/id/local-authority/38,Oxfordshire County Council,Covid 19 CHC,5687,,12/10/2021,3111051821,"-2,671.43",Barchester Healthcare Homes Ltd
http://statistics.data.gov.uk/id/local-authority/38,Oxfordshire County Council,Continuing Care - Care Homes - 65+,5687,,12/10/2021,3111052340,"-2,650.00",MARIA MALLABAND CARE GROUP
http://statistics.data.gov.uk/id/local-authority/38,Oxfordshire County Council,Care Homes - Over 65 Physical Sypport,5685,B*Cycle tracks,12/10/2021,3111052224,"-2,619.69",The Triangle Nursing Home
http://statistics.data.gov.uk/id/local-authority/38,Oxfordshire County Council,Support at Home 65+ Physical Support,5686,,12/10/2021,3111046566,"-2,568.00",Orders of St John
http://statistics.data.gov.uk/id/local-authority/38,Oxfordshire County Council,PLACEMENTS-FRELEVANT,5688,,07/10/2021,3111045273,"-2,502.63",KEY2 FUTURES LTD
http://statistics.data.gov.uk/id/local-authority/38,Oxfordshire County Council,PLACEMENTS-FRELEVANT,5688,,07/10/2021,3111045274,"-2,502.63",KEY2 FUTURES LTD
http://statistics.data.gov.uk/id/local-authority/38,Oxfordshire County Council,PLACEMENTS-FRELEVANT,5688,,07/10/2021,3111045275,"-2,502.63",KEY2 FUTURES LTD
http://statistics.data.gov.uk/id/local-authority/38,Oxfordshire County Council,PLACEMENTS-FRELEVANT,5688,,07/10/2021,3111045276,"-2,502.63",KEY2 FUTURES LTD
http://statistics.data.gov.uk/id/local-authority/38,Oxfordshire County Council,PLACEMENTS-FRELEVANT,5688,,07/10/2021,3111045277,"-2,502.63",KEY2 FUTURES LTD
http://statistics.data.gov.uk/id/local-authority/38,Oxfordshire County Council,PLACEMENTS-FRELEVANT,5688,,07/10/2021,3111045278,"-2,502.63",KEY2 FUTURES LTD
http://statistics.data.gov.uk/id/local-authority/38,Oxfordshire County Council,Covid-19 ASC & Comm. additional costs,5520,Payments to Voluntary bodies,06/10/2021,2200913454,"-2,451.00",Oxfordshire Family Support Network
http://statistics.data.gov.uk/id/local-authority/38,Oxfordshire County Council,PLACEMENTS-FRELEVANT,5688,,07/10/2021,3111045270,"-2,421.90",KEY2 FUTURES LTD
http://statistics.data.gov.uk/id/local-authority/38,Oxfordshire County Council,PLACEMENTS-FRELEVANT,5688,,07/10/2021,3111045271,"-2,421.90",KEY2 FUTURES LTD
http://statistics.data.gov.uk/id/local-authority/38,Oxfordshire County Council,PLACEMENTS-FRELEVANT,5688,,07/10/2021,3111045272,"-2,421.90",KEY2 FUTURES LTD
http://statistics.data.gov.uk/id/local-authority/38,Oxfordshire County Council,REGISTRAR,4706,Stationery and other office consumables,22/10/2021,2200919682,"-2,401.00",The Medieval Scribe
http://statistics.data.gov.uk/id/local-authority/38,Oxfordshire County Council,Care Homes - Over 65 Physical Sypport,5686,,12/10/2021,3111046543,"-2,354.00",Orders of St John
http://statistics.data.gov.uk/id/local-authority/38,Oxfordshire County Council,PLACEMENTS-FRELEVANT,5688,,07/10/2021,3111045269,"-2,341.17",KEY2 FUTURES LTD
http://statistics.data.gov.uk/id/local-authority/38,Oxfordshire County Council,VOIDS/VACANCY COSTS,3945,Rent,12/10/2021,3111051347,"-2,330.70",Cherwell District Council
http://statistics.data.gov.uk/id/local-authority/38,Oxfordshire County Council,Care Homes - Over 65 Memory & Cognition,5686,,12/10/2021,3111046384,"-2,230.00",Orders of St John
http://statistics.data.gov.uk/id/local-authority/38,Oxfordshire County Council,Care Homes - Over 65 Physical Sypport,5687,,12/10/2021,3111050864,"-2,100.00",Green Gates NH (BUPA)
http://statistics.data.gov.uk/id/local-authority/38,Oxfordshire County Council,Covid 19 CHC,5687,,12/10/2021,3111050891,"-2,042.86",Green Gates NH (BUPA)
http://statistics.data.gov.uk/id/local-authority/38,Oxfordshire County Council,CHC Fast Track - Care Homes - Over 65,5687,,12/10/2021,3111052113,"-2,000.00",Four Seasons (Headington) Ltd
http://statistics.data.gov.uk/id/local-authority/38,Oxfordshire County Council,Care Homes - Over 65 Physical Sypport,5687,,12/10/2021,3111047651,"-1,978.00",Orders of St John
http://statistics.data.gov.uk/id/local-authority/38,Oxfordshire County Council,Care Homes - Over 65 Physical Sypport,5686,,12/10/2021,3111046345,"-1,937.14",Orders of St John
http://statistics.data.gov.uk/id/local-authority/38,Oxfordshire County Council,Support at Home 65+ Physical Support,5686,,12/10/2021,3111047759,"-1,926.00",Orders of St John
http://statistics.data.gov.uk/id/local-authority/38,Oxfordshire County Council,Support at Home U65 Physical Support,5687,,12/10/2021,3111047016,"-1,885.71",Fewcott Healthcare Ltd
http://statistics.data.gov.uk/id/local-authority/38,Oxfordshire County Council,CHC Fast Track - Care Homes - Over 65,5687,,12/10/2021,3111051610,"-1,864.29",Oxford Beaumont
http://statistics.data.gov.uk/id/local-authority/38,Oxfordshire County Council,Care Homes - Over 65 Physical Sypport,5687,,12/10/2021,3111051505,"-1,840.37",Meadow View Nursing Home
http://statistics.data.gov.uk/id/local-authority/38,Oxfordshire County Council,Support at Home U65 Other /Soc Isolation,5690,,07/10/2021,3111045287,"-1,780.99",KEY2 FUTURES LTD
http://statistics.data.gov.uk/id/local-authority/38,Oxfordshire County Council,LEGAL SERVICES,5251,Legal Costs,05/10/2021,2200913219,"-1,750.00",Louise Worton
http://statistics.data.gov.uk/id/local-authority/38,Oxfordshire County Council,Funded Nursing Care  - Over 65,5692,,12/10/2021,3111047212,"-1,742.00",Freeland House
http://statistics.data.gov.uk/id/local-authority/38,Oxfordshire County Council,Care Homes - Over 65 Physical Sypport,5686,,12/10/2021,3111047060,"-1,712.00",Orders of St John
http://statistics.data.gov.uk/id/local-authority/38,Oxfordshire County Council,Care Homes - Over 65 Physical Sypport,5686,,12/10/2021,3111047317,"-1,712.00",OSJ  - Old Station House
http://statistics.data.gov.uk/id/local-authority/38,Oxfordshire County Council,Care Homes - Over 65 Physical Sypport,5687,,12/10/2021,3111047993,"-1,695.43",Orders of St John
http://statistics.data.gov.uk/id/local-authority/38,Oxfordshire County Council,Support at Home 65+ Memory & Cognition,5686,,12/10/2021,3111047345,"-1,605.00",OSJ  - Old Station House
http://statistics.data.gov.uk/id/local-authority/38,Oxfordshire County Council,Care Homes - Over 65 Physical Sypport,5687,,12/10/2021,3111050904,"-1,577.17",Green Gates NH (BUPA)
http://statistics.data.gov.uk/id/local-authority/38,Oxfordshire County Council,Support at Home U65 Learning Disability,5690,,12/10/2021,3111049255,"-1,550.40",Style Acre
http://statistics.data.gov.uk/id/local-authority/38,Oxfordshire County Council,Support at Home U65 Learning Disability,5899,Social Care - Direct Payments,05/10/2021,3111043932,"-1,537.28",Purple Conversation Com In Co (DP)
http://statistics.data.gov.uk/id/local-authority/38,Oxfordshire County Council,VOIDS/VACANCY COSTS,3945,Rent,12/10/2021,3111051345,"-1,486.88",Cherwell District Council
http://statistics.data.gov.uk/id/local-authority/38,Oxfordshire County Council,Continuing Care - Support at Home - 65+,5691,,19/10/2021,3111053495,"-1,411.20",Helping Hands
http://statistics.data.gov.uk/id/local-authority/38,Oxfordshire County Council,Children in Care Non-staffing - South,5227,Other Transport Arrangements,07/10/2021,3111045267,"-1,395.00",Quayside Childcare Limited
http://statistics.data.gov.uk/id/local-authority/38,Oxfordshire County Council,Care Homes - Over 65 Mental Health,5685,B*Cycle tracks,12/10/2021,3111048842,"-1,377.54",Grace Care Service Ltd T/A Burford
http://statistics.data.gov.uk/id/local-authority/38,Oxfordshire County Council,Continuing Care - Care Homes - 65+,5687,,12/10/2021,3111050268,"-1,268.57",Coxwell Hall & Mews Nursing Home
http://statistics.data.gov.uk/id/local-authority/38,Oxfordshire County Council,Care Homes - Over 65 Memory & Cognition,5686,,12/10/2021,3111047463,"-1,224.00",Huntercombe Hall Ltd
http://statistics.data.gov.uk/id/local-authority/38,Oxfordshire County Council,Continuing Care - Care Homes - 65+,5687,,12/10/2021,3111048820,"-1,221.43",Grace Care Service Ltd T/A Burford
http://statistics.data.gov.uk/id/local-authority/38,Oxfordshire County Council,Care Homes - Over 65 Physical Sypport,5687,,12/10/2021,3111050241,"-1,202.81",Coxwell Hall & Mews Nursing Home
http://statistics.data.gov.uk/id/local-authority/38,Oxfordshire County Council,Care Homes - Over 65 Physical Sypport,5686,,12/10/2021,3111052127,"-1,178.57",METHODIST HOMES
http://statistics.data.gov.uk/id/local-authority/38,Oxfordshire County Council,Support at Home 65+ Physical Support,5686,,12/10/2021,3111047880,"-1,177.00",Orders of St John
http://statistics.data.gov.uk/id/local-authority/38,Oxfordshire County Council,SEN TRANSPORT,5227,Other Transport Arrangements,28/10/2021,3111058874,"-1,126.70",Crown Cabs Travel Ltd
http://statistics.data.gov.uk/id/local-authority/38,Oxfordshire County Council,Funded Nursing Care  - Over 65,5692,,12/10/2021,3111052225,"-1,045.20",The Triangle Nursing Home
http://statistics.data.gov.uk/id/local-authority/38,Oxfordshire County Council,Care Homes - Over 65 Memory & Cognition,5686,,12/10/2021,3111048628,"-1,000.00",Grace Care Service Ltd T/A Burford
http://statistics.data.gov.uk/id/local-authority/38,Oxfordshire County Council,Care Homes - Over 65 Memory & Cognition,5685,B*Cycle tracks,12/10/2021,3111047092,-919.83,Freeland House
http://statistics.data.gov.uk/id/local-authority/38,Oxfordshire County Council,Funded Nursing Care  - Over 65,5692,,12/10/2021,3111051814,-911.2,Barchester Healthcare Homes Ltd
http://statistics.data.gov.uk/id/local-authority/38,Oxfordshire County Council,ELEC NPR ST LTG,5526,Payments to Private Contractors,15/10/2021,2200917301,-902.04,Bouygues E&S Infrastructure UK Ltd
http://statistics.data.gov.uk/id/local-authority/38,Oxfordshire County Council,Care Homes - Over 65 Physical Sypport,5685,B*Cycle tracks,12/10/2021,3111048315,-901.43,METHODIST HOMES
http://statistics.data.gov.uk/id/local-authority/38,Oxfordshire County Council,CHC Fast Track - Care Homes - Over 65,5687,,12/10/2021,3111047846,-892.86,SANCTUARY CARE PROPERTY (2) LTD
http://statistics.data.gov.uk/id/local-authority/38,Oxfordshire County Council,Funded Nursing Care  - Over 65,5692,,12/10/2021,3111052088,-884.4,Four Seasons (Headington) Ltd
http://statistics.data.gov.uk/id/local-authority/38,Oxfordshire County Council,Continuing Care - Support at Home - U65,5691,,22/10/2021,3111055767,-860.57,Olive Tree Services
http://statistics.data.gov.uk/id/local-authority/38,Oxfordshire County Council,Support at Home 65+ Subsantance Abuse,5686,,12/10/2021,3111047804,-844.14,Orders of St John
http://statistics.data.gov.uk/id/local-authority/38,Oxfordshire County Council,Funded Nursing Care  - Over 65,5692,,12/10/2021,3111052031,-830.8,The Grange Care Centre
http://statistics.data.gov.uk/id/local-authority/38,Oxfordshire County Council,Delegated Health Tasks  - Over 65,5691,,19/10/2021,3111054464,-811,Home Instead Senior Care
http://statistics.data.gov.uk/id/local-authority/38,Oxfordshire County Council,Care Homes - Over 65 Physical Sypport,5687,,12/10/2021,3111046735,-809.38,ACER HEALTHCARE LTD
http://statistics.data.gov.uk/id/local-authority/38,Oxfordshire County Council,CHC Fast Track - Care Homes - Over 65,5687,,12/10/2021,3111052347,-800,MARIA MALLABAND CARE GROUP
http://statistics.data.gov.uk/id/local-authority/38,Oxfordshire County Council,,1448,Blackfield Inc & Exp A/c,04/10/2021,3111043812,-787.28,OCC One Time Vendor
http://statistics.data.gov.uk/id/local-authority/38,Oxfordshire County Council,Support at Home 65+ Physical Support,5686,,12/10/2021,3111047913,-749,Orders of St John
http://statistics.data.gov.uk/id/local-authority/38,Oxfordshire County Council,TRADED CLERK SERVICE,7003,"Courses, Classes, Workshops and Clubs",21/10/2021,3111055158,-737.08,Redacted Personal Data
http://statistics.data.gov.uk/id/local-authority/38,Oxfordshire County Council,Funded Nursing Care  - Over 65,5692,,12/10/2021,3111050971,-723.6,Green Pastures Christian NH
http://statistics.data.gov.uk/id/local-authority/38,Oxfordshire County Council,Funded Nursing Care  - Over 65,5692,,12/10/2021,3111051969,-723.6,Tall Trees
http://statistics.data.gov.uk/id/local-authority/38,Oxfordshire County Council,Independent Foster,5559,,06/10/2021,3111044866,-721.99,BRIGHTER FUTURES FOSTER CARE LTD
http://statistics.data.gov.uk/id/local-authority/38,Oxfordshire County Council,Funded Nursing Care  - Over 65,5692,,12/10/2021,3111048975,-670,CARE UK COMMUNITY PARTNERSHIPS LIMI
http://statistics.data.gov.uk/id/local-authority/38,Oxfordshire County Council,Care Homes - Over 65 Memory & Cognition,5686,,12/10/2021,3111047985,-663,ST ANNES RESIDENTIAL  HOME
http://statistics.data.gov.uk/id/local-authority/38,Oxfordshire County Council,PROCUREMENT,4232,Vehicle Fuel,22/10/2021,2200919624,-628.8,Certas Energy UK Ltd
http://statistics.data.gov.uk/id/local-authority/38,Oxfordshire County Council,Funded Nursing Care  - Over 65,5692,,12/10/2021,3111046826,-589.6,Banbury Heights Nursing Home
http://statistics.data.gov.uk/id/local-authority/38,Oxfordshire County Council,Funded Nursing Care  - Over 65,5692,,12/10/2021,3111047831,-589.6,Bridge House
http://statistics.data.gov.uk/id/local-authority/38,Oxfordshire County Council,Funded Nursing Care  - Over 65,5692,,12/10/2021,3111051857,-589.6,Stowford House
http://statistics.data.gov.uk/id/local-authority/38,Oxfordshire County Council,Care Homes - Over 65 Memory & Cognition,5687,,12/10/2021,3111052036,-582.86,The Grange Care Centre
http://statistics.data.gov.uk/id/local-authority/38,Oxfordshire County Council,Support at Home 65+ Physical Support,5686,,12/10/2021,3111046982,-571.43,Fewcott Healthcare Ltd
http://statistics.data.gov.uk/id/local-authority/38,Oxfordshire County Council,Care Homes - Over 65 Physical Sypport,5687,,12/10/2021,3111046908,-542.86,Beech Haven Care Home
http://statistics.data.gov.uk/id/local-authority/38,Oxfordshire County Council,Funded Nursing Care  - Over 65,5692,,12/10/2021,3111051767,-536,Barchester Healthcare Homes Ltd
http://statistics.data.gov.uk/id/local-authority/38,Oxfordshire County Council,DISABILITIES TEAM S,5227,Other Transport Arrangements,21/10/2021,3111055498,500,ACE CARS BANBURY LTD
http://statistics.data.gov.uk/id/local-authority/38,Oxfordshire County Council,TRANSPORT COSTS,4330,Transport to School Activities,04/10/2021,3111043716,500,Ali's Cabs
http://statistics.data.gov.uk/id/local-authority/38,Oxfordshire County Council,SEN TRANSPORT,5227,Other Transport Arrangements,04/10/2021,3111044692,500,C&M Management Services Ltd
http://statistics.data.gov.uk/id/local-authority/38,Oxfordshire County Council,LEGAL SERVICES,5251,Legal Costs,28/10/2021,2200920837,500,Cherry Harding
http://statistics.data.gov.uk/id/local-authority/38,Oxfordshire County Council,FOSTERING TEAM,4861,Hired and Contracted Services,04/10/2021,2200912613,500,Green Light People Solutions
http://statistics.data.gov.uk/id/local-authority/38,Oxfordshire County Council,FOSTERING TEAM,4861,Hired and Contracted Services,04/10/2021,2200912615,500,Green Light People Solutions
http://statistics.data.gov.uk/id/local-authority/38,Oxfordshire County Council,FOSTERING TEAM,4861,Hired and Contracted Services,04/10/2021,2200912617,500,Green Light People Solutions
http://statistics.data.gov.uk/id/local-authority/38,Oxfordshire County Council,FOSTERING TEAM,4861,Hired and Contracted Services,04/10/2021,2200912619,500,Green Light People Solutions
http://statistics.data.gov.uk/id/local-authority/38,Oxfordshire County Council,FOSTERING TEAM,4861,Hired and Contracted Services,04/10/2021,2200912620,500,Green Light People Solutions
http://statistics.data.gov.uk/id/local-authority/38,Oxfordshire County Council,OSCB,4940,Other Services,12/10/2021,2200915477,500,Karen Lesley Tudor
http://statistics.data.gov.uk/id/local-authority/38,Oxfordshire County Council,L&D CORE PROGRAMME,4498,Health and Safety Equipment,26/10/2021,2200920396,500,LEARNING POOL LIMITED
http://statistics.data.gov.uk/id/local-authority/38,Oxfordshire County Council,Reading Adoption Support Fund,4861,Hired and Contracted Services,28/10/2021,2200920795,500,Michelle Surridge
http://statistics.data.gov.uk/id/local-authority/38,Oxfordshire County Council,LEGAL SERVICES,5251,Legal Costs,28/10/2021,2200920672,500,N DAVIES
http://statistics.data.gov.uk/id/local-authority/38,Oxfordshire County Council,MultiCAV,4861,Hired and Contracted Services,18/10/2021,2200917868,500,Nova Modus
http://statistics.data.gov.uk/id/local-authority/38,Oxfordshire County Council,LEGAL BUDGET,5251,Legal Costs,08/10/2021,3111045379,500,OCC One Time Vendor
http://statistics.data.gov.uk/id/local-authority/38,Oxfordshire County Council,Youth Justice & Exploitation,5414,Day Activities,13/10/2021,3111052448,500,OCC One Time Vendor
http://statistics.data.gov.uk/id/local-authority/38,Oxfordshire County Council,ORGANISATIONAL DEV'T,3103,Other Training Courses and Qualification,28/10/2021,2200920721,500,Oxfordshire LEP Ltd
http://statistics.data.gov.uk/id/local-authority/38,Oxfordshire County Council,Support at Home U65 Learning Disability,5227,Other Transport Arrangements,07/10/2021,3111045091,500,Oxon Transport Services Ltd
http://statistics.data.gov.uk/id/local-authority/38,Oxfordshire County Council,ELEC NPR ST LTG,5526,Payments to Private Contractors,07/10/2021,2200913893,500,P Bradley
http://statistics.data.gov.uk/id/local-authority/38,Oxfordshire County Council,L&D CORE PROGRAMME,3103,Other Training Courses and Qualification,11/10/2021,2200914959,500,Premier Partnership
http://statistics.data.gov.uk/id/local-authority/38,Oxfordshire County Council,LEGAL SERVICES,5251,Legal Costs,19/10/2021,2200918405,500,Richard Little
http://statistics.data.gov.uk/id/local-authority/38,Oxfordshire County Council,LEGAL SERVICES,5251,Legal Costs,28/10/2021,2200920813,500,Steven Howard
http://statistics.data.gov.uk/id/local-authority/38,Oxfordshire County Council,Wokingham Adoption Support Fund,6500,Government Grants (Revenue),05/10/2021,2200913404,500,The Annex Project
http://statistics.data.gov.uk/id/local-authority/38,Oxfordshire County Council,Oxfordshire Adoption Support Fund,6500,Government Grants (Revenue),05/10/2021,2200913405,500,The Annex Project
http://statistics.data.gov.uk/id/local-authority/38,Oxfordshire County Council,RBWM Adoption Support Fund,6500,Government Grants (Revenue),06/10/2021,2200913876,500,The Annex Project
http://statistics.data.gov.uk/id/local-authority/38,Oxfordshire County Council,Wokingham Adoption Support Fund,6500,Government Grants (Revenue),06/10/2021,2200913878,500,The Annex Project
http://statistics.data.gov.uk/id/local-authority/38,Oxfordshire County Council,SEN Alternative Provision,4861,Hired and Contracted Services,14/10/2021,2200916616,500,THE DARE2DREAM FOUNDATION
http://statistics.data.gov.uk/id/local-authority/38,Oxfordshire County Council,P&S STAFF,4940,Other Services,26/10/2021,2200920383,500,The Royal Association for Deaf Peop
http://statistics.data.gov.uk/id/local-authority/38,Oxfordshire County Council,Councillors Priorities Fund,4940,Other Services,08/10/2021,3111045382,500,Vale & Downland Museum Wantage
http://statistics.data.gov.uk/id/local-authority/38,Oxfordshire County Council,Councillors Priorities Fund,4940,Other Services,08/10/2021,3111045380,500,Watlington Parish Council
http://statistics.data.gov.uk/id/local-authority/38,Oxfordshire County Council,Councillors Priorities Fund,4940,Other Services,08/10/2021,3111045392,500,Watlington Parish Council
http://statistics.data.gov.uk/id/local-authority/38,Oxfordshire County Council,VOIDS/VACANCY COSTS,3945,Rent,12/10/2021,3111051364,500.25,Oxford Citizens Housing Association
http://statistics.data.gov.uk/id/local-authority/38,Oxfordshire County Council,Support at Home 65+ Physical Support,5698,,12/10/2021,3111047691,500.9,Acquire Care Ltd
http://statistics.data.gov.uk/id/local-authority/38,Oxfordshire County Council,Family Solutions Plus Non-staff - South,5394,Other Expenses,14/10/2021,3111052995,501.08,OCC One Time Vendor
http://statistics.data.gov.uk/id/local-authority/38,Oxfordshire County Council,SEN TRANSPORT,4320,Pupil / Client Travel Reimbursement,25/10/2021,3111056020,501.16,Redacted Personal Data
http://statistics.data.gov.uk/id/local-authority/38,Oxfordshire County Council,Support at Home 65+ Physical Support,5689,,12/10/2021,3111050696,501.25,My Carer Ltd
http://statistics.data.gov.uk/id/local-authority/38,Oxfordshire County Council,Support at Home 65+ Mental Health,5689,,12/10/2021,3111050541,501.36,Home Helpers Care Ltd
http://statistics.data.gov.uk/id/local-authority/38,Oxfordshire County Council,MAINSTREAM-SECONDARY,4322,"Season Tickets - Bus, Rail & Ferry",06/10/2021,3111045024,501.6,Firstinfo
http://statistics.data.gov.uk/id/local-authority/38,Oxfordshire County Council,Support at Home U65 Physical Support,5693,,15/10/2021,3111053256,501.82,SAINT CATHERINE'S CARE LTD
http://statistics.data.gov.uk/id/local-authority/38,Oxfordshire County Council,Contingency Home Care,5689,,12/10/2021,3111050831,502.19,Oxford University Hospitals NHS FT
http://statistics.data.gov.uk/id/local-authority/38,Oxfordshire County Council,Support at Home U65 Physical Support,5899,Social Care - Direct Payments,26/10/2021,3111057642,502.32,Redacted Personal Data
http://statistics.data.gov.uk/id/local-authority/38,Oxfordshire County Council,Family Solutions Plus Non-staff - North,5227,Other Transport Arrangements,21/10/2021,3111055511,502.8,ACE CARS BANBURY LTD
http://statistics.data.gov.uk/id/local-authority/38,Oxfordshire County Council,FOSTERING MAIN,7190,Other Recovered Costs,19/10/2021,3111053811,502.86,Redacted Personal Data
http://statistics.data.gov.uk/id/local-authority/38,Oxfordshire County Council,ECH Central Costs,5688,,12/10/2021,3111046043,502.95,Orders of St John Care Trust
http://statistics.data.gov.uk/id/local-authority/38,Oxfordshire County Council,FOSTERING MAIN,5227,Other Transport Arrangements,05/10/2021,3111044350,503.34,Redacted Personal Data
http://statistics.data.gov.uk/id/local-authority/38,Oxfordshire County Council,FPT SOUTH/VALE,5227,Other Transport Arrangements,05/10/2021,3111044569,503.72,Redacted Personal Data
http://statistics.data.gov.uk/id/local-authority/38,Oxfordshire County Council,SEN Alternative Provision,4861,Hired and Contracted Services,14/10/2021,2200916801,503.75,Targeted Provision
http://statistics.data.gov.uk/id/local-authority/38,Oxfordshire County Council,SEN Alternative Provision,4861,Hired and Contracted Services,14/10/2021,2200916802,503.75,Targeted Provision
http://statistics.data.gov.uk/id/local-authority/38,Oxfordshire County Council,Support at Home U65 Sensory Support,5899,Social Care - Direct Payments,26/10/2021,3111057373,504,Redacted Personal Data
http://statistics.data.gov.uk/id/local-authority/38,Oxfordshire County Council,Support at Home 65+ Physical Support,5899,Social Care - Direct Payments,26/10/2021,3111057347,504,Redacted Personal Data
http://statistics.data.gov.uk/id/local-authority/38,Oxfordshire County Council,SEN TRANSPORT,5227,Other Transport Arrangements,12/10/2021,3111052415,504,TRANSPORT 4 U
http://statistics.data.gov.uk/id/local-authority/38,Oxfordshire County Council,Support at Home 65+ Physical Support,5696,,01/10/2021,3111043409,504.5,1st Homecare (Oxford) Ltd
http://statistics.data.gov.uk/id/local-authority/38,Oxfordshire County Council,Support at Home 65+ Physical Support,5689,,12/10/2021,3111050480,504.58,Home Helpers Care Ltd
http://statistics.data.gov.uk/id/local-authority/38,Oxfordshire County Council,Support at Home 65+ Physical Support,5696,,01/10/2021,3111043412,504.88,1st Homecare (Oxford) Ltd
http://statistics.data.gov.uk/id/local-authority/38,Oxfordshire County Council,Delegated Health Tasks  - Over 65,5689,,12/10/2021,3111049930,505,Caremark (West Oxfordshire & Cherwe
http://statistics.data.gov.uk/id/local-authority/38,Oxfordshire County Council,Planned preventative Maintenance,3787,Premises Repairs,28/10/2021,2200920779,505,Windrush Door & Window Services Ltd
http://statistics.data.gov.uk/id/local-authority/38,Oxfordshire County Council,Support at Home 65+ Physical Support,5698,,12/10/2021,3111049787,505.14,Oxfordshire Crossroads
http://statistics.data.gov.uk/id/local-authority/38,Oxfordshire County Council,Support at Home U65 Mental Health,5899,Social Care - Direct Payments,26/10/2021,3111058201,505.48,Purple Conversation Com In Co (DP)
http://statistics.data.gov.uk/id/local-authority/38,Oxfordshire County Council,Support at Home 65+ Physical Support,5689,,12/10/2021,3111050566,505.79,Home Helpers Care Ltd
http://statistics.data.gov.uk/id/local-authority/38,Oxfordshire County Council,VACANT PROPERTY,4000,Council Tax,28/10/2021,3500079755,506,Oxford City Council
http://statistics.data.gov.uk/id/local-authority/38,Oxfordshire County Council,Support at Home U65 Physical Support,5689,,12/10/2021,3111050443,506.53,Harino Care
http://statistics.data.gov.uk/id/local-authority/38,Oxfordshire County Council,Support at Home 65+ Physical Support,5899,Social Care - Direct Payments,26/10/2021,3111057946,507.08,Purple Conversation Com In Co (DP)
http://statistics.data.gov.uk/id/local-authority/38,Oxfordshire County Council,Support at Home U65 Learning Disability,5899,Social Care - Direct Payments,26/10/2021,3111057976,507.08,Purple Conversation Com In Co (DP)
http://statistics.data.gov.uk/id/local-authority/38,Oxfordshire County Council,Support at Home 65+ Learning Disability,5690,,12/10/2021,3111048618,507.25,The Ice Centre
http://statistics.data.gov.uk/id/local-authority/38,Oxfordshire County Council,SM DISABILITIES,5554,Childrens' Social Care - Direct Payments,26/10/2021,3111057065,507.64,Purple Conversation Com In Co (DP)
http://statistics.data.gov.uk/id/local-authority/38,Oxfordshire County Council,Continuing Care - Support at Home - 65+,5691,,19/10/2021,3111054488,507.67,Greigcare Home Service
http://statistics.data.gov.uk/id/local-authority/38,Oxfordshire County Council,Support at Home U65 Physical Support,5696,,28/10/2021,3111058733,508.18,Orders of St John Care Trust
http://statistics.data.gov.uk/id/local-authority/38,Oxfordshire County Council,Staff Travel Benefits,5460,Entertainment Expenses,11/10/2021,2200915182,508.33,Cyclescheme Ltd
http://statistics.data.gov.uk/id/local-authority/38,Oxfordshire County Council,Support at Home U65 MH OBC Contract,5899,Social Care - Direct Payments,26/10/2021,3111057574,508.36,Redacted Personal Data
http://statistics.data.gov.uk/id/local-authority/38,Oxfordshire County Council,Support at Home U65 MH OBC Contract,5689,,12/10/2021,3111051187,508.4,Response Organisation
http://statistics.data.gov.uk/id/local-authority/38,Oxfordshire County Council,COVID-19 INFECTION CONTROL 4,5688,,08/10/2021,3111045623,508.63,Healthcare Access Ltd
http://statistics.data.gov.uk/id/local-authority/38,Oxfordshire County Council,COVID-19 INFECTION CONTROL 4,5688,,08/10/2021,3111045630,508.63,JESCARE SERVICES LTD
http://statistics.data.gov.uk/id/local-authority/38,Oxfordshire County Council,COVID-19 INFECTION CONTROL 4,5688,,08/10/2021,3111045681,508.63,You and Me Supported Living
http://statistics.data.gov.uk/id/local-authority/38,Oxfordshire County Council,Support at Home 65+ Physical Support,5899,Social Care - Direct Payments,26/10/2021,3111057871,509.65,Purple Conversation Com In Co (DP)
http://statistics.data.gov.uk/id/local-authority/38,Oxfordshire County Council,Catering Management Soft FM,4790,"Publicity, Promotions and Advertisement",08/10/2021,2200914677,510,Elygra Marketing Services
http://statistics.data.gov.uk/id/local-authority/38,Oxfordshire County Council,ON ST PARK OXFD P&D,4861,Hired and Contracted Services,05/10/2021,2200913230,510,Flowbird Smart City
http://statistics.data.gov.uk/id/local-authority/38,Oxfordshire County Council,ON ST PARK OXFD P&D,4861,Hired and Contracted Services,21/10/2021,2200919083,510,Flowbird Smart City
http://statistics.data.gov.uk/id/local-authority/38,Oxfordshire County Council,FAM GRP CONFERENCES,4940,Other Services,20/10/2021,2200918726,510,Jessica Howards
http://statistics.data.gov.uk/id/local-authority/38,Oxfordshire County Council,FOSTERING MAIN,5549,B*Fostering Allowance - Regulation 38,05/10/2021,3111044388,510,Redacted Personal Data
http://statistics.data.gov.uk/id/local-authority/38,Oxfordshire County Council,Food & Essential Supplies,4939,,19/10/2021,3111054951,510,Northbourne CE(A) Primary School
http://statistics.data.gov.uk/id/local-authority/38,Oxfordshire County Council,Support at Home 65+ Physical Support,5696,,28/10/2021,3111058832,510.22,Orders of St John Care Trust
http://statistics.data.gov.uk/id/local-authority/38,Oxfordshire County Council,LIBRARY COLLECTIONS,4539,"Books, DVDs and CDs",19/10/2021,3111054329,510.5,ASKEWS & HOLTS LIBRARY SERVICES LTD
http://statistics.data.gov.uk/id/local-authority/38,Oxfordshire County Council,Support at Home 65+ Physical Support,5693,,27/10/2021,3111058498,510.67,GET CARE LIMITED
http://statistics.data.gov.uk/id/local-authority/38,Oxfordshire County Council,Support at Home U65 Learning Disability,5899,Social Care - Direct Payments,26/10/2021,3111057093,511.04,Connection Support (Oxford)
http://statistics.data.gov.uk/id/local-authority/38,Oxfordshire County Council,Transport Monitoring,4496,Equipment Maintenance Contracts,19/10/2021,2200918257,511.5,Intelligent Data (Collection) Ltd
http://statistics.data.gov.uk/id/local-authority/38,Oxfordshire County Council,Support at Home 65+ Learning Disability,5690,,12/10/2021,3111046022,511.5,The Camden Society
http://statistics.data.gov.uk/id/local-authority/38,Oxfordshire County Council,Support at Home 65+ Memory & Cognition,5696,,28/10/2021,3111058711,511.59,Orders of St John Care Trust
http://statistics.data.gov.uk/id/local-authority/38,Oxfordshire County Council,Support at Home 65+ Physical Support,5698,,12/10/2021,3111048551,511.71,Day & Night Care Assistance
http://statistics.data.gov.uk/id/local-authority/38,Oxfordshire County Council,SEN TRANSPORT,4330,Transport to School Activities,19/10/2021,3111054148,512,Lightway Services Ltd
http://statistics.data.gov.uk/id/local-authority/38,Oxfordshire County Council,SHARED LIVES,5555,Payments to Carers,12/10/2021,3111045882,512,Redacted Personal Data
http://statistics.data.gov.uk/id/local-authority/38,Oxfordshire County Council,CONCESSIONARY FARES,5781,Payments to Transport Operators,15/10/2021,2200917324,512,Uffington Baulking & Woolstone
http://statistics.data.gov.uk/id/local-authority/38,Oxfordshire County Council,MAINSTREAM-PRIMARY,4330,Transport to School Activities,13/10/2021,3111052767,513,Vine Community Services Ltd T/A
http://statistics.data.gov.uk/id/local-authority/38,Oxfordshire County Council,Support at Home 65+ Physical Support,5689,,12/10/2021,3111049331,513.24,Care Outlook Ltd
http://statistics.data.gov.uk/id/local-authority/38,Oxfordshire County Council,Support at Home U65 Learning Disability,5690,,12/10/2021,3111049097,513.94,Turnstyle
http://statistics.data.gov.uk/id/local-authority/38,Oxfordshire County Council,Support at Home 65+ Physical Support,5696,,22/10/2021,3111055608,514.36,One Housing Group Limited
http://statistics.data.gov.uk/id/local-authority/38,Oxfordshire County Council,Support at Home 65+ Physical Support,5696,,22/10/2021,3111055609,514.36,One Housing Group Limited
http://statistics.data.gov.uk/id/local-authority/38,Oxfordshire County Council,Support at Home 65+ Physical Support,5696,,22/10/2021,3111055622,514.36,One Housing Group Limited
http://statistics.data.gov.uk/id/local-authority/38,Oxfordshire County Council,UTILITIES,3951,Non System - Electricity,01/10/2021,2200912211,514.37,The Oxford Academy
http://statistics.data.gov.uk/id/local-authority/38,Oxfordshire County Council,Support at Home U65 Physical Support,5696,,28/10/2021,3111058783,514.42,Orders of St John Care Trust
http://statistics.data.gov.uk/id/local-authority/38,Oxfordshire County Council,Support at Home U65 Memory & Cognition,5899,Social Care - Direct Payments,26/10/2021,3111058367,514.68,Purple Conversation Com In Co (DP)
http://statistics.data.gov.uk/id/local-authority/38,Oxfordshire County Council,Support at Home U65 Learning Disability,5689,,12/10/2021,3111050050,514.69,Oxfordshire Crossroads
http://statistics.data.gov.uk/id/local-authority/38,Oxfordshire County Council,COMM DRAWDOWN FUNDNG,8103,Payments to sub contractor,07/10/2021,2200913978,515,Robelec Ltd
http://statistics.data.gov.uk/id/local-authority/38,Oxfordshire County Council,Support at Home 65+ Physical Support,5899,Social Care - Direct Payments,26/10/2021,3111058099,515.08,Purple Conversation Com In Co (DP)
http://statistics.data.gov.uk/id/local-authority/38,Oxfordshire County Council,Support at Home 65+ Physical Support,5899,Social Care - Direct Payments,26/10/2021,3111058181,515.08,Purple Conversation Com In Co (DP)
http://statistics.data.gov.uk/id/local-authority/38,Oxfordshire County Council,Support at Home 65+ Physical Support,5899,Social Care - Direct Payments,26/10/2021,3111058348,515.08,Purple Conversation Com In Co (DP)
http://statistics.data.gov.uk/id/local-authority/38,Oxfordshire County Council,LD Continuing Care - Sup at Home - U65,5691,,21/10/2021,3111055238,515.2,THORNBURY NURSING SERVICES
http://statistics.data.gov.uk/id/local-authority/38,Oxfordshire County Council,VOIDS/VACANCY COSTS,3945,Rent,12/10/2021,3111051360,515.22,Oxford Citizens Housing Association
http://statistics.data.gov.uk/id/local-authority/38,Oxfordshire County Council,VOIDS/VACANCY COSTS,3945,Rent,12/10/2021,3111051362,515.22,Oxford Citizens Housing Association
http://statistics.data.gov.uk/id/local-authority/38,Oxfordshire County Council,Support at Home U65 Physical Support,5698,,12/10/2021,3111048409,515.4,Day & Night Care Assistance
http://statistics.data.gov.uk/id/local-authority/38,Oxfordshire County Council,Support at Home U65 Sensory Support,5899,Social Care - Direct Payments,26/10/2021,3111057369,515.52,Redacted Personal Data
http://statistics.data.gov.uk/id/local-authority/38,Oxfordshire County Council,Support at Home U65 Physical Support,5689,,12/10/2021,3111049091,515.6,Amber Healthcare Personnel Ltd
http://statistics.data.gov.uk/id/local-authority/38,Oxfordshire County Council,SEN TRANSPORT,4320,Pupil / Client Travel Reimbursement,16/10/2021,3111056243,515.76,Redacted Personal Data
http://statistics.data.gov.uk/id/local-authority/38,Oxfordshire County Council,Support at Home U65 Learning Disability,5690,,12/10/2021,3111049042,515.84,Turnstyle
http://statistics.data.gov.uk/id/local-authority/38,Oxfordshire County Council,Support at Home 65+ Learning Disability,5690,,12/10/2021,3111049147,515.84,Turnstyle
http://statistics.data.gov.uk/id/local-authority/38,Oxfordshire County Council,SEN TRANSPORT,4320,Pupil / Client Travel Reimbursement,16/10/2021,3111056246,515.9,Redacted Personal Data
http://statistics.data.gov.uk/id/local-authority/38,Oxfordshire County Council,SEN TRANSPORT,4320,Pupil / Client Travel Reimbursement,25/10/2021,3111056026,515.9,Redacted Personal Data
http://statistics.data.gov.uk/id/local-authority/38,Oxfordshire County Council,Support at Home 65+ Memory & Cognition,5693,,06/10/2021,3111044720,516,Care2Home Oxford
http://statistics.data.gov.uk/id/local-authority/38,Oxfordshire County Council,Support at Home 65+ Physical Support,5693,,08/10/2021,3111045402,516,Care2Home Oxford
http://statistics.data.gov.uk/id/local-authority/38,Oxfordshire County Council,GOVERNANCE,4625,"Newspapers, Periodicals and Publications",19/10/2021,2200917988,516,Herts For Learning Ltd
http://statistics.data.gov.uk/id/local-authority/38,Oxfordshire County Council,Support at Home 65+ Physical Support,5693,,08/10/2021,3111045475,516,Pioneering Care Bicester Limited
http://statistics.data.gov.uk/id/local-authority/38,Oxfordshire County Council,Support at Home 65+ Physical Support,5689,,12/10/2021,3111051075,516.31,PLL Care Services
http://statistics.data.gov.uk/id/local-authority/38,Oxfordshire County Council,Delegated Health Tasks  - Over 65,5689,,12/10/2021,3111050079,516.88,Oxfordshire Crossroads
http://statistics.data.gov.uk/id/local-authority/38,Oxfordshire County Council,Support at Home 65+ Physical Support,5689,,12/10/2021,3111051048,517.19,PLL Care Services
http://statistics.data.gov.uk/id/local-authority/38,Oxfordshire County Council,TRAINING MANAGEMENT,3100,Educational and Vocational Training,08/10/2021,2200914650,518,Premier Partnership
http://statistics.data.gov.uk/id/local-authority/38,Oxfordshire County Council,Support at Home U65 Physical Support,5689,,12/10/2021,3111049611,518.19,Care Outlook Ltd
http://statistics.data.gov.uk/id/local-authority/38,Oxfordshire County Council,Support at Home 65+ Physical Support,5689,,12/10/2021,3111050996,518.22,PLL Care Services
http://statistics.data.gov.uk/id/local-authority/38,Oxfordshire County Council,FOSTERING MAIN,5227,Other Transport Arrangements,05/10/2021,3111044387,518.26,Redacted Personal Data
http://statistics.data.gov.uk/id/local-authority/38,Oxfordshire County Council,Support at Home U65 Learning Disability,5899,Social Care - Direct Payments,26/10/2021,3111058264,518.32,Purple Conversation Com In Co (DP)
http://statistics.data.gov.uk/id/local-authority/38,Oxfordshire County Council,High Cost INMSS Placements,5537,Payments to Other Establishments,27/10/2021,3500079705,519,LVS Oxford
http://statistics.data.gov.uk/id/local-authority/38,Oxfordshire County Council,Support at Home 65+ Physical Support,5689,,12/10/2021,3111050279,519.84,Golden Services Care Ltd
http://statistics.data.gov.uk/id/local-authority/38,Oxfordshire County Council,Support at Home U65 Physical Support,5899,Social Care - Direct Payments,26/10/2021,3111058112,519.92,Purple Conversation Com In Co (DP)
http://statistics.data.gov.uk/id/local-authority/38,Oxfordshire County Council,SEN TRANSPORT,5227,Other Transport Arrangements,01/10/2021,3111043542,520,Faringdon Cars
http://statistics.data.gov.uk/id/local-authority/38,Oxfordshire County Council,Support at Home 65+ Physical Support,5697,,13/10/2021,3111052509,520,Headway Oxford
http://statistics.data.gov.uk/id/local-authority/38,Oxfordshire County Council,GOVERNANCE,7003,"Courses, Classes, Workshops and Clubs",18/10/2021,3111053526,520,Redacted Personal Data
http://statistics.data.gov.uk/id/local-authority/38,Oxfordshire County Council,CORONER,5202,Use of Mortuary Services,12/10/2021,2200915918,520,Oxford University Hospitals NHS Tru
http://statistics.data.gov.uk/id/local-authority/38,Oxfordshire County Council,SEN TRANSPORT,4330,Transport to School Activities,26/10/2021,3111056116,520,Oxon Transport Services Ltd
http://statistics.data.gov.uk/id/local-authority/38,Oxfordshire County Council,Support at Home 65+ Mental Health,5693,,08/10/2021,3111045501,520,Star Projections
http://statistics.data.gov.uk/id/local-authority/38,Oxfordshire County Council,FLEET COSTS,4270,HTM / Other Vehicle - Hire Charges,04/10/2021,2200912511,520,West Wallasey Fleet Hire Services
http://statistics.data.gov.uk/id/local-authority/38,Oxfordshire County Council,Support at Home 65+ Physical Support,5689,,12/10/2021,3111050459,520.47,Harino Care
http://statistics.data.gov.uk/id/local-authority/38,Oxfordshire County Council,Support at Home U65 Physical Support,5899,Social Care - Direct Payments,26/10/2021,3111058277,521.48,Purple Conversation Com In Co (DP)
http://statistics.data.gov.uk/id/local-authority/38,Oxfordshire County Council,Support at Home 65+ Physical Support,5899,Social Care - Direct Payments,26/10/2021,3111058253,521.96,Purple Conversation Com In Co (DP)
http://statistics.data.gov.uk/id/local-authority/38,Oxfordshire County Council,FLEET MAINTENANCE,4495,IT Software,04/10/2021,2200912743,522,C Track UK
http://statistics.data.gov.uk/id/local-authority/38,Oxfordshire County Council,RESPITE,4330,Transport to School Activities,01/10/2021,3111043610,522,OMC GLOBAL LIMITED
http://statistics.data.gov.uk/id/local-authority/38,Oxfordshire County Council,FOSTERING MAIN,5549,B*Fostering Allowance - Regulation 38,05/10/2021,3111044407,523,Redacted Personal Data
http://statistics.data.gov.uk/id/local-authority/38,Oxfordshire County Council,FOSTERING MAIN,5549,B*Fostering Allowance - Regulation 38,12/10/2021,3111048828,523,Redacted Personal Data
http://statistics.data.gov.uk/id/local-authority/38,Oxfordshire County Council,FOSTERING MAIN,5549,B*Fostering Allowance - Regulation 38,19/10/2021,3111053913,523,Redacted Personal Data
http://statistics.data.gov.uk/id/local-authority/38,Oxfordshire County Council,FOSTERING MAIN,5549,B*Fostering Allowance - Regulation 38,26/10/2021,3111056339,523,Redacted Personal Data
http://statistics.data.gov.uk/id/local-authority/38,Oxfordshire County Council,Support at Home 65+ Learning Disability,5899,Social Care - Direct Payments,26/10/2021,3111057921,523.08,Purple Conversation Com In Co (DP)
http://statistics.data.gov.uk/id/local-authority/38,Oxfordshire County Council,Support at Home 65+ Physical Support,5899,Social Care - Direct Payments,26/10/2021,3111058049,523.08,Purple Conversation Com In Co (DP)
http://statistics.data.gov.uk/id/local-authority/38,Oxfordshire County Council,Support at Home 65+ Physical Support,5689,,12/10/2021,3111049324,523.53,Care Outlook Ltd
http://statistics.data.gov.uk/id/local-authority/38,Oxfordshire County Council,Support at Home U65 HFA,5688,,12/10/2021,3111046133,523.59,The Laurels (Witney)
http://statistics.data.gov.uk/id/local-authority/38,Oxfordshire County Council,Support at Home 65+ Physical Support,5689,,12/10/2021,3111050614,523.7,Kare Plus Oxford
http://statistics.data.gov.uk/id/local-authority/38,Oxfordshire County Council,Support at Home U65 Learning Disability,5899,Social Care - Direct Payments,26/10/2021,3111057344,524,Redacted Personal Data
http://statistics.data.gov.uk/id/local-authority/38,Oxfordshire County Council,LANDLORD & TENANT,4001,Uniform Business Rates,28/10/2021,3500079841,524,South Oxfordshire District Council
http://statistics.data.gov.uk/id/local-authority/38,Oxfordshire County Council,Support at Home 65+ Physical Support,5698,,12/10/2021,3111049512,524.16,Oxford Private Care
http://statistics.data.gov.uk/id/local-authority/38,Oxfordshire County Council,Support at Home U65 Learning Disability,5697,,20/10/2021,3111054497,524.16,Stepping Stones
http://statistics.data.gov.uk/id/local-authority/38,Oxfordshire County Council,Support at Home 65+ Memory & Cognition,5689,,12/10/2021,3111050970,524.29,Pechiv Ltd
http://statistics.data.gov.uk/id/local-authority/38,Oxfordshire County Council,SEN TRANSPORT,5227,Other Transport Arrangements,05/10/2021,3111043871,525,Crown Cabs Travel Ltd
http://statistics.data.gov.uk/id/local-authority/38,Oxfordshire County Council,SEN TRANSPORT,5227,Other Transport Arrangements,05/10/2021,3111043873,525,Crown Cabs Travel Ltd
http://statistics.data.gov.uk/id/local-authority/38,Oxfordshire County Council,Support at Home 65+ Physical Support,4070,Cleaning services,21/10/2021,2200919185,525,Frazer's of Oxford Ltd
http://statistics.data.gov.uk/id/local-authority/38,Oxfordshire County Council,FOSTERING MAIN,5541,B*Foster Parents,12/10/2021,3111048804,525,Redacted Personal Data
http://statistics.data.gov.uk/id/local-authority/38,Oxfordshire County Council,FOSTERING MAIN,5541,B*Foster Parents,19/10/2021,3111053905,525,Redacted Personal Data
http://statistics.data.gov.uk/id/local-authority/38,Oxfordshire County Council,FOSTERING MAIN,5541,B*Foster Parents,26/10/2021,3111056336,525,Redacted Personal Data
http://statistics.data.gov.uk/id/local-authority/38,Oxfordshire County Council,LEGAL SERVICES,5251,Legal Costs,28/10/2021,2200920867,525,Joanne Clement
http://statistics.data.gov.uk/id/local-authority/38,Oxfordshire County Council,Family Solutions Plus Non-staff - South,5227,Other Transport Arrangements,07/10/2021,3111045102,525,Oxon Transport Services Ltd
http://statistics.data.gov.uk/id/local-authority/38,Oxfordshire County Council,Support at Home 65+ Physical Support,5696,,14/10/2021,3111052869,525.56,Radis Community Care
http://statistics.data.gov.uk/id/local-authority/38,Oxfordshire County Council,Support at Home U65 Learning Disability,5696,,28/10/2021,3111058696,525.67,Orders of St John Care Trust
http://statistics.data.gov.uk/id/local-authority/38,Oxfordshire County Council,Support at Home 65+ Physical Support,5696,,28/10/2021,3111058835,525.67,Orders of St John Care Trust
http://statistics.data.gov.uk/id/local-authority/38,Oxfordshire County Council,SEN TRANSPORT,5227,Other Transport Arrangements,01/10/2021,3111043645,525.7,OMC GLOBAL LIMITED
http://statistics.data.gov.uk/id/local-authority/38,Oxfordshire County Council,ECH Central Costs,5696,,12/10/2021,3111046037,526.03,BPHA Limited
http://statistics.data.gov.uk/id/local-authority/38,Oxfordshire County Council,Support at Home U65 Learning Disability,5690,,12/10/2021,3111048867,526.11,Oxford Wholefoods
http://statistics.data.gov.uk/id/local-authority/38,Oxfordshire County Council,Support at Home U65 Learning Disability,5899,Social Care - Direct Payments,26/10/2021,3111058019,526.28,Purple Conversation Com In Co (DP)
http://statistics.data.gov.uk/id/local-authority/38,Oxfordshire County Council,Support at Home U65 Physical Support,5899,Social Care - Direct Payments,26/10/2021,3111058260,526.28,Purple Conversation Com In Co (DP)
http://statistics.data.gov.uk/id/local-authority/38,Oxfordshire County Council,Support at Home U65 Learning Disability,5689,,12/10/2021,3111051068,527.42,PLL Care Services
http://statistics.data.gov.uk/id/local-authority/38,Oxfordshire County Council,SEN TRANSPORT,5227,Other Transport Arrangements,26/10/2021,3111056064,528,Banbury Taxis
http://statistics.data.gov.uk/id/local-authority/38,Oxfordshire County Council,SEN TRANSPORT,5227,Other Transport Arrangements,06/10/2021,3111045049,528,OMC GLOBAL LIMITED
http://statistics.data.gov.uk/id/local-authority/38,Oxfordshire County Council,Support at Home U65 Learning Disability,5697,,01/10/2021,3111043416,528.01,Guideposts Trust
http://statistics.data.gov.uk/id/local-authority/38,Oxfordshire County Council,Support at Home 65+ Physical Support,5698,,12/10/2021,3111049063,528.31,Day & Night Care Assistance
http://statistics.data.gov.uk/id/local-authority/38,Oxfordshire County Council,Support at Home U65 Learning Disability,5690,,12/10/2021,3111048563,528.51,ADVANCE HOUSING & SUPPORT LTD
http://statistics.data.gov.uk/id/local-authority/38,Oxfordshire County Council,Support at Home U65 MH OBC Contract,5696,,28/10/2021,3111058811,528.59,Orders of St John Care Trust
http://statistics.data.gov.uk/id/local-authority/38,Oxfordshire County Council,COVID-19 INFECTION CONTROL 4,5688,,08/10/2021,3111045643,528.97,Orders of St John Care Trust
http://statistics.data.gov.uk/id/local-authority/38,Oxfordshire County Council,CHC Fast Track - Sup at Homes - Over 65,5691,,12/10/2021,3111045786,529,Sue Ryder
http://statistics.data.gov.uk/id/local-authority/38,Oxfordshire County Council,Support at Home 65+ Physical Support,5689,,12/10/2021,3111050711,529.44,My Carer Ltd
http://statistics.data.gov.uk/id/local-authority/38,Oxfordshire County Council,Support at Home U65 Other /Soc Isolation,5899,Social Care - Direct Payments,26/10/2021,3111057910,529.48,Purple Conversation Com In Co (DP)
http://statistics.data.gov.uk/id/local-authority/38,Oxfordshire County Council,Community Operations Management,4625,"Newspapers, Periodicals and Publications",12/10/2021,2200915728,530.1,Tmp (Uk) Ltd
http://statistics.data.gov.uk/id/local-authority/38,Oxfordshire County Council,Support at Home 65+ Learning Disability,5696,,14/10/2021,3111052853,530.2,Housing&care21
http://statistics.data.gov.uk/id/local-authority/38,Oxfordshire County Council,Support at Home 65+ Mental Health,5698,,12/10/2021,3111049666,530.99,Oxford Private Care
http://statistics.data.gov.uk/id/local-authority/38,Oxfordshire County Council,MEADOWBROOK TRANSPT,4330,Transport to School Activities,28/10/2021,3111059199,531,The Oxfordshire Taxi Company Ltd T/
http://statistics.data.gov.uk/id/local-authority/38,Oxfordshire County Council,Support at Home U65 Physical Support,5899,Social Care - Direct Payments,26/10/2021,3111057862,531.08,Purple Conversation Com In Co (DP)
http://statistics.data.gov.uk/id/local-authority/38,Oxfordshire County Council,Support at Home U65 Learning Disability,5688,,12/10/2021,3111048354,531.52,Autism at Kingwood Limited
http://statistics.data.gov.uk/id/local-authority/38,Oxfordshire County Council,Support at Home U65 Other /Soc Isolation,5693,,08/10/2021,3111045504,531.76,Star Projections
http://statistics.data.gov.uk/id/local-authority/38,Oxfordshire County Council,Support at Home U65 HFA,5899,Social Care - Direct Payments,26/10/2021,3111058397,531.88,Purple Conversation Com In Co (DP)
http://statistics.data.gov.uk/id/local-authority/38,Oxfordshire County Council,SHARED LIVES,5365,Non-Staff Subsistence and Expenses,12/10/2021,3111045947,531.94,Redacted Personal Data
http://statistics.data.gov.uk/id/local-authority/38,Oxfordshire County Council,Support at Home 65+ Physical Support,5689,,12/10/2021,3111050704,532.33,My Carer Ltd
http://statistics.data.gov.uk/id/local-authority/38,Oxfordshire County Council,Early Help - Barton,5394,Other Expenses,11/10/2021,9300053049,532.88,OCC SS Oxford City Div 1 Cash
http://statistics.data.gov.uk/id/local-authority/38,Oxfordshire County Council,FOSTERING MAIN,5549,B*Fostering Allowance - Regulation 38,05/10/2021,3111044546,533,Redacted Personal Data
http://statistics.data.gov.uk/id/local-authority/38,Oxfordshire County Council,FOSTERING MAIN,5549,B*Fostering Allowance - Regulation 38,12/10/2021,3111049557,533,Redacted Personal Data
http://statistics.data.gov.uk/id/local-authority/38,Oxfordshire County Council,FOSTERING MAIN,5549,B*Fostering Allowance - Regulation 38,19/10/2021,3111054143,533,Redacted Personal Data
http://statistics.data.gov.uk/id/local-authority/38,Oxfordshire County Council,FOSTERING MAIN,5549,B*Fostering Allowance - Regulation 38,26/10/2021,3111056575,533,Redacted Personal Data
http://statistics.data.gov.uk/id/local-authority/38,Oxfordshire County Council,Support at Home 65+ Physical Support,5689,,12/10/2021,3111050788,533.44,Oasis Private Care Ltd
http://statistics.data.gov.uk/id/local-authority/38,Oxfordshire County Council,FOSTERING MAIN,5549,B*Fostering Allowance - Regulation 38,05/10/2021,3111044368,534,Redacted Personal Data
http://statistics.data.gov.uk/id/local-authority/38,Oxfordshire County Council,FOSTERING MAIN,5549,B*Fostering Allowance - Regulation 38,19/10/2021,3111053789,534,Redacted Personal Data
http://statistics.data.gov.uk/id/local-authority/38,Oxfordshire County Council,FOSTERING MAIN,5549,B*Fostering Allowance - Regulation 38,26/10/2021,3111056296,534,Redacted Personal Data
http://statistics.data.gov.uk/id/local-authority/38,Oxfordshire County Council,Support at Home 65+ Learning Disability,5693,,08/10/2021,3111045488,534,Pioneering Care Bicester Limited
http://statistics.data.gov.uk/id/local-authority/38,Oxfordshire County Council,FPT NORTH,4330,Transport to School Activities,05/10/2021,3111044551,534,Redacted Personal Data
http://statistics.data.gov.uk/id/local-authority/38,Oxfordshire County Council,Support at Home U65 Mental Health,5696,,01/10/2021,3111043398,534.05,1st Homecare (Oxford) Ltd
http://statistics.data.gov.uk/id/local-authority/38,Oxfordshire County Council,SEN TRANSPORT,4320,Pupil / Client Travel Reimbursement,25/10/2021,3111055954,534.18,Redacted Personal Data
http://statistics.data.gov.uk/id/local-authority/38,Oxfordshire County Council,Catering Management Soft FM,4060,Cleaning Materials,12/10/2021,2200915694,534.52,Nationwide Hygiene Supplies Ltd
http://statistics.data.gov.uk/id/local-authority/38,Oxfordshire County Council,Support at Home U65 Physical Support,5693,,20/10/2021,3111054521,534.82,GET CARE LIMITED
http://statistics.data.gov.uk/id/local-authority/38,Oxfordshire County Council,Support at Home U65 Learning Disability,5899,Social Care - Direct Payments,26/10/2021,3111057818,534.88,Purple Conversation Com In Co (DP)
http://statistics.data.gov.uk/id/local-authority/38,Oxfordshire County Council,Support at Home 65+ Physical Support,5686,,12/10/2021,3111047037,535,Orders of St John
http://statistics.data.gov.uk/id/local-authority/38,Oxfordshire County Council,FOSTERING MAIN,5541,B*Foster Parents,05/10/2021,3111044497,536,Redacted Personal Data
http://statistics.data.gov.uk/id/local-authority/38,Oxfordshire County Council,FOSTERING MAIN,5541,B*Foster Parents,05/10/2021,3111044498,536,Redacted Personal Data
http://statistics.data.gov.uk/id/local-authority/38,Oxfordshire County Council,FOSTERING MAIN,5541,B*Foster Parents,12/10/2021,3111049262,536,Redacted Personal Data
http://statistics.data.gov.uk/id/local-authority/38,Oxfordshire County Council,FOSTERING MAIN,5541,B*Foster Parents,12/10/2021,3111049268,536,Redacted Personal Data
http://statistics.data.gov.uk/id/local-authority/38,Oxfordshire County Council,FOSTERING MAIN,5541,B*Foster Parents,19/10/2021,3111054096,536,Redacted Personal Data
http://statistics.data.gov.uk/id/local-authority/38,Oxfordshire County Council,FOSTERING MAIN,5541,B*Foster Parents,19/10/2021,3111054097,536,Redacted Personal Data
http://statistics.data.gov.uk/id/local-authority/38,Oxfordshire County Council,FOSTERING MAIN,5541,B*Foster Parents,26/10/2021,3111056460,536,Redacted Personal Data
http://statistics.data.gov.uk/id/local-authority/38,Oxfordshire County Council,FOSTERING MAIN,5541,B*Foster Parents,26/10/2021,3111056462,536,Redacted Personal Data
http://statistics.data.gov.uk/id/local-authority/38,Oxfordshire County Council,Support at Home U65 Learning Disability,5899,Social Care - Direct Payments,26/10/2021,3111057398,536,Redacted Personal Data
http://statistics.data.gov.uk/id/local-authority/38,Oxfordshire County Council,Support at Home U65 Learning Disability,5227,Other Transport Arrangements,22/10/2021,3111055909,536,Henley Taxis Ltd
http://statistics.data.gov.uk/id/local-authority/38,Oxfordshire County Council,FOSTERING MAIN,5541,B*Foster Parents,05/10/2021,3111044500,536,Redacted Personal Data
http://statistics.data.gov.uk/id/local-authority/38,Oxfordshire County Council,FOSTERING MAIN,5541,B*Foster Parents,12/10/2021,3111049282,536,Redacted Personal Data
http://statistics.data.gov.uk/id/local-authority/38,Oxfordshire County Council,FOSTERING MAIN,5541,B*Foster Parents,19/10/2021,3111054099,536,Redacted Personal Data
http://statistics.data.gov.uk/id/local-authority/38,Oxfordshire County Council,FOSTERING MAIN,5541,B*Foster Parents,26/10/2021,3111056466,536,Redacted Personal Data
http://statistics.data.gov.uk/id/local-authority/38,Oxfordshire County Council,Support at Home U65 Physical Support,5899,Social Care - Direct Payments,26/10/2021,3111057383,536,Redacted Personal Data
http://statistics.data.gov.uk/id/local-authority/38,Oxfordshire County Council,LANDLORD & TENANT,4001,Uniform Business Rates,28/10/2021,3500079759,536,Oxford City Council
http://statistics.data.gov.uk/id/local-authority/38,Oxfordshire County Council,FOSTERING MAIN,5541,B*Foster Parents,05/10/2021,3111044588,536,Redacted Personal Data
http://statistics.data.gov.uk/id/local-authority/38,Oxfordshire County Council,FOSTERING MAIN,5541,B*Foster Parents,12/10/2021,3111049778,536,Redacted Personal Data
http://statistics.data.gov.uk/id/local-authority/38,Oxfordshire County Council,FOSTERING MAIN,5541,B*Foster Parents,19/10/2021,3111054226,536,Redacted Personal Data
http://statistics.data.gov.uk/id/local-authority/38,Oxfordshire County Council,FOSTERING MAIN,5541,B*Foster Parents,26/10/2021,3111056662,536,Redacted Personal Data
http://statistics.data.gov.uk/id/local-authority/38,Oxfordshire County Council,FOSTERING MAIN,5541,B*Foster Parents,05/10/2021,3111044607,536,Redacted Personal Data
http://statistics.data.gov.uk/id/local-authority/38,Oxfordshire County Council,FOSTERING MAIN,5541,B*Foster Parents,12/10/2021,3111049865,536,Redacted Personal Data
http://statistics.data.gov.uk/id/local-authority/38,Oxfordshire County Council,FOSTERING MAIN,5541,B*Foster Parents,19/10/2021,3111054256,536,Redacted Personal Data
http://statistics.data.gov.uk/id/local-authority/38,Oxfordshire County Council,FOSTERING MAIN,5541,B*Foster Parents,26/10/2021,3111056703,536,Redacted Personal Data
http://statistics.data.gov.uk/id/local-authority/38,Oxfordshire County Council,Support at Home U65 Learning Disability,5899,Social Care - Direct Payments,26/10/2021,3111057436,536,Redacted Personal Data
http://statistics.data.gov.uk/id/local-authority/38,Oxfordshire County Council,FLEET OPERATIONS,4210,Vehicles and Plant - Repairs and Main,11/10/2021,2200915049,536.08,London Hire
http://statistics.data.gov.uk/id/local-authority/38,Oxfordshire County Council,Support at Home U65 Physical Support,5689,,12/10/2021,3111050185,536.24,Elite Care Agency
http://statistics.data.gov.uk/id/local-authority/38,Oxfordshire County Council,AGENCY RESID - DISAB,5548,B*Fostering - Special Rates & Plus Amou,12/10/2021,3111048602,536.52,Redacted Personal Data
http://statistics.data.gov.uk/id/local-authority/38,Oxfordshire County Council,Support at Home 65+ Physical Support,5693,,06/10/2021,3111044790,536.75,SureCare Oxfordshire
http://statistics.data.gov.uk/id/local-authority/38,Oxfordshire County Council,Contingency Home Care,5689,,12/10/2021,3111050913,536.94,Oxford University Hospitals NHS FT
http://statistics.data.gov.uk/id/local-authority/38,Oxfordshire County Council,LEGAL BUDGET,5251,Legal Costs,08/10/2021,2200914708,538.16,Dr Gwen Adshead
http://statistics.data.gov.uk/id/local-authority/38,Oxfordshire County Council,Family Solutions Plus Non-staff - South,5227,Other Transport Arrangements,04/10/2021,3111043704,538.2,Ali's Cabs
http://statistics.data.gov.uk/id/local-authority/38,Oxfordshire County Council,REAL COST ALLOWANCES,5662,B*Christmas Allowance,05/10/2021,3111044625,538.21,Redacted Personal Data
http://statistics.data.gov.uk/id/local-authority/38,Oxfordshire County Council,LIBRARY COLLECTIONS,4539,"Books, DVDs and CDs",15/10/2021,3111053330,539.63,ASKEWS & HOLTS LIBRARY SERVICES LTD
http://statistics.data.gov.uk/id/local-authority/38,Oxfordshire County Council,Support at Home U65 Physical Support,5693,,14/10/2021,3111052827,539.84,Chamomile Care Ltd
http://statistics.data.gov.uk/id/local-authority/38,Oxfordshire County Council,Support at Home U65 Physical Support,5693,,06/10/2021,3111044751,539.96,Helping Hands
http://statistics.data.gov.uk/id/local-authority/38,Oxfordshire County Council,POST 16 SEN,5227,Other Transport Arrangements,22/10/2021,3111055900,540,A2B Castle Cars Ltd
http://statistics.data.gov.uk/id/local-authority/38,Oxfordshire County Council,POST 16 SEN,4330,Transport to School Activities,05/10/2021,3111043919,540,Ali's Cabs
http://statistics.data.gov.uk/id/local-authority/38,Oxfordshire County Council,COMMUNITY & ROAD SAFETY,3103,Other Training Courses and Qualification,07/10/2021,2200914176,540,Avanti Cycling
http://statistics.data.gov.uk/id/local-authority/38,Oxfordshire County Council,Support at Home U65 Physical Support,5697,,13/10/2021,3111052507,540,Headway Oxford
http://statistics.data.gov.uk/id/local-authority/38,Oxfordshire County Council,COMMUNITY & ROAD SAFETY,3103,Other Training Courses and Qualification,14/10/2021,2200916531,540,Outspoken Training LLP
http://statistics.data.gov.uk/id/local-authority/38,Oxfordshire County Council,SEN TRANSPORT,4330,Transport to School Activities,26/10/2021,3111056238,540,Oxon Transport Services Ltd
http://statistics.data.gov.uk/id/local-authority/38,Oxfordshire County Council,Support at Home U65 Learning Disability,5697,,01/10/2021,3111043424,540,Pennyhooks Farm Trust
http://statistics.data.gov.uk/id/local-authority/38,Oxfordshire County Council,Support at Home U65 MH OBC Contract,5689,,12/10/2021,3111049193,540.07,Bicester PA and Care LLP
http://statistics.data.gov.uk/id/local-authority/38,Oxfordshire County Council,Support at Home 65+ Physical Support,5693,,27/10/2021,3111058473,540.28,CARE & CARERS LTD
http://statistics.data.gov.uk/id/local-authority/38,Oxfordshire County Council,Support at Home 65+ Physical Support,5689,,12/10/2021,3111050317,540.37,Goldsmith Personnel Ltd
http://statistics.data.gov.uk/id/local-authority/38,Oxfordshire County Council,Urgent Response,5689,,12/10/2021,3111050144,540.8,Day and Nightcare Assistance
http://statistics.data.gov.uk/id/local-authority/38,Oxfordshire County Council,LD Continuing Care - Sup at Home - U65,5691,,01/10/2021,3111043444,540.96,THORNBURY NURSING SERVICES
http://statistics.data.gov.uk/id/local-authority/38,Oxfordshire County Council,Councillors Priorities Fund,4940,Other Services,21/10/2021,3111055319,541.92,Thame Senior Friendship Centre
http://statistics.data.gov.uk/id/local-authority/38,Oxfordshire County Council,Care Homes - Over 65 Memory & Cognition,5686,,12/10/2021,3111051756,542.06,Sotwell Hill House
http://statistics.data.gov.uk/id/local-authority/38,Oxfordshire County Council,Support at Home 65+ Physical Support,5696,,28/10/2021,3111058825,542.37,Orders of St John Care Trust
http://statistics.data.gov.uk/id/local-authority/38,Oxfordshire County Council,Contingency Home Care,5689,,12/10/2021,3111050905,542.39,Oxford University Hospitals NHS FT
http://statistics.data.gov.uk/id/local-authority/38,Oxfordshire County Council,FOSTERING MAIN,5227,Other Transport Arrangements,12/10/2021,3111049716,542.56,Redacted Personal Data
http://statistics.data.gov.uk/id/local-authority/38,Oxfordshire County Council,Independent Foster,5559,,06/10/2021,3111044883,542.8,Compass Fostering South East Ltd
http://statistics.data.gov.uk/id/local-authority/38,Oxfordshire County Council,Family Solutions Plus Non-staff - Centra,5227,Other Transport Arrangements,20/10/2021,3111055075,543,Phoenixx Cars Ltd
http://statistics.data.gov.uk/id/local-authority/38,Oxfordshire County Council,Support at Home U65 Learning Disability,5899,Social Care - Direct Payments,26/10/2021,3111057809,543.08,Purple Conversation Com In Co (DP)
http://statistics.data.gov.uk/id/local-authority/38,Oxfordshire County Council,Support at Home 65+ Physical Support,5899,Social Care - Direct Payments,26/10/2021,3111057974,543.08,Purple Conversation Com In Co (DP)
http://statistics.data.gov.uk/id/local-authority/38,Oxfordshire County Council,Support at Home U65 Learning Disability,5899,Social Care - Direct Payments,26/10/2021,3111058402,543.08,Purple Conversation Com In Co (DP)
http://statistics.data.gov.uk/id/local-authority/38,Oxfordshire County Council,Delegated Health Tasks  - Over 65,5691,,22/10/2021,3111055723,543.2,The Caring Company (Oxon)
http://statistics.data.gov.uk/id/local-authority/38,Oxfordshire County Council,SEN TRANSPORT,4320,Pupil / Client Travel Reimbursement,25/10/2021,3111055957,543.39,Redacted Personal Data
http://statistics.data.gov.uk/id/local-authority/38,Oxfordshire County Council,Support at Home 65+ Physical Support,5227,Other Transport Arrangements,11/10/2021,3111045687,544,Go Green Taxis
http://statistics.data.gov.uk/id/local-authority/38,Oxfordshire County Council,Support at Home 65+ Physical Support,5899,Social Care - Direct Payments,26/10/2021,3111057673,544,Redacted Personal Data
http://statistics.data.gov.uk/id/local-authority/38,Oxfordshire County Council,SEN TRANSPORT,4330,Transport to School Activities,13/10/2021,3111052765,544,Vine Community Services Ltd T/A
http://statistics.data.gov.uk/id/local-authority/38,Oxfordshire County Council,STREET SWEEPINGS,5227,Other Transport Arrangements,18/10/2021,2200917906,544.09,M & M Skip Hire Ltd
http://statistics.data.gov.uk/id/local-authority/38,Oxfordshire County Council,SM DISABILITIES,5554,Childrens' Social Care - Direct Payments,26/10/2021,3111057017,544.29,Redacted Personal Data
http://statistics.data.gov.uk/id/local-authority/38,Oxfordshire County Council,Support at Home U65 Physical Support,5696,,28/10/2021,3111058686,544.45,Orders of St John Care Trust
http://statistics.data.gov.uk/id/local-authority/38,Oxfordshire County Council,Support at Home 65+ Memory & Cognition,5689,,12/10/2021,3111051133,544.82,Prestige Nursing Ltd
http://statistics.data.gov.uk/id/local-authority/38,Oxfordshire County Council,Family Solutions Plus Non-staff - Centra,5227,Other Transport Arrangements,07/10/2021,3111045105,545,Oxon Transport Services Ltd
http://statistics.data.gov.uk/id/local-authority/38,Oxfordshire County Council,Support at Home 65+ Physical Support,5689,,12/10/2021,3111051026,545.82,PLL Care Services
http://statistics.data.gov.uk/id/local-authority/38,Oxfordshire County Council,HN IN SEC SCHOOLS,5537,Payments to Other Establishments,14/10/2021,3111052939,547,FUTURES INSTITUTE BANBURY
http://statistics.data.gov.uk/id/local-authority/38,Oxfordshire County Council,Support at Home U65 Physical Support,5899,Social Care - Direct Payments,26/10/2021,3111057930,547.2,Purple Conversation Com In Co (DP)
http://statistics.data.gov.uk/id/local-authority/38,Oxfordshire County Council,Support at Home 65+ Physical Support,5693,,20/10/2021,3111054573,547.4,XPERIENCE RECRUITMENT LIMITED
http://statistics.data.gov.uk/id/local-authority/38,Oxfordshire County Council,Support at Home 65+ Physical Support,5698,,12/10/2021,3111048491,547.67,Day & Night Care Assistance
http://statistics.data.gov.uk/id/local-authority/38,Oxfordshire County Council,Support at Home 65+ Physical Support,5689,,12/10/2021,3111049911,547.9,Caremark (West Oxfordshire & Cherwe
http://statistics.data.gov.uk/id/local-authority/38,Oxfordshire County Council,TREE MAINT OPS,5526,Payments to Private Contractors,22/10/2021,2200919699,548.11,THE OUTDOORS COMPANY
http://statistics.data.gov.uk/id/local-authority/38,Oxfordshire County Council,Support at Home 65+ Physical Support,5698,,12/10/2021,3111048648,548.13,Day & Night Care Assistance
http://statistics.data.gov.uk/id/local-authority/38,Oxfordshire County Council,Support at Home 65+ Physical Support,5689,,12/10/2021,3111051100,548.77,Prestige Nursing Ltd
http://statistics.data.gov.uk/id/local-authority/38,Oxfordshire County Council,Support at Home 65+ Physical Support,5689,,12/10/2021,3111050228,548.89,Genuine Carers Ltd
http://statistics.data.gov.uk/id/local-authority/38,Oxfordshire County Council,Support at Home 65+ Physical Support,5689,,12/10/2021,3111050416,548.89,Greigcare Home Service
http://statistics.data.gov.uk/id/local-authority/38,Oxfordshire County Council,COVID-19 INFECTION CONTROL 4,5688,,08/10/2021,3111045610,549.32,Countywide Caring Limited
http://statistics.data.gov.uk/id/local-authority/38,Oxfordshire County Council,Contingency Home Care,5689,,12/10/2021,3111050932,549.89,Oxford University Hospitals NHS FT
http://statistics.data.gov.uk/id/local-authority/38,Oxfordshire County Council,LEGAL SERVICES,5251,Legal Costs,19/10/2021,2200918225,550,Alex Perry
http://statistics.data.gov.uk/id/local-authority/38,Oxfordshire County Council,LEGAL SERVICES,5251,Legal Costs,28/10/2021,2200920799,550,Annie Sayers
http://statistics.data.gov.uk/id/local-authority/38,Oxfordshire County Council,MAINSTREAM-PRIMARY,4330,Transport to School Activities,04/10/2021,3111043770,550,Bicester Cars UK Ltd
http://statistics.data.gov.uk/id/local-authority/38,Oxfordshire County Council,POST 16 SEN,4330,Transport to School Activities,08/10/2021,3111045537,550,Bicester Cars UK Ltd
http://statistics.data.gov.uk/id/local-authority/38,Oxfordshire County Council,LEGAL SERVICES,5251,Legal Costs,12/10/2021,2200915510,550,Curtis Ball
http://statistics.data.gov.uk/id/local-authority/38,Oxfordshire County Council,SENDIASS,4495,IT Software,01/10/2021,2200912198,550,Dizions Limited
http://statistics.data.gov.uk/id/local-authority/38,Oxfordshire County Council,LEGAL SERVICES,5251,Legal Costs,28/10/2021,2200920797,550,Eleanor Howard
http://statistics.data.gov.uk/id/local-authority/38,Oxfordshire County Council,LEGAL SERVICES,5251,Legal Costs,22/10/2021,2200919717,550,Frances Harris
http://statistics.data.gov.uk/id/local-authority/38,Oxfordshire County Council,LEGAL SERVICES,5251,Legal Costs,15/10/2021,2200917293,550,Mavis Amonoo-Acquah
http://statistics.data.gov.uk/id/local-authority/38,Oxfordshire County Council,LEGAL SERVICES,5251,Legal Costs,12/10/2021,2200915813,550,Miss Anna Yarde
http://statistics.data.gov.uk/id/local-authority/38,Oxfordshire County Council,LEGAL SERVICES,5251,Legal Costs,28/10/2021,2200920707,550,Miss Anna Yarde
http://statistics.data.gov.uk/id/local-authority/38,Oxfordshire County Council,LEGAL SERVICES,5251,Legal Costs,19/10/2021,2200918500,550,Miss Justine Ramsden
http://statistics.data.gov.uk/id/local-authority/38,Oxfordshire County Council,LEGAL SERVICES,5251,Legal Costs,12/10/2021,2200915522,550,Ms Sian Cox
http://statistics.data.gov.uk/id/local-authority/38,Oxfordshire County Council,LEGAL SERVICES,5251,Legal Costs,14/10/2021,2200916808,550,Ms Sian Cox
http://statistics.data.gov.uk/id/local-authority/38,Oxfordshire County Council,LEGAL SERVICES,5251,Legal Costs,15/10/2021,2200917122,550,Ms Sian Cox
http://statistics.data.gov.uk/id/local-authority/38,Oxfordshire County Council,LEGAL SERVICES,5251,Legal Costs,29/10/2021,2200921075,550,Natasha Miller
http://statistics.data.gov.uk/id/local-authority/38,Oxfordshire County Council,LEGAL SERVICES,5251,Legal Costs,15/10/2021,2200917176,550,Oliver Powell (Harcourt)
http://statistics.data.gov.uk/id/local-authority/38,Oxfordshire County Council,LEGAL SERVICES,5251,Legal Costs,28/10/2021,2200920713,550,Oliver Powell (Harcourt)
http://statistics.data.gov.uk/id/local-authority/38,Oxfordshire County Council,CORPORATE SECURITY,4496,Equipment Maintenance Contracts,14/10/2021,2200916587,550,Securipol (Systems) Ltd
http://statistics.data.gov.uk/id/local-authority/38,Oxfordshire County Council,LEGAL SERVICES,5251,Legal Costs,28/10/2021,2200920844,550,Stephen Crispin
http://statistics.data.gov.uk/id/local-authority/38,Oxfordshire County Council,SEN TRANSPORT,4330,Transport to School Activities,28/10/2021,3111059191,550,The Oxfordshire Taxi Company Ltd T/
http://statistics.data.gov.uk/id/local-authority/38,Oxfordshire County Council,LEGAL SERVICES,5251,Legal Costs,12/10/2021,2200915760,550,Vicky Reynolds
http://statistics.data.gov.uk/id/local-authority/38,Oxfordshire County Council,LEGAL SERVICES,5251,Legal Costs,15/10/2021,2200917290,550,Vicky Reynolds
http://statistics.data.gov.uk/id/local-authority/38,Oxfordshire County Council,Support at Home 65+ Physical Support,5693,,20/10/2021,3111054562,550.08,Kwikfix Recruitment Services Ltd
http://statistics.data.gov.uk/id/local-authority/38,Oxfordshire County Council,Support at Home 65+ Mental Health,5899,Social Care - Direct Payments,26/10/2021,3111057932,551.08,Purple Conversation Com In Co (DP)
http://statistics.data.gov.uk/id/local-authority/38,Oxfordshire County Council,Support at Home U65 Other /Soc Isolation,5693,,01/10/2021,3111043395,551.1,MacIntyre Care (Womaston)
http://statistics.data.gov.uk/id/local-authority/38,Oxfordshire County Council,Support at Home U65 Sensory Support,5899,Social Care - Direct Payments,26/10/2021,3111057397,552,Redacted Personal Data
http://statistics.data.gov.uk/id/local-authority/38,Oxfordshire County Council,CHC Fast Track - Sup at Homes - Over 65,5691,,12/10/2021,3111045781,552,Sue Ryder
http://statistics.data.gov.uk/id/local-authority/38,Oxfordshire County Council,CHC Fast Track - Sup at Homes - Over 65,5691,,15/10/2021,3111053358,552,XPERIENCE RECRUITMENT LIMITED
http://statistics.data.gov.uk/id/local-authority/38,Oxfordshire County Council,Support at Home 65+ Physical Support,5689,,12/10/2021,3111050534,552.03,Home Helpers Care Ltd
http://statistics.data.gov.uk/id/local-authority/38,Oxfordshire County Council,SEN TRANSPORT,4330,Transport to School Activities,06/10/2021,3111044702,552.5,Phoenixx Cars Ltd
http://statistics.data.gov.uk/id/local-authority/38,Oxfordshire County Council,Swindon Adoption Support Fund,6500,Government Grants (Revenue),07/10/2021,2200914402,552.5,The Family Place
http://statistics.data.gov.uk/id/local-authority/38,Oxfordshire County Council,Support at Home 65+ Physical Support,5698,,12/10/2021,3111049828,552.55,Oxfordshire Crossroads
http://statistics.data.gov.uk/id/local-authority/38,Oxfordshire County Council,National Youth Advocacy Service,4835,Management Consultant Fees,13/10/2021,2200916392,553.66,National Youth Advocacy Service
http://statistics.data.gov.uk/id/local-authority/38,Oxfordshire County Council,Support at Home 65+ Physical Support,5689,,12/10/2021,3111050296,553.69,Goldsmith Personnel Ltd
http://statistics.data.gov.uk/id/local-authority/38,Oxfordshire County Council,TVERC,4861,Hired and Contracted Services,25/10/2021,2200920264,555,Rediscover Nature
http://statistics.data.gov.uk/id/local-authority/38,Oxfordshire County Council,SEN TRANSPORT,4330,Transport to School Activities,04/10/2021,3111043732,555,Schon Executive Cars Ltd
http://statistics.data.gov.uk/id/local-authority/38,Oxfordshire County Council,Food & Essential Supplies,4939,,19/10/2021,3111055001,555,The Propeller Academy Trust
http://statistics.data.gov.uk/id/local-authority/38,Oxfordshire County Council,Support at Home U65 Learning Disability,5689,,12/10/2021,3111050979,555.5,Pechiv Ltd
http://statistics.data.gov.uk/id/local-authority/38,Oxfordshire County Council,Support at Home U65 Physical Support,5693,,13/10/2021,3111052462,555.87,A CARING HAND LTD
http://statistics.data.gov.uk/id/local-authority/38,Oxfordshire County Council,Support at Home 65+ Physical Support,5693,,13/10/2021,3111052469,555.87,A CARING HAND LTD
http://statistics.data.gov.uk/id/local-authority/38,Oxfordshire County Council,Contingency Home Care,5689,,12/10/2021,3111050890,556.02,Oxford University Hospitals NHS FT
http://statistics.data.gov.uk/id/local-authority/38,Oxfordshire County Council,Support at Home U65 Learning Disability,5688,,12/10/2021,3111046860,556.38,SEEABILITY
http://statistics.data.gov.uk/id/local-authority/38,Oxfordshire County Council,Support at Home 65+ Physical Support,5689,,12/10/2021,3111049514,556.64,Care Outlook Ltd
http://statistics.data.gov.uk/id/local-authority/38,Oxfordshire County Council,Support at Home U65 Physical Support,5689,,12/10/2021,3111049616,557.09,Care Outlook Ltd
http://statistics.data.gov.uk/id/local-authority/38,Oxfordshire County Council,Care Homes - Over 65 Physical Sypport,5686,,12/10/2021,3111050108,557.14,CHURCHFIELDS CARE HOME
http://statistics.data.gov.uk/id/local-authority/38,Oxfordshire County Council,Support at Home U65 Learning Disability,5690,,12/10/2021,3111048609,557.42,Guideposts Trust
http://statistics.data.gov.uk/id/local-authority/38,Oxfordshire County Council,Support at Home U65 Learning Disability,5899,Social Care - Direct Payments,26/10/2021,3111057393,557.6,Redacted Personal Data
http://statistics.data.gov.uk/id/local-authority/38,Oxfordshire County Council,Support at Home 65+ Physical Support,5899,Social Care - Direct Payments,26/10/2021,3111057256,558.48,Redacted Personal Data
http://statistics.data.gov.uk/id/local-authority/38,Oxfordshire County Council,Family Solutions Plus Non-staff - South,4940,Other Services,20/10/2021,2200918689,558.6,Securipol Ltd
http://statistics.data.gov.uk/id/local-authority/38,Oxfordshire County Council,Family Solutions Plus Non-staff - South,4940,Other Services,27/10/2021,2200920530,558.6,Securipol Ltd
http://statistics.data.gov.uk/id/local-authority/38,Oxfordshire County Council,FOSTERING MAIN,5549,B*Fostering Allowance - Regulation 38,19/10/2021,3111054030,558.9,Redacted Personal Data
http://statistics.data.gov.uk/id/local-authority/38,Oxfordshire County Council,FOSTERING MAIN,5549,B*Fostering Allowance - Regulation 38,26/10/2021,3111056761,558.9,Redacted Personal Data
http://statistics.data.gov.uk/id/local-authority/38,Oxfordshire County Council,Support at Home 65+ Physical Support,5698,,12/10/2021,3111049051,559.65,Day & Night Care Assistance
http://statistics.data.gov.uk/id/local-authority/38,Oxfordshire County Council,SEN TRANSPORT,4330,Transport to School Activities,04/10/2021,3111043718,560,Ali's Cabs
http://statistics.data.gov.uk/id/local-authority/38,Oxfordshire County Council,Support at Home 65+ Physical Support,5899,Social Care - Direct Payments,26/10/2021,3111057275,560,Redacted Personal Data
http://statistics.data.gov.uk/id/local-authority/38,Oxfordshire County Council,CHC Fast Track - Sup at Home - Under 65,5691,,12/10/2021,3111045810,560,EveryCare (Oxford)
http://statistics.data.gov.uk/id/local-authority/38,Oxfordshire County Council,POST 16 SEN,4330,Transport to School Activities,28/10/2021,3111058892,560,Go Green Taxis
http://statistics.data.gov.uk/id/local-authority/38,Oxfordshire County Council,Support at Home 65+ Physical Support,5899,Social Care - Direct Payments,26/10/2021,3111057146,560,Redacted Personal Data
http://statistics.data.gov.uk/id/local-authority/38,Oxfordshire County Council,Swindon Adoption Support Fund,4859,Medical and Counselling Fees,07/10/2021,2200914395,560,Julie Lender-Swain
http://statistics.data.gov.uk/id/local-authority/38,Oxfordshire County Council,LD Continuing Care - Sup at Home - U65,5691,,12/10/2021,3111045804,560,KIT Mobility Taxis Oxford Ltd
http://statistics.data.gov.uk/id/local-authority/38,Oxfordshire County Council,SEN TRANSPORT,5227,Other Transport Arrangements,04/10/2021,3111043670,560,Oxfordshire Travel Ltd
http://statistics.data.gov.uk/id/local-authority/38,Oxfordshire County Council,POST 16 SEN,4330,Transport to School Activities,28/10/2021,3111058897,560,Oxon Transport Services Ltd
http://statistics.data.gov.uk/id/local-authority/38,Oxfordshire County Council,L&D CORE PROGRAMME,4615,Drugs and Medical Supplies,11/10/2021,2200915127,560,ST JOHN AMBULANCE
http://statistics.data.gov.uk/id/local-authority/38,Oxfordshire County Council,POST 16 SEN,5227,Other Transport Arrangements,22/10/2021,3111055917,560,STREAMLINE PEPPARD TAXIS LTD
http://statistics.data.gov.uk/id/local-authority/38,Oxfordshire County Council,Support at Home 65+ Physical Support,5899,Social Care - Direct Payments,26/10/2021,3111057225,560,Redacted Personal Data
http://statistics.data.gov.uk/id/local-authority/38,Oxfordshire County Council,Contingency Home Care,5689,,12/10/2021,3111050934,560.79,Oxford University Hospitals NHS FT
http://statistics.data.gov.uk/id/local-authority/38,Oxfordshire County Council,LANDLORD & TENANT,4001,Uniform Business Rates,28/10/2021,3500079810,561,West Oxfordshire District Council
http://statistics.data.gov.uk/id/local-authority/38,Oxfordshire County Council,LANDLORD & TENANT,4001,Uniform Business Rates,28/10/2021,3500079813,561,West Oxfordshire District Council
http://statistics.data.gov.uk/id/local-authority/38,Oxfordshire County Council,Support at Home 65+ Physical Support,5698,,12/10/2021,3111048524,561.04,Day & Night Care Assistance
http://statistics.data.gov.uk/id/local-authority/38,Oxfordshire County Council,Support at Home 65+ Physical Support,5698,,12/10/2021,3111049795,561.67,Oxfordshire Crossroads
http://statistics.data.gov.uk/id/local-authority/38,Oxfordshire County Council,PROCUREMENT,4232,Vehicle Fuel,18/10/2021,2200917690,561.7,Certas Energy UK Ltd
http://statistics.data.gov.uk/id/local-authority/38,Oxfordshire County Council,Support at Home 65+ Physical Support,5689,,12/10/2021,3111051083,561.98,Premier Personal Care
http://statistics.data.gov.uk/id/local-authority/38,Oxfordshire County Council,SM DISABILITIES,5554,Childrens' Social Care - Direct Payments,26/10/2021,3111057073,562.07,Purple Conversation Com In Co (DP)
http://statistics.data.gov.uk/id/local-authority/38,Oxfordshire County Council,Support at Home U65 Physical Support,5899,Social Care - Direct Payments,26/10/2021,3111057830,562.28,Purple Conversation Com In Co (DP)
http://statistics.data.gov.uk/id/local-authority/38,Oxfordshire County Council,Support at Home 65+ Physical Support,5689,,12/10/2021,3111050394,562.61,Greigcare Home Service
http://statistics.data.gov.uk/id/local-authority/38,Oxfordshire County Council,Support at Home 65+ Memory & Cognition,5693,,06/10/2021,3111044776,563.59,SureCare Oxfordshire
http://statistics.data.gov.uk/id/local-authority/38,Oxfordshire County Council,Support at Home 65+ Memory & Cognition,5693,,06/10/2021,3111044805,563.59,SureCare Oxfordshire
http://statistics.data.gov.uk/id/local-authority/38,Oxfordshire County Council,Support at Home U65 Learning Disability,5899,Social Care - Direct Payments,26/10/2021,3111058107,563.72,Purple Conversation Com In Co (DP)
http://statistics.data.gov.uk/id/local-authority/38,Oxfordshire County Council,Support at Home 65+ Physical Support,5689,,12/10/2021,3111050708,563.83,My Carer Ltd
http://statistics.data.gov.uk/id/local-authority/38,Oxfordshire County Council,Support at Home U65 Physical Support,5899,Social Care - Direct Payments,26/10/2021,3111057243,564,Redacted Personal Data
http://statistics.data.gov.uk/id/local-authority/38,Oxfordshire County Council,Support at Home U65 Learning Disability,5690,,12/10/2021,3111048927,564.2,Turnstyle
http://statistics.data.gov.uk/id/local-authority/38,Oxfordshire County Council,Support at Home U65 Learning Disability,5899,Social Care - Direct Payments,26/10/2021,3111058318,564.28,Purple Conversation Com In Co (DP)
http://statistics.data.gov.uk/id/local-authority/38,Oxfordshire County Council,Support at Home U65 Physical Support,5687,,12/10/2021,3111046396,565.14,Orders of St John
http://statistics.data.gov.uk/id/local-authority/38,Oxfordshire County Council,Support at Home 65+ Physical Support,5698,,12/10/2021,3111049689,565.25,Oxford Private Care
http://statistics.data.gov.uk/id/local-authority/38,Oxfordshire County Council,Support at Home U65 Learning Disability,5696,,28/10/2021,3111058819,565.33,Orders of St John Care Trust
http://statistics.data.gov.uk/id/local-authority/38,Oxfordshire County Council,CSB - COUNTY,5691,,05/10/2021,2200912999,565.62,JMC Care Solutions Limited
http://statistics.data.gov.uk/id/local-authority/38,Oxfordshire County Council,Support at Home U65 Learning Disability,5899,Social Care - Direct Payments,26/10/2021,3111057741,565.88,Redacted Personal Data
http://statistics.data.gov.uk/id/local-authority/38,Oxfordshire County Council,Community Support Service Oxford,2040,Agency Staff,28/10/2021,2200920683,567,Completely Care Ltd
http://statistics.data.gov.uk/id/local-authority/38,Oxfordshire County Council,Support at Home U65 Other /Soc Isolation,5696,,28/10/2021,3111058688,567,Orders of St John Care Trust
http://statistics.data.gov.uk/id/local-authority/38,Oxfordshire County Council,Support at Home 65+ Physical Support,5698,,12/10/2021,3111047827,567.23,Acquire Care Ltd
http://statistics.data.gov.uk/id/local-authority/38,Oxfordshire County Council,FOSTERING MAIN,5227,Other Transport Arrangements,05/10/2021,3111044404,567.83,Redacted Personal Data
http://statistics.data.gov.uk/id/local-authority/38,Oxfordshire County Council,Support at Home U65 HFA,5899,Social Care - Direct Payments,26/10/2021,3111057850,568.68,Purple Conversation Com In Co (DP)
http://statistics.data.gov.uk/id/local-authority/38,Oxfordshire County Council,Support at Home 65+ Physical Support,5689,,12/10/2021,3111050428,568.82,Greigcare Home Service
http://statistics.data.gov.uk/id/local-authority/38,Oxfordshire County Council,Support at Home U65 Learning Disability,5899,Social Care - Direct Payments,26/10/2021,3111058355,569.04,Purple Conversation Com In Co (DP)
http://statistics.data.gov.uk/id/local-authority/38,Oxfordshire County Council,Support at Home U65 Learning Disability,5690,,12/10/2021,3111048807,569.16,MacIntyre Care (Womaston)
http://statistics.data.gov.uk/id/local-authority/38,Oxfordshire County Council,Support at Home 65+ Learning Disability,5690,,12/10/2021,3111048827,569.16,MacIntyre Care (Womaston)
http://statistics.data.gov.uk/id/local-authority/38,Oxfordshire County Council,Support at Home U65 Learning Disability,5690,,12/10/2021,3111048836,569.16,MacIntyre Care (Womaston)
http://statistics.data.gov.uk/id/local-authority/38,Oxfordshire County Council,Support at Home U65 Learning Disability,5690,,12/10/2021,3111045980,569.47,Autism at Kingwood Limited
http://statistics.data.gov.uk/id/local-authority/38,Oxfordshire County Council,COVID-19 INFECTION CONTROL 4,5688,,08/10/2021,3111045607,569.66,CaringPlus Healthcare Services Ltd
http://statistics.data.gov.uk/id/local-authority/38,Oxfordshire County Council,SEN TRANSPORT,5227,Other Transport Arrangements,20/10/2021,3111055118,570,A2B Castle Cars Ltd
http://statistics.data.gov.uk/id/local-authority/38,Oxfordshire County Council,SEN TRANSPORT,5227,Other Transport Arrangements,04/10/2021,3111043778,570,Airport Transfers Banbury Ltd
http://statistics.data.gov.uk/id/local-authority/38,Oxfordshire County Council,POST 16 SEN,5227,Other Transport Arrangements,04/10/2021,3111044674,570,C&M Management Services Ltd
http://statistics.data.gov.uk/id/local-authority/38,Oxfordshire County Council,TRANSPORT COSTS,4330,Transport to School Activities,07/10/2021,3111045079,570,Oxon Transport Services Ltd
http://statistics.data.gov.uk/id/local-authority/38,Oxfordshire County Council,MUSIC UNALLOCABLE,3945,Rent,07/10/2021,2200914029,570,The Cherwell School
http://statistics.data.gov.uk/id/local-authority/38,Oxfordshire County Council,SEN TRANSPORT,5227,Other Transport Arrangements,18/10/2021,3111053475,570,Thunderbird Transport Ltd
http://statistics.data.gov.uk/id/local-authority/38,Oxfordshire County Council,SEN TRANSPORT,5227,Other Transport Arrangements,08/10/2021,3111045310,570,Town Cars
http://statistics.data.gov.uk/id/local-authority/38,Oxfordshire County Council,Support at Home 65+ Physical Support,5698,,12/10/2021,3111048462,570.26,Day & Night Care Assistance
http://statistics.data.gov.uk/id/local-authority/38,Oxfordshire County Council,Support at Home 65+ Physical Support,5689,,12/10/2021,3111048278,570.28,Charterville Care At Home Ltd
http://statistics.data.gov.uk/id/local-authority/38,Oxfordshire County Council,SM DISABILITIES,5554,Childrens' Social Care - Direct Payments,26/10/2021,3111057109,570.47,Purple Conversation Com In Co (DP)
http://statistics.data.gov.uk/id/local-authority/38,Oxfordshire County Council,ADOPTION ALLOWANCES,5664,B*Holiday Allowance,05/10/2021,3111043943,570.54,Redacted Personal Data
http://statistics.data.gov.uk/id/local-authority/38,Oxfordshire County Council,Support at Home U65 Learning Disability,5696,,28/10/2021,3111058850,570.94,Orders of St John Care Trust
http://statistics.data.gov.uk/id/local-authority/38,Oxfordshire County Council,SEN TRANSPORT,4320,Pupil / Client Travel Reimbursement,25/10/2021,3111056019,571.02,Redacted Personal Data
http://statistics.data.gov.uk/id/local-authority/38,Oxfordshire County Council,Support at Home U65 Learning Disability,5899,Social Care - Direct Payments,26/10/2021,3111057940,571.08,Purple Conversation Com In Co (DP)
http://statistics.data.gov.uk/id/local-authority/38,Oxfordshire County Council,Support at Home U65 Physical Support,5899,Social Care - Direct Payments,26/10/2021,3111058366,571.08,Purple Conversation Com In Co (DP)
http://statistics.data.gov.uk/id/local-authority/38,Oxfordshire County Council,Support at Home 65+ Memory & Cognition,5693,,14/10/2021,3111052815,571.23,CARE & CARERS LTD
http://statistics.data.gov.uk/id/local-authority/38,Oxfordshire County Council,Support at Home U65 Physical Support,5698,,12/10/2021,3111047863,571.4,Acquire Care Ltd
http://statistics.data.gov.uk/id/local-authority/38,Oxfordshire County Council,SM DISABILITIES,5554,Childrens' Social Care - Direct Payments,26/10/2021,3111056977,571.76,Redacted Personal Data
http://statistics.data.gov.uk/id/local-authority/38,Oxfordshire County Council,Support at Home U65 Learning Disability,5227,Other Transport Arrangements,21/10/2021,3111055521,572,BC CARS
http://statistics.data.gov.uk/id/local-authority/38,Oxfordshire County Council,Support at Home 65+ Memory & Cognition,5693,,13/10/2021,3111052492,572,BE WELL CARE LTD
http://statistics.data.gov.uk/id/local-authority/38,Oxfordshire County Council,Support at Home U65 Learning Disability,5899,Social Care - Direct Payments,26/10/2021,3111057247,572,Redacted Personal Data
http://statistics.data.gov.uk/id/local-authority/38,Oxfordshire County Council,Support at Home 65+ Memory & Cognition,5899,Social Care - Direct Payments,26/10/2021,3111057102,572,Redacted Personal Data
http://statistics.data.gov.uk/id/local-authority/38,Oxfordshire County Council,Support at Home 65+ Physical Support,5685,B*Cycle tracks,12/10/2021,3111046389,572.43,Orders of St John
http://statistics.data.gov.uk/id/local-authority/38,Oxfordshire County Council,AGENCY RESID - DISAB,5549,B*Fostering Allowance - Regulation 38,05/10/2021,3111044638,573,Redacted Personal Data
http://statistics.data.gov.uk/id/local-authority/38,Oxfordshire County Council,AGENCY RESID - DISAB,5549,B*Fostering Allowance - Regulation 38,12/10/2021,3111050000,573,Redacted Personal Data
http://statistics.data.gov.uk/id/local-authority/38,Oxfordshire County Council,AGENCY RESID - DISAB,5549,B*Fostering Allowance - Regulation 38,26/10/2021,3111056794,573,Redacted Personal Data
http://statistics.data.gov.uk/id/local-authority/38,Oxfordshire County Council,Support at Home 65+ Physical Support,5698,,12/10/2021,3111048331,573.95,Day & Night Care Assistance
http://statistics.data.gov.uk/id/local-authority/38,Oxfordshire County Council,LANDLORD & TENANT,4001,Uniform Business Rates,28/10/2021,3500079839,574,South Oxfordshire District Council
http://statistics.data.gov.uk/id/local-authority/38,Oxfordshire County Council,FOSTERING MAIN,5545,B*Fostering Enhancements - Level 2,05/10/2021,3111044482,575,Redacted Personal Data
http://statistics.data.gov.uk/id/local-authority/38,Oxfordshire County Council,FOSTERING MAIN,5545,B*Fostering Enhancements - Level 2,12/10/2021,3111049162,575,Redacted Personal Data
http://statistics.data.gov.uk/id/local-authority/38,Oxfordshire County Council,FOSTERING MAIN,5545,B*Fostering Enhancements - Level 2,19/10/2021,3111054068,575,Redacted Personal Data
http://statistics.data.gov.uk/id/local-authority/38,Oxfordshire County Council,FOSTERING MAIN,5545,B*Fostering Enhancements - Level 2,26/10/2021,3111056431,575,Redacted Personal Data
http://statistics.data.gov.uk/id/local-authority/38,Oxfordshire County Council,Support at Home 65+ Physical Support,5693,,08/10/2021,3111045434,575,Kwikfix Recruitment Services Ltd
http://statistics.data.gov.uk/id/local-authority/38,Oxfordshire County Council,SEN TRANSPORT,4330,Transport to School Activities,14/10/2021,3111053139,575,LINK SHIRES LTD
http://statistics.data.gov.uk/id/local-authority/38,Oxfordshire County Council,OXFORDSHIRE MUSEUM,5360,Exhibitions (Purchase/Hire/Production),13/10/2021,3111052447,575,OCC One Time Vendor
http://statistics.data.gov.uk/id/local-authority/38,Oxfordshire County Council,Support at Home 65+ Physical Support,5696,,28/10/2021,3111058845,575.63,Orders of St John Care Trust
http://statistics.data.gov.uk/id/local-authority/38,Oxfordshire County Council,COMM DRAWDOWN FUNDNG,8004,Design Consultant,14/10/2021,2200916629,575.7,AECOM Infrastructure & Environment
http://statistics.data.gov.uk/id/local-authority/38,Oxfordshire County Council,SM DISABILITIES,5554,Childrens' Social Care - Direct Payments,26/10/2021,3111057099,575.79,Purple Conversation Com In Co (DP)
http://statistics.data.gov.uk/id/local-authority/38,Oxfordshire County Council,SEN TRANSPORT,5227,Other Transport Arrangements,01/10/2021,3111043625,576,OMC GLOBAL LIMITED
http://statistics.data.gov.uk/id/local-authority/38,Oxfordshire County Council,SEN TRANSPORT,5227,Other Transport Arrangements,26/10/2021,3111056136,576,Oxon Transport Services Ltd
http://statistics.data.gov.uk/id/local-authority/38,Oxfordshire County Council,Support at Home 65+ Memory & Cognition,5689,,12/10/2021,3111050981,576.18,Pechiv Ltd
http://statistics.data.gov.uk/id/local-authority/38,Oxfordshire County Council,FOSTERING MAIN,5541,B*Foster Parents,05/10/2021,3111044517,577,Redacted Personal Data
http://statistics.data.gov.uk/id/local-authority/38,Oxfordshire County Council,FOSTERING MAIN,5541,B*Foster Parents,12/10/2021,3111049378,577,Redacted Personal Data
http://statistics.data.gov.uk/id/local-authority/38,Oxfordshire County Council,FOSTERING MAIN,5541,B*Foster Parents,19/10/2021,3111054112,577,Redacted Personal Data
http://statistics.data.gov.uk/id/local-authority/38,Oxfordshire County Council,FOSTERING MAIN,5541,B*Foster Parents,26/10/2021,3111056504,577,Redacted Personal Data
http://statistics.data.gov.uk/id/local-authority/38,Oxfordshire County Council,FOSTERING MAIN,5541,B*Foster Parents,05/10/2021,3111044412,577,Redacted Personal Data
http://statistics.data.gov.uk/id/local-authority/38,Oxfordshire County Council,FOSTERING MAIN,5541,B*Foster Parents,12/10/2021,3111048852,577,Redacted Personal Data
http://statistics.data.gov.uk/id/local-authority/38,Oxfordshire County Council,FOSTERING MAIN,5541,B*Foster Parents,19/10/2021,3111053922,577,Redacted Personal Data
http://statistics.data.gov.uk/id/local-authority/38,Oxfordshire County Council,FOSTERING MAIN,5541,B*Foster Parents,26/10/2021,3111056344,577,Redacted Personal Data
http://statistics.data.gov.uk/id/local-authority/38,Oxfordshire County Council,FOSTERING MAIN,5227,Other Transport Arrangements,12/10/2021,3111048533,577.26,Redacted Personal Data
http://statistics.data.gov.uk/id/local-authority/38,Oxfordshire County Council,Support at Home 65+ Memory & Cognition,5696,,28/10/2021,3111058871,577.31,Orders of St John Care Trust
http://statistics.data.gov.uk/id/local-authority/38,Oxfordshire County Council,Support at Home 65+ Physical Support,5696,,28/10/2021,3111058872,577.31,Orders of St John Care Trust
http://statistics.data.gov.uk/id/local-authority/38,Oxfordshire County Council,LD Continuing Care - Sup at Home - U65,5691,,21/10/2021,3111055239,577.44,THORNBURY NURSING SERVICES
http://statistics.data.gov.uk/id/local-authority/38,Oxfordshire County Council,AIDS & ADPT TEAM,4450,Disability Aids and Equipment,29/10/2021,2200920912,577.5,Oxford University Hospitals NHS Tru
http://statistics.data.gov.uk/id/local-authority/38,Oxfordshire County Council,AIDS & ADPT TEAM,4450,Disability Aids and Equipment,29/10/2021,2200920920,577.5,Oxford University Hospitals NHS Tru
http://statistics.data.gov.uk/id/local-authority/38,Oxfordshire County Council,Support at Home U65 HFA,5899,Social Care - Direct Payments,26/10/2021,3111057864,577.6,Purple Conversation Com In Co (DP)
http://statistics.data.gov.uk/id/local-authority/38,Oxfordshire County Council,VACANT PROPERTY,4000,Council Tax,28/10/2021,3500079757,578,Oxford City Council
http://statistics.data.gov.uk/id/local-authority/38,Oxfordshire County Council,Support at Home 65+ Physical Support,5689,,12/10/2021,3111050630,578.54,Kare Plus Oxford
http://statistics.data.gov.uk/id/local-authority/38,Oxfordshire County Council,GYPSY & TRAVELLER SV,3951,Non System - Electricity,07/10/2021,2200913988,578.63,EDF Energy Customers Ltd
http://statistics.data.gov.uk/id/local-authority/38,Oxfordshire County Council,Support at Home U65 Learning Disability,5690,,12/10/2021,3111048969,580.32,Turnstyle
http://statistics.data.gov.uk/id/local-authority/38,Oxfordshire County Council,Support at Home 65+ Memory & Cognition,5689,,12/10/2021,3111050950,580.86,Pechiv Ltd
http://statistics.data.gov.uk/id/local-authority/38,Oxfordshire County Council,Support at Home U65 Learning Disability,5688,,12/10/2021,3111046461,580.94,Mencap Contracts
http://statistics.data.gov.uk/id/local-authority/38,Oxfordshire County Council,Support at Home U65 Learning Disability,5688,,12/10/2021,3111046463,580.94,Mencap Contracts
http://statistics.data.gov.uk/id/local-authority/38,Oxfordshire County Council,Support at Home 65+ Learning Disability,5688,,12/10/2021,3111047875,580.94,The Brandon Trust
http://statistics.data.gov.uk/id/local-authority/38,Oxfordshire County Council,AGENCY RESID - DISAB,5532,B*Fostering - Loan Equipment,05/10/2021,3111044580,581,Redacted Personal Data
http://statistics.data.gov.uk/id/local-authority/38,Oxfordshire County Council,Support at Home 65+ Memory & Cognition,5686,,12/10/2021,3111047433,581.14,OSJ Contract - Stirlings
http://statistics.data.gov.uk/id/local-authority/38,Oxfordshire County Council,Support at Home 65+ Physical Support,5689,,12/10/2021,3111050690,581.21,My Carer Ltd
http://statistics.data.gov.uk/id/local-authority/38,Oxfordshire County Council,CONTRACEPTION,4934,,12/10/2021,3111056950,581.45,Boots the Chemist
http://statistics.data.gov.uk/id/local-authority/38,Oxfordshire County Council,Community Support Service Banbury,4232,Vehicle Fuel,06/10/2021,2200913689,581.52,Allstar Business Solutions Ltd
http://statistics.data.gov.uk/id/local-authority/38,Oxfordshire County Council,Support at Home U65 Learning Disability,5899,Social Care - Direct Payments,26/10/2021,3111057211,581.92,Redacted Personal Data
http://statistics.data.gov.uk/id/local-authority/38,Oxfordshire County Council,Planned preventative Maintenance,3787,Premises Repairs,04/10/2021,2200912663,582,BI-FOLD ROLFE LTD
http://statistics.data.gov.uk/id/local-authority/38,Oxfordshire County Council,Continuing Care - Support at Home - 65+,5691,,22/10/2021,3111055772,583.1,JMC Care Solutions Limited
http://statistics.data.gov.uk/id/local-authority/38,Oxfordshire County Council,SEN TRANSPORT,5227,Other Transport Arrangements,26/10/2021,3111056062,583.2,Banbury Taxis
http://statistics.data.gov.uk/id/local-authority/38,Oxfordshire County Council,LEGAL SERVICES,5251,Legal Costs,15/10/2021,2200917198,583.33,Annie Sayers
http://statistics.data.gov.uk/id/local-authority/38,Oxfordshire County Council,SHARED LIVES,5555,Payments to Carers,12/10/2021,3111045943,583.94,Redacted Personal Data
http://statistics.data.gov.uk/id/local-authority/38,Oxfordshire County Council,CAP CHRGES-PRIM SCHS,8102,Payments to main contractor,13/10/2021,2200916076,585,Gardner Mechanical Services Ltd
http://statistics.data.gov.uk/id/local-authority/38,Oxfordshire County Council,Support at Home 65+ Physical Support,5899,Social Care - Direct Payments,26/10/2021,3111057470,585,Redacted Personal Data
http://statistics.data.gov.uk/id/local-authority/38,Oxfordshire County Council,SEN Alternative Provision,4861,Hired and Contracted Services,19/10/2021,2200918401,585,Targeted Provision
http://statistics.data.gov.uk/id/local-authority/38,Oxfordshire County Council,Swindon Adoption Support Fund,6500,Government Grants (Revenue),07/10/2021,2200914404,585,The Family Place
http://statistics.data.gov.uk/id/local-authority/38,Oxfordshire County Council,Support at Home 65+ Physical Support,5227,Other Transport Arrangements,28/10/2021,3111059143,585,The Oxfordshire Taxi Company Ltd T/
http://statistics.data.gov.uk/id/local-authority/38,Oxfordshire County Council,Food & Essential Supplies,4939,,19/10/2021,3111054958,585,UTC Oxfordshire
http://statistics.data.gov.uk/id/local-authority/38,Oxfordshire County Council,Support at Home U65 Physical Support,5689,,12/10/2021,3111049669,586.07,Care Outlook Ltd
http://statistics.data.gov.uk/id/local-authority/38,Oxfordshire County Council,Continuing Care - Care Homes - 65+,5687,,12/10/2021,3111048372,586.16,METHODIST HOMES
http://statistics.data.gov.uk/id/local-authority/38,Oxfordshire County Council,MUSEUMS COLLECTIONS,4111,Security Costs,19/10/2021,2200918339,586.5,Contact Security
http://statistics.data.gov.uk/id/local-authority/38,Oxfordshire County Council,Support at Home U65 Learning Disability,5899,Social Care - Direct Payments,26/10/2021,3111057474,586.56,Redacted Personal Data
http://statistics.data.gov.uk/id/local-authority/38,Oxfordshire County Council,Support at Home U65 Physical Support,5696,,28/10/2021,3111058867,586.7,Orders of St John Care Trust
http://statistics.data.gov.uk/id/local-authority/38,Oxfordshire County Council,Support at Home U65 Mental Health,5899,Social Care - Direct Payments,26/10/2021,3111057776,587.08,Purple Conversation Com In Co (DP)
http://statistics.data.gov.uk/id/local-authority/38,Oxfordshire County Council,FOSTERING MAIN,5545,B*Fostering Enhancements - Level 2,26/10/2021,3111056613,587.9,Redacted Personal Data
http://statistics.data.gov.uk/id/local-authority/38,Oxfordshire County Council,Support at Home U65 Physical Support,5689,,12/10/2021,3111050409,588.37,Greigcare Home Service
http://statistics.data.gov.uk/id/local-authority/38,Oxfordshire County Council,TRANSPORT,5227,Other Transport Arrangements,27/10/2021,2200920516,588.39,FCC Environment (UK) Ltd
http://statistics.data.gov.uk/id/local-authority/38,Oxfordshire County Council,SEN TRANSPORT,5227,Other Transport Arrangements,25/10/2021,3111055960,588.42,24/7 LTD
http://statistics.data.gov.uk/id/local-authority/38,Oxfordshire County Council,COVID-19 INFECTION CONTROL 4,5688,,05/10/2021,3111043840,588.53,A CARING HAND LTD
http://statistics.data.gov.uk/id/local-authority/38,Oxfordshire County Council,Support at Home 65+ Physical Support,5689,,12/10/2021,3111050382,588.75,Greigcare Home Service
http://statistics.data.gov.uk/id/local-authority/38,Oxfordshire County Council,FOSTERING MAIN,5227,Other Transport Arrangements,26/10/2021,3111056464,588.87,Redacted Personal Data
http://statistics.data.gov.uk/id/local-authority/38,Oxfordshire County Council,Planned preventative Maintenance,3787,Premises Repairs,06/10/2021,2200913774,589,Barker & Evans Ltd
http://statistics.data.gov.uk/id/local-authority/38,Oxfordshire County Council,Contingency Home Care,5689,,12/10/2021,3111050806,589.41,OXFORD HEALTH NHS FOUNDATION TRUST
http://statistics.data.gov.uk/id/local-authority/38,Oxfordshire County Council,Support at Home 65+ Physical Support,5689,,12/10/2021,3111050171,589.52,Elite Care Agency
http://statistics.data.gov.uk/id/local-authority/38,Oxfordshire County Council,Support at Home 65+ Physical Support,5689,,12/10/2021,3111051062,589.56,PLL Care Services
http://statistics.data.gov.uk/id/local-authority/38,Oxfordshire County Council,COVID-19 INFECTION CONTROL 4,5688,,08/10/2021,3111045631,590.01,Kare Plus Oxford
http://statistics.data.gov.uk/id/local-authority/38,Oxfordshire County Council,FLEET OPERATIONS,4685,Clothing and Uniforms,11/10/2021,2200915287,590.15,South East Workwear Ltd
http://statistics.data.gov.uk/id/local-authority/38,Oxfordshire County Council,FOSTERING MAIN,5227,Other Transport Arrangements,26/10/2021,3111056533,590.19,Redacted Personal Data
http://statistics.data.gov.uk/id/local-authority/38,Oxfordshire County Council,Support at Home 65+ Physical Support,5689,,12/10/2021,3111050599,590.32,Home Helpers Care Ltd
http://statistics.data.gov.uk/id/local-authority/38,Oxfordshire County Council,Support at Home U65 Physical Support,5696,,28/10/2021,3111058690,590.47,Orders of St John Care Trust
http://statistics.data.gov.uk/id/local-authority/38,Oxfordshire County Council,Support at Home 65+ Mental Health,5899,Social Care - Direct Payments,26/10/2021,3111057401,591,Redacted Personal Data
http://statistics.data.gov.uk/id/local-authority/38,Oxfordshire County Council,Support at Home 65+ Physical Support,5689,,12/10/2021,3111050516,591.43,Home Helpers Care Ltd
http://statistics.data.gov.uk/id/local-authority/38,Oxfordshire County Council,LEGAL SERVICES,5251,Legal Costs,28/10/2021,2200920826,591.67,Vicky Reynolds
http://statistics.data.gov.uk/id/local-authority/38,Oxfordshire County Council,Support at Home 65+ Learning Disability,5690,,12/10/2021,3111049176,592.1,Style Acre
http://statistics.data.gov.uk/id/local-authority/38,Oxfordshire County Council,Support at Home 65+ Mental Health,5689,,12/10/2021,3111050466,592.18,Harino Care
http://statistics.data.gov.uk/id/local-authority/38,Oxfordshire County Council,Support at Home 65+ Physical Support,5689,,12/10/2021,3111049569,592.63,Care Outlook Ltd
http://statistics.data.gov.uk/id/local-authority/38,Oxfordshire County Council,Delegated Health Tasks  - Over 65,5691,,19/10/2021,3111054451,593.05,Bluebird Care
http://statistics.data.gov.uk/id/local-authority/38,Oxfordshire County Council,LIBRARY COLLECTIONS,4539,"Books, DVDs and CDs",28/10/2021,2200920834,593.61,LATITUDE MAPPING LIMITED
http://statistics.data.gov.uk/id/local-authority/38,Oxfordshire County Council,Support at Home 65+ Physical Support,5899,Social Care - Direct Payments,26/10/2021,3111058003,594.52,Purple Conversation Com In Co (DP)
http://statistics.data.gov.uk/id/local-authority/38,Oxfordshire County Council,TRANSPORT COSTS,4330,Transport to School Activities,04/10/2021,3111043753,595,Unitaxi Ltd
http://statistics.data.gov.uk/id/local-authority/38,Oxfordshire County Council,Community Support Service - Abingdon,2040,Agency Staff,11/10/2021,2200915259,595.35,Completely Care Ltd
http://statistics.data.gov.uk/id/local-authority/38,Oxfordshire County Council,POST 16 SEN,4330,Transport to School Activities,28/10/2021,3111058882,596,Bicester Cars UK Ltd
http://statistics.data.gov.uk/id/local-authority/38,Oxfordshire County Council,Support at Home U65 Physical Support,5899,Social Care - Direct Payments,26/10/2021,3111057571,596,Redacted Personal Data
http://statistics.data.gov.uk/id/local-authority/38,Oxfordshire County Council,FOSTERING MAIN,5227,Other Transport Arrangements,05/10/2021,3111044354,596.49,Redacted Personal Data
http://statistics.data.gov.uk/id/local-authority/38,Oxfordshire County Council,Support at Home U65 MH OBC Contract,5689,,12/10/2021,3111051164,596.7,Response Organisation
http://statistics.data.gov.uk/id/local-authority/38,Oxfordshire County Council,Support at Home U65 Physical Support,5689,,12/10/2021,3111050984,597.18,PLL Care Services
http://statistics.data.gov.uk/id/local-authority/38,Oxfordshire County Council,Support at Home 65+ Memory & Cognition,5685,B*Cycle tracks,12/10/2021,3111048000,597.94,Vale House
http://statistics.data.gov.uk/id/local-authority/38,Oxfordshire County Council,Support at Home 65+ Physical Support,5693,,13/10/2021,3111052504,598,BE WELL CARE LTD
http://statistics.data.gov.uk/id/local-authority/38,Oxfordshire County Council,SEN TRANSPORT,5227,Other Transport Arrangements,11/10/2021,3111045737,598.25,My Cabbie LTD t/a J and A Transport
http://statistics.data.gov.uk/id/local-authority/38,Oxfordshire County Council,Contingency Home Care,5689,,12/10/2021,3111050836,598.27,Oxford University Hospitals NHS FT
http://statistics.data.gov.uk/id/local-authority/38,Oxfordshire County Council,SM DISABILITIES,5554,Childrens' Social Care - Direct Payments,26/10/2021,3111057025,598.71,Redacted Personal Data
http://statistics.data.gov.uk/id/local-authority/38,Oxfordshire County Council,FLEET OPERATIONS,4531,Materials,04/10/2021,2200912787,598.8,LSW Workshop Supplies Ltd
http://statistics.data.gov.uk/id/local-authority/38,Oxfordshire County Council,Support at Home U65 Physical Support,5899,Social Care - Direct Payments,26/10/2021,3111057813,599.08,Purple Conversation Com In Co (DP)
http://statistics.data.gov.uk/id/local-authority/38,Oxfordshire County Council,Support at Home 65+ Physical Support,5689,,12/10/2021,3111049907,599.74,Caremark (West Oxfordshire & Cherwe
http://statistics.data.gov.uk/id/local-authority/38,Oxfordshire County Council,SEN TRANSPORT,4320,Pupil / Client Travel Reimbursement,16/10/2021,3111056239,599.83,Redacted Personal Data
http://statistics.data.gov.uk/id/local-authority/38,Oxfordshire County Council,Continuing Care - Support at Home - U65,5691,,22/10/2021,3111055783,599.92,Home Helpers Care Ltd
http://statistics.data.gov.uk/id/local-authority/38,Oxfordshire County Council,,1308,Teacher - Superannuation Employers,13/10/2021,3111052582,599.96,TEACHERS PENSION AGENCY
http://statistics.data.gov.uk/id/local-authority/38,Oxfordshire County Council,SEN TRANSPORT,5227,Other Transport Arrangements,19/10/2021,3111054178,600,1St Taxis
http://statistics.data.gov.uk/id/local-authority/38,Oxfordshire County Council,BROADBAND PROJECT,5668,Technical and Professional Consultant F,05/10/2021,2200913078,600,Agile Collective Ltd
http://statistics.data.gov.uk/id/local-authority/38,Oxfordshire County Council,LIABILITY,3257,,04/10/2021,3111043656,600,Blake Morgan LLP
http://statistics.data.gov.uk/id/local-authority/38,Oxfordshire County Council,SEN TRANSPORT,5227,Other Transport Arrangements,05/10/2021,3111043889,600,Chauffeur Executives Oxford Limited
http://statistics.data.gov.uk/id/local-authority/38,Oxfordshire County Council,Support at Home U65 Learning Disability,5227,Other Transport Arrangements,05/10/2021,3111043893,600,Chauffeur Executives Oxford Limited
http://statistics.data.gov.uk/id/local-authority/38,Oxfordshire County Council,LEGAL SERVICES,5251,Legal Costs,12/10/2021,2200915803,600,Curtis Ball
http://statistics.data.gov.uk/id/local-authority/38,Oxfordshire County Council,MAINSTREAM-PRIMARY,4330,Transport to School Activities,20/10/2021,3111055141,600,Eagle Taxi
http://statistics.data.gov.uk/id/local-authority/38,Oxfordshire County Council,SEN TRANSPORT,4330,Transport to School Activities,20/10/2021,3111055142,600,Eagle Taxi
http://statistics.data.gov.uk/id/local-authority/38,Oxfordshire County Council,Family Solutions Plus Non-staff - North,5227,Other Transport Arrangements,25/10/2021,3111055981,600,Excelsior Taxis Ltd
http://statistics.data.gov.uk/id/local-authority/38,Oxfordshire County Council,SEN TRANSPORT,5227,Other Transport Arrangements,11/10/2021,3111045748,600,Grove Cabs
http://statistics.data.gov.uk/id/local-authority/38,Oxfordshire County Council,SEN TRANSPORT,5227,Other Transport Arrangements,08/10/2021,3111045547,600,J & B Cars Ltd
http://statistics.data.gov.uk/id/local-authority/38,Oxfordshire County Council,LEGAL SERVICES,5251,Legal Costs,12/10/2021,2200915785,600,Mavis Amonoo-Acquah
http://statistics.data.gov.uk/id/local-authority/38,Oxfordshire County Council,LEGAL SERVICES,5251,Legal Costs,14/10/2021,2200916845,600,Natasha Miller
http://statistics.data.gov.uk/id/local-authority/38,Oxfordshire County Council,OXFORD LOCALITY,5380,"Author, Speaker and Lecturer Fees",15/10/2021,2200917331,600,Oxford City Council
http://statistics.data.gov.uk/id/local-authority/38,Oxfordshire County Council,CORPORATE SECURITY,4531,Materials,04/10/2021,2200912660,600,Oxford Security Services Ltd
http://statistics.data.gov.uk/id/local-authority/38,Oxfordshire County Council,SEN TRANSPORT,5227,Other Transport Arrangements,26/10/2021,3111056085,600,Oxon Transport Services Ltd
http://statistics.data.gov.uk/id/local-authority/38,Oxfordshire County Council,SEN TRANSPORT,5227,Other Transport Arrangements,26/10/2021,3111056214,600,Oxon Transport Services Ltd
http://statistics.data.gov.uk/id/local-authority/38,Oxfordshire County Council,POST 16 SEN,4330,Transport to School Activities,28/10/2021,3111058900,600,Oxon Transport Services Ltd
http://statistics.data.gov.uk/id/local-authority/38,Oxfordshire County Council,SEN TRANSPORT,5227,Other Transport Arrangements,18/10/2021,3111053483,600,Phoenixx Cars Ltd
http://statistics.data.gov.uk/id/local-authority/38,Oxfordshire County Council,Vulnerable Learners,5380,"Author, Speaker and Lecturer Fees",29/10/2021,2200920994,600,S Jane Evans
http://statistics.data.gov.uk/id/local-authority/38,Oxfordshire County Council,FAM GRP CONFERENCES,4940,Other Services,11/10/2021,2200915366,600,Sharon Peart
http://statistics.data.gov.uk/id/local-authority/38,Oxfordshire County Council,LEGAL SERVICES,5251,Legal Costs,28/10/2021,2200920835,600,Stephen Crispin
http://statistics.data.gov.uk/id/local-authority/38,Oxfordshire County Council,Delegated Health Tasks  - Over 65,5691,,22/10/2021,3111055722,600,The Caring Company (Oxon)
http://statistics.data.gov.uk/id/local-authority/38,Oxfordshire County Council,SEN TRANSPORT,4330,Transport to School Activities,28/10/2021,3111059216,600,The Oxfordshire Taxi Company Ltd T/
http://statistics.data.gov.uk/id/local-authority/38,Oxfordshire County Council,SEN TRANSPORT,5227,Other Transport Arrangements,28/10/2021,3111059227,600,The Oxfordshire Taxi Company Ltd T/
http://statistics.data.gov.uk/id/local-authority/38,Oxfordshire County Council,ICT Operations & Maintenance,4494,Purchase of IT Equipment,04/10/2021,2200912783,600,TOTAL COMPUTERS NETWORK LTD
http://statistics.data.gov.uk/id/local-authority/38,Oxfordshire County Council,SEN TRANSPORT,5227,Other Transport Arrangements,08/10/2021,3111045306,600,Unitaxi Ltd
http://statistics.data.gov.uk/id/local-authority/38,Oxfordshire County Council,LEGAL SERVICES,5251,Legal Costs,14/10/2021,2200916751,600,Vicky Reynolds
http://statistics.data.gov.uk/id/local-authority/38,Oxfordshire County Council,Support at Home U65 Learning Disability,5690,,12/10/2021,3111049241,600.87,Style Acre
http://statistics.data.gov.uk/id/local-authority/38,Oxfordshire County Council,Support at Home U65 Learning Disability,5690,,12/10/2021,3111049335,600.87,Style Acre
http://statistics.data.gov.uk/id/local-authority/38,Oxfordshire County Council,Support at Home U65 Learning Disability,5690,,12/10/2021,3111049425,600.87,Style Acre
http://statistics.data.gov.uk/id/local-authority/38,Oxfordshire County Council,Support at Home U65 Learning Disability,5690,,12/10/2021,3111049011,600.87,Turnstyle
http://statistics.data.gov.uk/id/local-authority/38,Oxfordshire County Council,Support at Home 65+ Physical Support,5693,,01/10/2021,3111043384,601,EveryCare (Oxford)
http://statistics.data.gov.uk/id/local-authority/38,Oxfordshire County Council,Support at Home U65 Physical Support,5899,Social Care - Direct Payments,26/10/2021,3111057800,601.08,Purple Conversation Com In Co (DP)
http://statistics.data.gov.uk/id/local-authority/38,Oxfordshire County Council,Support at Home 65+ Physical Support,5696,,28/10/2021,3111058826,602.08,Orders of St John Care Trust
http://statistics.data.gov.uk/id/local-authority/38,Oxfordshire County Council,Support at Home 65+ Learning Disability,5696,,28/10/2021,3111058836,602.08,Orders of St John Care Trust
http://statistics.data.gov.uk/id/local-authority/38,Oxfordshire County Council,Support at Home 65+ Physical Support,5696,,28/10/2021,3111058787,602.86,Orders of St John Care Trust
http://statistics.data.gov.uk/id/local-authority/38,Oxfordshire County Council,Support at Home 65+ Physical Support,5696,,28/10/2021,3111058718,602.97,Orders of St John Care Trust
http://statistics.data.gov.uk/id/local-authority/38,Oxfordshire County Council,Support at Home 65+ Physical Support,5696,,28/10/2021,3111058721,602.97,Orders of St John Care Trust
http://statistics.data.gov.uk/id/local-authority/38,Oxfordshire County Council,Support at Home 65+ Physical Support,5689,,12/10/2021,3111050344,603.31,Greigcare Home Service
http://statistics.data.gov.uk/id/local-authority/38,Oxfordshire County Council,Support at Home U65 Learning Disability,5697,,14/10/2021,3111052845,603.44,Guideposts Trust
http://statistics.data.gov.uk/id/local-authority/38,Oxfordshire County Council,Support at Home 65+ Physical Support,5689,,12/10/2021,3111050110,603.93,Oxfordshire Crossroads
http://statistics.data.gov.uk/id/local-authority/38,Oxfordshire County Council,Support at Home U65 MH OBC Contract,5689,,12/10/2021,3111050032,604.26,Casa Care Ltd
http://statistics.data.gov.uk/id/local-authority/38,Oxfordshire County Council,Support at Home U65 Physical Support,5899,Social Care - Direct Payments,26/10/2021,3111058207,604.44,Purple Conversation Com In Co (DP)
http://statistics.data.gov.uk/id/local-authority/38,Oxfordshire County Council,Support at Home U65 Memory & Cognition,5697,,13/10/2021,3111052503,605,Headway Oxford
http://statistics.data.gov.uk/id/local-authority/38,Oxfordshire County Council,Support at Home U65 Physical Support,5899,Social Care - Direct Payments,26/10/2021,3111057488,605,Redacted Personal Data
http://statistics.data.gov.uk/id/local-authority/38,Oxfordshire County Council,Support at Home U65 Autism /Abated,5899,Social Care - Direct Payments,26/10/2021,3111057670,605.08,Redacted Personal Data
http://statistics.data.gov.uk/id/local-authority/38,Oxfordshire County Council,Support at Home U65 Learning Disability,5688,,12/10/2021,3111047416,605.83,The Brandon Trust
http://statistics.data.gov.uk/id/local-authority/38,Oxfordshire County Council,VOIDS/VACANCY COSTS,3945,Rent,12/10/2021,3111051339,606.49,Cherwell District Council
http://statistics.data.gov.uk/id/local-authority/38,Oxfordshire County Council,VOIDS/VACANCY COSTS,3945,Rent,12/10/2021,3111051341,606.49,Cherwell District Council
http://statistics.data.gov.uk/id/local-authority/38,Oxfordshire County Council,VOIDS/VACANCY COSTS,3945,Rent,12/10/2021,3111051343,606.49,Cherwell District Council
http://statistics.data.gov.uk/id/local-authority/38,Oxfordshire County Council,SHARED LIVES,5555,Payments to Carers,12/10/2021,3111045873,607.2,Redacted Personal Data
http://statistics.data.gov.uk/id/local-authority/38,Oxfordshire County Council,SEN TRANSPORT,5227,Other Transport Arrangements,20/10/2021,3111055114,608,A2B Castle Cars Ltd
http://statistics.data.gov.uk/id/local-authority/38,Oxfordshire County Council,SEN TRANSPORT,5227,Other Transport Arrangements,04/10/2021,3111044672,608,C&M Management Services Ltd
http://statistics.data.gov.uk/id/local-authority/38,Oxfordshire County Council,POST 16 SEN,4330,Transport to School Activities,08/10/2021,3111045522,608.41,Abingdon Taxis FKN Autotaxis
http://statistics.data.gov.uk/id/local-authority/38,Oxfordshire County Council,PREMISES,4042,Fixtures and Fittings,13/10/2021,2200916025,608.46,Falcon Signs
http://statistics.data.gov.uk/id/local-authority/38,Oxfordshire County Council,LIBRARY COLLECTIONS,4539,"Books, DVDs and CDs",19/10/2021,3111054331,608.55,ASKEWS & HOLTS LIBRARY SERVICES LTD
http://statistics.data.gov.uk/id/local-authority/38,Oxfordshire County Council,Planned preventative Maintenance,3787,Premises Repairs,04/10/2021,2200912668,608.55,Barker & Evans Ltd
http://statistics.data.gov.uk/id/local-authority/38,Oxfordshire County Council,Support at Home 65+ Physical Support,5899,Social Care - Direct Payments,26/10/2021,3111057956,608.72,Purple Conversation Com In Co (DP)
http://statistics.data.gov.uk/id/local-authority/38,Oxfordshire County Council,SEN TRANSPORT,5227,Other Transport Arrangements,05/10/2021,3111043881,609,Crown Cabs Travel Ltd
http://statistics.data.gov.uk/id/local-authority/38,Oxfordshire County Council,Planned preventative Maintenance,3787,Premises Repairs,13/10/2021,2200916152,609,Metro Rod Ltd (Oxon & West Bucks)
http://statistics.data.gov.uk/id/local-authority/38,Oxfordshire County Council,Support at Home 65+ Learning Disability,5696,,28/10/2021,3111058689,609.24,Orders of St John Care Trust
http://statistics.data.gov.uk/id/local-authority/38,Oxfordshire County Council,COVID-19 INFECTION CONTROL 4,5688,,08/10/2021,3111045602,610.35,CARE COMPASSION AND CONVERSATIONS
http://statistics.data.gov.uk/id/local-authority/38,Oxfordshire County Council,COVID-19 INFECTION CONTROL 4,5688,,08/10/2021,3111045628,610.35,Housing&care21
http://statistics.data.gov.uk/id/local-authority/38,Oxfordshire County Council,COVID-19 INFECTION CONTROL 4,5688,,08/10/2021,3111045641,610.35,Orders of St John Care Trust
http://statistics.data.gov.uk/id/local-authority/38,Oxfordshire County Council,COVID-19 INFECTION CONTROL 4,5688,,08/10/2021,3111045675,610.35,The Care Workshop Limited
http://statistics.data.gov.uk/id/local-authority/38,Oxfordshire County Council,Support at Home U65 Learning Disability,5899,Social Care - Direct Payments,26/10/2021,3111057801,611.08,Purple Conversation Com In Co (DP)
http://statistics.data.gov.uk/id/local-authority/38,Oxfordshire County Council,Support at Home U65 Learning Disability,5899,Social Care - Direct Payments,26/10/2021,3111058118,611.08,Purple Conversation Com In Co (DP)
http://statistics.data.gov.uk/id/local-authority/38,Oxfordshire County Council,Support at Home U65 Learning Disability,5899,Social Care - Direct Payments,26/10/2021,3111058376,611.08,Purple Conversation Com In Co (DP)
http://statistics.data.gov.uk/id/local-authority/38,Oxfordshire County Council,FOSTERING MAIN,5227,Other Transport Arrangements,12/10/2021,3111049548,611.35,Redacted Personal Data
http://statistics.data.gov.uk/id/local-authority/38,Oxfordshire County Council,Support at Home U65 Learning Disability,5899,Social Care - Direct Payments,26/10/2021,3111057740,612,Redacted Personal Data
http://statistics.data.gov.uk/id/local-authority/38,Oxfordshire County Council,Support at Home U65 MH OBC Contract,5689,,12/10/2021,3111051190,612,Response Organisation
http://statistics.data.gov.uk/id/local-authority/38,Oxfordshire County Council,Support at Home U65 Learning Disability,5227,Other Transport Arrangements,28/10/2021,3111059142,612,The Oxfordshire Taxi Company Ltd T/
http://statistics.data.gov.uk/id/local-authority/38,Oxfordshire County Council,Support at Home 65+ Physical Support,5689,,12/10/2021,3111050727,612.42,Oasis Private Care Ltd
http://statistics.data.gov.uk/id/local-authority/38,Oxfordshire County Council,Support at Home 65+ Physical Support,5698,,12/10/2021,3111049679,612.43,Oxford Private Care
http://statistics.data.gov.uk/id/local-authority/38,Oxfordshire County Council,Support at Home U65 Learning Disability,5899,Social Care - Direct Payments,26/10/2021,3111057164,612.48,Redacted Personal Data
http://statistics.data.gov.uk/id/local-authority/38,Oxfordshire County Council,Support at Home 65+ Physical Support,5693,,13/10/2021,3111052512,612.5,BETTER LIFE CARE LTD
http://statistics.data.gov.uk/id/local-authority/38,Oxfordshire County Council,FAM GRP CONFERENCES,4940,Other Services,05/10/2021,2200913154,612.6,Suri Poulos
http://statistics.data.gov.uk/id/local-authority/38,Oxfordshire County Council,Support at Home U65 Learning Disability,5899,Social Care - Direct Payments,19/10/2021,3111053551,612.86,Redacted Personal Data
http://statistics.data.gov.uk/id/local-authority/38,Oxfordshire County Council,Support at Home U65 MH OBC Contract,5691,,15/10/2021,3111053397,613.08,Care With Dignity Partnerships
http://statistics.data.gov.uk/id/local-authority/38,Oxfordshire County Council,Delegated Health Tasks  - Over 65,5691,,19/10/2021,3111054385,613.5,Bluebird Care
http://statistics.data.gov.uk/id/local-authority/38,Oxfordshire County Council,Delegated Health Tasks  - Under 65,5691,,19/10/2021,3111054393,613.5,Bluebird Care
http://statistics.data.gov.uk/id/local-authority/38,Oxfordshire County Council,Delegated Health Tasks  - Over 65,5691,,19/10/2021,3111054401,613.5,Bluebird Care
http://statistics.data.gov.uk/id/local-authority/38,Oxfordshire County Council,Delegated Health Tasks  - Over 65,5691,,19/10/2021,3111054402,613.5,Bluebird Care
http://statistics.data.gov.uk/id/local-authority/38,Oxfordshire County Council,Support at Home 65+ Physical Support,5698,,12/10/2021,3111048444,613.59,Day & Night Care Assistance
http://statistics.data.gov.uk/id/local-authority/38,Oxfordshire County Council,Family Solutions Plus Non-staff - South,5227,Other Transport Arrangements,21/10/2021,3111055483,614,Her Ride Limited
http://statistics.data.gov.uk/id/local-authority/38,Oxfordshire County Council,Swindon Adoption Support Fund,4861,Hired and Contracted Services,01/10/2021,2200912301,614.17,Integrate Families
http://statistics.data.gov.uk/id/local-authority/38,Oxfordshire County Council,Food & Essential Supplies,4939,,19/10/2021,3111054868,615,Botley Primary School
http://statistics.data.gov.uk/id/local-authority/38,Oxfordshire County Council,Food & Essential Supplies,4939,,19/10/2021,3111054881,615,Edith Moorhouse Primary School
http://statistics.data.gov.uk/id/local-authority/38,Oxfordshire County Council,Food & Essential Supplies,4939,,19/10/2021,3111054950,615,St John Fisher
http://statistics.data.gov.uk/id/local-authority/38,Oxfordshire County Council,Support at Home U65 Mental Health,5698,,12/10/2021,3111049305,615.19,KCARE NURSING AGENCY
http://statistics.data.gov.uk/id/local-authority/38,Oxfordshire County Council,Support at Home 65+ Physical Support,5693,,13/10/2021,3111052484,615.43,A CARING HAND LTD
http://statistics.data.gov.uk/id/local-authority/38,Oxfordshire County Council,AAC EQUIPMENT,4494,Purchase of IT Equipment,20/10/2021,2200918685,615.5,Inclusive Technology Ltd
http://statistics.data.gov.uk/id/local-authority/38,Oxfordshire County Council,Support at Home 65+ Physical Support,5689,,12/10/2021,3111050099,615.81,Oxfordshire Crossroads
http://statistics.data.gov.uk/id/local-authority/38,Oxfordshire County Council,Support at Home 65+ Physical Support,5693,,14/10/2021,3111052900,615.83,XPERIENCE RECRUITMENT LIMITED
http://statistics.data.gov.uk/id/local-authority/38,Oxfordshire County Council,Support at Home U65 Sensory Support,5899,Social Care - Direct Payments,26/10/2021,3111057923,615.88,Purple Conversation Com In Co (DP)
http://statistics.data.gov.uk/id/local-authority/38,Oxfordshire County Council,Support at Home 65+ Physical Support,5693,,20/10/2021,3111054509,616,FLEXI DIRECT LTD
http://statistics.data.gov.uk/id/local-authority/38,Oxfordshire County Council,Support at Home U65 Learning Disability,5690,,12/10/2021,3111049281,616.72,Style Acre
http://statistics.data.gov.uk/id/local-authority/38,Oxfordshire County Council,Support at Home U65 Learning Disability,5690,,12/10/2021,3111049349,616.72,Style Acre
http://statistics.data.gov.uk/id/local-authority/38,Oxfordshire County Council,Support at Home U65 Learning Disability,5690,,12/10/2021,3111049435,616.72,Style Acre
http://statistics.data.gov.uk/id/local-authority/38,Oxfordshire County Council,Support at Home 65+ Physical Support,5689,,12/10/2021,3111049363,616.73,Care Outlook Ltd
http://statistics.data.gov.uk/id/local-authority/38,Oxfordshire County Council,Support at Home U65 Learning Disability,5899,Social Care - Direct Payments,26/10/2021,3111057717,616.88,Redacted Personal Data
http://statistics.data.gov.uk/id/local-authority/38,Oxfordshire County Council,TRANSPORT COSTS,4330,Transport to School Activities,28/10/2021,3111059122,617.5,The Oxfordshire Taxi Company Ltd T/
http://statistics.data.gov.uk/id/local-authority/38,Oxfordshire County Council,Support at Home U65 Learning Disability,5696,,28/10/2021,3111058729,618.42,Orders of St John Care Trust
http://statistics.data.gov.uk/id/local-authority/38,Oxfordshire County Council,Support at Home U65 Learning Disability,5696,,28/10/2021,3111058757,618.42,Orders of St John Care Trust
http://statistics.data.gov.uk/id/local-authority/38,Oxfordshire County Council,Support at Home 65+ Physical Support,5696,,28/10/2021,3111058774,618.42,Orders of St John Care Trust
http://statistics.data.gov.uk/id/local-authority/38,Oxfordshire County Council,SM DISABILITIES,5554,Childrens' Social Care - Direct Payments,26/10/2021,3111057061,618.79,Purple Conversation Com In Co (DP)
http://statistics.data.gov.uk/id/local-authority/38,Oxfordshire County Council,SM DISABILITIES,5554,Childrens' Social Care - Direct Payments,26/10/2021,3111057062,618.79,Purple Conversation Com In Co (DP)
http://statistics.data.gov.uk/id/local-authority/38,Oxfordshire County Council,CAP CHRGES-PRIM SCHS,8102,Payments to main contractor,13/10/2021,2200916177,619,Marlowe Fire & Security Ltd
http://statistics.data.gov.uk/id/local-authority/38,Oxfordshire County Council,Support at Home 65+ Physical Support,5689,,12/10/2021,3111050476,619.15,Home Helpers Care Ltd
http://statistics.data.gov.uk/id/local-authority/38,Oxfordshire County Council,SEN TRANSPORT,5227,Other Transport Arrangements,21/10/2021,3111055470,620,R & S Travel Services Ltd T/A A 2 Z
http://statistics.data.gov.uk/id/local-authority/38,Oxfordshire County Council,Support at Home U65 Learning Disability,5899,Social Care - Direct Payments,26/10/2021,3111057523,620.32,Redacted Personal Data
http://statistics.data.gov.uk/id/local-authority/38,Oxfordshire County Council,Support at Home U65 Physical Support,5689,,12/10/2021,3111050396,620.56,Greigcare Home Service
http://statistics.data.gov.uk/id/local-authority/38,Oxfordshire County Council,MAINSTREAM-PRIMARY,4330,Transport to School Activities,18/10/2021,3111053417,621,24/7 LTD
http://statistics.data.gov.uk/id/local-authority/38,Oxfordshire County Council,MAINSTREAM-SECONDARY,4330,Transport to School Activities,18/10/2021,3111053418,621,24/7 LTD
http://statistics.data.gov.uk/id/local-authority/38,Oxfordshire County Council,Support at Home 65+ Physical Support,5693,,22/10/2021,3111055603,621,Kwikfix Recruitment Services Ltd
http://statistics.data.gov.uk/id/local-authority/38,Oxfordshire County Council,ELEC NP RD ILLUM SGN,5526,Payments to Private Contractors,13/10/2021,2200915999,621.25,Bouygues E&S Infrastructure UK Ltd
http://statistics.data.gov.uk/id/local-authority/38,Oxfordshire County Council,Support at Home 65+ Physical Support,5689,,12/10/2021,3111050639,621.69,Kare Plus Oxford
http://statistics.data.gov.uk/id/local-authority/38,Oxfordshire County Council,Support at Home 65+ Physical Support,5698,,12/10/2021,3111049627,621.69,Oxford Private Care
http://statistics.data.gov.uk/id/local-authority/38,Oxfordshire County Council,Support at Home U65 Learning Disability,5697,,20/10/2021,3111054495,621.92,Stepping Stones
http://statistics.data.gov.uk/id/local-authority/38,Oxfordshire County Council,Support at Home U65 Learning Disability,5697,,20/10/2021,3111054496,621.92,Stepping Stones
http://statistics.data.gov.uk/id/local-authority/38,Oxfordshire County Council,Swindon Adoption Support Fund,4861,Hired and Contracted Services,21/10/2021,2200919557,622,Dr Vicky Sutton
http://statistics.data.gov.uk/id/local-authority/38,Oxfordshire County Council,Support at Home 65+ Physical Support,5693,,08/10/2021,3111045503,622.16,Star Projections
http://statistics.data.gov.uk/id/local-authority/38,Oxfordshire County Council,CSB - COUNTY,4940,Other Services,27/10/2021,2200920561,622.28,A CARING HAND LTD
http://statistics.data.gov.uk/id/local-authority/38,Oxfordshire County Council,Support at Home U65 Physical Support,5899,Social Care - Direct Payments,26/10/2021,3111058143,622.28,Purple Conversation Com In Co (DP)
http://statistics.data.gov.uk/id/local-authority/38,Oxfordshire County Council,Support at Home U65 Learning Disability,5690,,12/10/2021,3111046013,622.44,Style Acre
http://statistics.data.gov.uk/id/local-authority/38,Oxfordshire County Council,Support at Home U65 Learning Disability,5690,,12/10/2021,3111046015,622.44,Style Acre
http://statistics.data.gov.uk/id/local-authority/38,Oxfordshire County Council,Support at Home 65+ Physical Support,5698,,12/10/2021,3111049712,622.56,Oxford Private Care
http://statistics.data.gov.uk/id/local-authority/38,Oxfordshire County Council,Support at Home 65+ Physical Support,5689,,12/10/2021,3111051136,623.78,Prestige Nursing Ltd
http://statistics.data.gov.uk/id/local-authority/38,Oxfordshire County Council,Support at Home U65 Learning Disability,5899,Social Care - Direct Payments,26/10/2021,3111057381,624,Redacted Personal Data
http://statistics.data.gov.uk/id/local-authority/38,Oxfordshire County Council,LEGAL BUDGET,5251,Legal Costs,28/10/2021,2200920821,624.03,Expert Court Reports Ltd
http://statistics.data.gov.uk/id/local-authority/38,Oxfordshire County Council,Delegated Health Tasks  - Over 65,5691,,19/10/2021,3111054410,624.4,Caremark (West Oxfordshire & Cherwe
http://statistics.data.gov.uk/id/local-authority/38,Oxfordshire County Council,Support at Home U65 Learning Disability,5899,Social Care - Direct Payments,26/10/2021,3111057543,624.4,Redacted Personal Data
http://statistics.data.gov.uk/id/local-authority/38,Oxfordshire County Council,,1448,Blackfield Inc & Exp A/c,01/10/2021,3111043361,624.4,OCC One Time Vendor
http://statistics.data.gov.uk/id/local-authority/38,Oxfordshire County Council,Support at Home U65 Physical Support,5696,,28/10/2021,3111058732,624.65,Orders of St John Care Trust
http://statistics.data.gov.uk/id/local-authority/38,Oxfordshire County Council,Support at Home U65 Physical Support,5693,,20/10/2021,3111054549,625,HEALTHCARE ACCESS LTD
http://statistics.data.gov.uk/id/local-authority/38,Oxfordshire County Council,LEGAL SERVICES,5251,Legal Costs,12/10/2021,2200915630,625,Ms Sian Cox
http://statistics.data.gov.uk/id/local-authority/38,Oxfordshire County Council,Community Support Service - Abingdon,4232,Vehicle Fuel,12/10/2021,2200915827,625.04,Allstar Business Solutions Ltd
http://statistics.data.gov.uk/id/local-authority/38,Oxfordshire County Council,Support at Home 65+ Physical Support,5689,,12/10/2021,3111050097,625.08,Oxfordshire Crossroads
http://statistics.data.gov.uk/id/local-authority/38,Oxfordshire County Council,SEN TRANSPORT,5227,Other Transport Arrangements,14/10/2021,3111053134,625.37,LINK SHIRES LTD
http://statistics.data.gov.uk/id/local-authority/38,Oxfordshire County Council,POST18 UASC DCSF FND,5365,Non-Staff Subsistence and Expenses,20/10/2021,9300053163,625.88,OCC SS Oxford City Div 1 Cash
http://statistics.data.gov.uk/id/local-authority/38,Oxfordshire County Council,Support at Home 65+ Physical Support,5689,,12/10/2021,3111049217,626.37,Bicester PA and Care LLP
http://statistics.data.gov.uk/id/local-authority/38,Oxfordshire County Council,L&D CORE PROGRAMME,3100,Educational and Vocational Training,18/10/2021,2200917442,626.75,Premier Partnership
http://statistics.data.gov.uk/id/local-authority/38,Oxfordshire County Council,Support at Home U65 Physical Support,5899,Social Care - Direct Payments,26/10/2021,3111058073,626.92,Purple Conversation Com In Co (DP)
http://statistics.data.gov.uk/id/local-authority/38,Oxfordshire County Council,Support at Home U65 Physical Support,5689,,12/10/2021,3111049482,627.37,Care Outlook Ltd
http://statistics.data.gov.uk/id/local-authority/38,Oxfordshire County Council,Support at Home U65 Physical Support,5899,Social Care - Direct Payments,26/10/2021,3111058027,627.44,Purple Conversation Com In Co (DP)
http://statistics.data.gov.uk/id/local-authority/38,Oxfordshire County Council,Support at Home U65 Memory & Cognition,5689,,12/10/2021,3111048800,627.67,Allied Health-Services Limited
http://statistics.data.gov.uk/id/local-authority/38,Oxfordshire County Council,RECRUITMENT+MEDICALS,4859,Medical and Counselling Fees,05/10/2021,2200913180,628,People Asset Management
http://statistics.data.gov.uk/id/local-authority/38,Oxfordshire County Council,OPERATIONS,4498,Health and Safety Equipment,12/10/2021,2200915902,628.5,Northern Diver
http://statistics.data.gov.uk/id/local-authority/38,Oxfordshire County Council,AGENCY RESID - DISAB,5549,B*Fostering Allowance - Regulation 38,19/10/2021,3111054104,628.9,Redacted Personal Data
http://statistics.data.gov.uk/id/local-authority/38,Oxfordshire County Council,Family Solutions Plus Non-staff - Centra,5227,Other Transport Arrangements,28/10/2021,3111059103,629.3,The Oxfordshire Taxi Company Ltd T/
http://statistics.data.gov.uk/id/local-authority/38,Oxfordshire County Council,Children in Care Non-staffing - Centrl 2,5227,Other Transport Arrangements,26/10/2021,9300053222,629.66,OCC SS Oxford City Div 1 Cash
http://statistics.data.gov.uk/id/local-authority/38,Oxfordshire County Council,MAINSTREAM-PRIMARY,4330,Transport to School Activities,18/10/2021,3111053446,630,001 Alpha Cars Ltd
http://statistics.data.gov.uk/id/local-authority/38,Oxfordshire County Council,SEN TRANSPORT,5227,Other Transport Arrangements,05/10/2021,3111043869,630,Crown Cabs Travel Ltd
http://statistics.data.gov.uk/id/local-authority/38,Oxfordshire County Council,SEN TRANSPORT,5227,Other Transport Arrangements,01/10/2021,3111043535,630,Faringdon Cars
http://statistics.data.gov.uk/id/local-authority/38,Oxfordshire County Council,SEN TRANSPORT,5227,Other Transport Arrangements,05/10/2021,3111043911,630,Her Ride Limited
http://statistics.data.gov.uk/id/local-authority/38,Oxfordshire County Council,Food & Essential Supplies,4939,,19/10/2021,3111054966,630,Heyford Park School
http://statistics.data.gov.uk/id/local-authority/38,Oxfordshire County Council,Food & Essential Supplies,4939,,19/10/2021,3111054997,630,Orion Academy
http://statistics.data.gov.uk/id/local-authority/38,Oxfordshire County Council,SEN TRANSPORT,4330,Transport to School Activities,13/10/2021,3111052785,630,OXFORD BLUE CARS
http://statistics.data.gov.uk/id/local-authority/38,Oxfordshire County Council,SEN TRANSPORT,5227,Other Transport Arrangements,01/10/2021,3111043651,630,Oxfordlinks
http://statistics.data.gov.uk/id/local-authority/38,Oxfordshire County Council,SEN TRANSPORT,5227,Other Transport Arrangements,26/10/2021,3111056142,630,Oxon Transport Services Ltd
http://statistics.data.gov.uk/id/local-authority/38,Oxfordshire County Council,Support at Home U65 Physical Support,5899,Social Care - Direct Payments,26/10/2021,3111058307,630,Purple Conversation Com In Co (DP)
http://statistics.data.gov.uk/id/local-authority/38,Oxfordshire County Council,FAM GRP CONFERENCES,4940,Other Services,11/10/2021,2200915367,630,Sharon Peart
http://statistics.data.gov.uk/id/local-authority/38,Oxfordshire County Council,Food & Essential Supplies,4939,,19/10/2021,3111054925,630,Sutton Courtenay C of E Primary Sch
http://statistics.data.gov.uk/id/local-authority/38,Oxfordshire County Council,Support at Home U65 Learning Disability,5899,Social Care - Direct Payments,26/10/2021,3111058211,630.36,Purple Conversation Com In Co (DP)
http://statistics.data.gov.uk/id/local-authority/38,Oxfordshire County Council,Support at Home 65+ Physical Support,5693,,14/10/2021,3111052890,630.69,SureCare Oxfordshire
http://statistics.data.gov.uk/id/local-authority/38,Oxfordshire County Council,COVID-19 INFECTION CONTROL 4,5688,,08/10/2021,3111045652,630.7,Pechiv Ltd
http://statistics.data.gov.uk/id/local-authority/38,Oxfordshire County Council,COVID-19 INFECTION CONTROL 4,5688,,08/10/2021,3111045653,630.7,Pioneering Care Bicester Limited
http://statistics.data.gov.uk/id/local-authority/38,Oxfordshire County Council,Support at Home U65 Learning Disability,5690,,12/10/2021,3111048736,631.07,MacIntyre Care (Womaston)
http://statistics.data.gov.uk/id/local-authority/38,Oxfordshire County Council,Support at Home U65 Learning Disability,5690,,12/10/2021,3111048798,631.07,MacIntyre Care (Womaston)
http://statistics.data.gov.uk/id/local-authority/38,Oxfordshire County Council,Support at Home 65+ Physical Support,5899,Social Care - Direct Payments,26/10/2021,3111058386,631.08,Purple Conversation Com In Co (DP)
http://statistics.data.gov.uk/id/local-authority/38,Oxfordshire County Council,Support at Home U65 Learning Disability,5690,,12/10/2021,3111048731,631.21,Life Path Trust Ltd
http://statistics.data.gov.uk/id/local-authority/38,Oxfordshire County Council,SEN TRANSPORT,4320,Pupil / Client Travel Reimbursement,26/10/2021,3111056027,631.4,Redacted Personal Data
http://statistics.data.gov.uk/id/local-authority/38,Oxfordshire County Council,Support at Home 65+ Physical Support,5696,,28/10/2021,3111058715,631.95,Orders of St John Care Trust
http://statistics.data.gov.uk/id/local-authority/38,Oxfordshire County Council,Support at Home 65+ Physical Support,5693,,06/10/2021,3111044721,632.1,Care2Home Oxford
http://statistics.data.gov.uk/id/local-authority/38,Oxfordshire County Council,Support at Home U65 Autism /Abated,5690,,12/10/2021,3111049224,632.4,Style Acre
http://statistics.data.gov.uk/id/local-authority/38,Oxfordshire County Council,Support at Home U65 Learning Disability,5690,,12/10/2021,3111049269,632.4,Style Acre
http://statistics.data.gov.uk/id/local-authority/38,Oxfordshire County Council,Support at Home U65 Learning Disability,5690,,12/10/2021,3111049362,632.4,Style Acre
http://statistics.data.gov.uk/id/local-authority/38,Oxfordshire County Council,Support at Home U65 Learning Disability,5690,,12/10/2021,3111048627,632.4,The Ice Centre
http://statistics.data.gov.uk/id/local-authority/38,Oxfordshire County Council,Support at Home U65 Learning Disability,5690,,12/10/2021,3111048997,632.4,Turnstyle
http://statistics.data.gov.uk/id/local-authority/38,Oxfordshire County Council,Support at Home U65 Learning Disability,5690,,12/10/2021,3111049074,632.4,Turnstyle
http://statistics.data.gov.uk/id/local-authority/38,Oxfordshire County Council,COUNTY PRINT FINSHRS,4531,Materials,04/10/2021,2200912858,632.54,Antalis Ltd
http://statistics.data.gov.uk/id/local-authority/38,Oxfordshire County Council,SHARED LIVES,5555,Payments to Carers,12/10/2021,3111045958,632.58,Redacted Personal Data
http://statistics.data.gov.uk/id/local-authority/38,Oxfordshire County Council,Delegated Health Tasks  - Over 65,5691,,01/10/2021,3111043482,632.72,Bluebird Care (Oxford South & West)
http://statistics.data.gov.uk/id/local-authority/38,Oxfordshire County Council,Delegated Health Tasks  - Over 65,5691,,21/10/2021,3111055217,632.72,Bluebird Care (Oxford South & West)
http://statistics.data.gov.uk/id/local-authority/38,Oxfordshire County Council,Delegated Health Tasks  - Over 65,5691,,22/10/2021,3111055862,632.72,Bluebird Care (Oxford South & West)
http://statistics.data.gov.uk/id/local-authority/38,Oxfordshire County Council,Support at Home U65 Mental Health,5693,,15/10/2021,3111053222,632.72,Care at Home
http://statistics.data.gov.uk/id/local-authority/38,Oxfordshire County Council,FPT SOUTH/VALE,5227,Other Transport Arrangements,26/10/2021,3111056302,632.78,Redacted Personal Data
http://statistics.data.gov.uk/id/local-authority/38,Oxfordshire County Council,Support at Home U65 Learning Disability,5690,,12/10/2021,3111046003,633.33,Mencap Contracts
http://statistics.data.gov.uk/id/local-authority/38,Oxfordshire County Council,LEGAL SERVICES,5251,Legal Costs,15/10/2021,2200917201,633.33,Natasha Miller
http://statistics.data.gov.uk/id/local-authority/38,Oxfordshire County Council,Support at Home U65 HFA,5899,Social Care - Direct Payments,26/10/2021,3111058138,633.8,Purple Conversation Com In Co (DP)
http://statistics.data.gov.uk/id/local-authority/38,Oxfordshire County Council,ON ST PARK OXFD RES,4861,Hired and Contracted Services,13/10/2021,2200916021,633.87,Bouygues E&S Infrastructure UK Ltd
http://statistics.data.gov.uk/id/local-authority/38,Oxfordshire County Council,Delegated Health Tasks  - Over 65,5691,,21/10/2021,3111055226,633.95,Bluebird Care
http://statistics.data.gov.uk/id/local-authority/38,Oxfordshire County Council,Support at Home U65 Learning Disability,5697,,20/10/2021,3111054498,634.65,Ways and Means Trust Ltd
http://statistics.data.gov.uk/id/local-authority/38,Oxfordshire County Council,Support at Home 65+ Physical Support,5689,,12/10/2021,3111048701,634.7,Alina Homecare
http://statistics.data.gov.uk/id/local-authority/38,Oxfordshire County Council,Support at Home 65+ Physical Support,5899,Social Care - Direct Payments,26/10/2021,3111058084,635.08,Purple Conversation Com In Co (DP)
http://statistics.data.gov.uk/id/local-authority/38,Oxfordshire County Council,Support at Home U65 Learning Disability,5899,Social Care - Direct Payments,26/10/2021,3111058174,635.08,Purple Conversation Com In Co (DP)
http://statistics.data.gov.uk/id/local-authority/38,Oxfordshire County Council,Support at Home 65+ Physical Support,5899,Social Care - Direct Payments,26/10/2021,3111058451,635.08,Purple Conversation Com In Co (DP)
http://statistics.data.gov.uk/id/local-authority/38,Oxfordshire County Council,Support at Home U65 Learning Disability,5696,,28/10/2021,3111058749,636.79,Orders of St John Care Trust
http://statistics.data.gov.uk/id/local-authority/38,Oxfordshire County Council,Support at Home 65+ Physical Support,5698,,12/10/2021,3111048869,637.1,Day & Night Care Assistance
http://statistics.data.gov.uk/id/local-authority/38,Oxfordshire County Council,Support at Home 65+ Physical Support,5689,,12/10/2021,3111048907,638.88,Allied Health-Services Limited
http://statistics.data.gov.uk/id/local-authority/38,Oxfordshire County Council,Support at Home U65 Other /Soc Isolation,5899,Social Care - Direct Payments,26/10/2021,3111058373,639.24,Purple Conversation Com In Co (DP)
http://statistics.data.gov.uk/id/local-authority/38,Oxfordshire County Council,Support at Home U65 Learning Disability,5690,,12/10/2021,3111048714,639.26,Life Path Trust Ltd
http://statistics.data.gov.uk/id/local-authority/38,Oxfordshire County Council,ECH Central Costs,5696,,12/10/2021,3111046036,639.44,BPHA Limited
http://statistics.data.gov.uk/id/local-authority/38,Oxfordshire County Council,SEN TRANSPORT,5227,Other Transport Arrangements,13/10/2021,3111052776,640,ABC Travel(Wokingham) limited t/a A
http://statistics.data.gov.uk/id/local-authority/38,Oxfordshire County Council,Support at Home 65+ Physical Support,5899,Social Care - Direct Payments,26/10/2021,3111057447,640,Redacted Personal Data
http://statistics.data.gov.uk/id/local-authority/38,Oxfordshire County Council,Support at Home 65+ Physical Support,5899,Social Care - Direct Payments,26/10/2021,3111057562,640,Redacted Personal Data
http://statistics.data.gov.uk/id/local-authority/38,Oxfordshire County Council,Commissioning Leadership Team,3200,Staff Advertising - General,15/10/2021,2200917264,640,GUARDIAN NEWS & MEDIA LTD
http://statistics.data.gov.uk/id/local-authority/38,Oxfordshire County Council,Support at Home U65 Physical Support,5899,Social Care - Direct Payments,26/10/2021,3111057547,640,Redacted Personal Data
http://statistics.data.gov.uk/id/local-authority/38,Oxfordshire County Council,Support at Home U65 Physical Support,5899,Social Care - Direct Payments,26/10/2021,3111058086,641.16,Purple Conversation Com In Co (DP)
http://statistics.data.gov.uk/id/local-authority/38,Oxfordshire County Council,Support at Home U65 Physical Support,5698,,12/10/2021,3111047711,641.9,Acquire Care Ltd
http://statistics.data.gov.uk/id/local-authority/38,Oxfordshire County Council,Support at Home U65 Learning Disability,5690,,12/10/2021,3111048643,642.14,The Ice Centre
http://statistics.data.gov.uk/id/local-authority/38,Oxfordshire County Council,Support at Home U65 Learning Disability,5690,,12/10/2021,3111048651,642.14,The Ice Centre
http://statistics.data.gov.uk/id/local-authority/38,Oxfordshire County Council,Support at Home U65 Autism /Abated,5690,,12/10/2021,3111048923,643.03,Turnstyle
http://statistics.data.gov.uk/id/local-authority/38,Oxfordshire County Council,Support at Home 65+ Physical Support,5689,,12/10/2021,3111051103,643.52,Prestige Nursing Ltd
http://statistics.data.gov.uk/id/local-authority/38,Oxfordshire County Council,Support at Home U65 Learning Disability,5689,,12/10/2021,3111050201,643.56,Genuine Carers Ltd
http://statistics.data.gov.uk/id/local-authority/38,Oxfordshire County Council,Support at Home 65+ Physical Support,5693,,15/10/2021,3111053249,644,Kwikfix Recruitment Services Ltd
http://statistics.data.gov.uk/id/local-authority/38,Oxfordshire County Council,Support at Home U65 Memory & Cognition,5693,,14/10/2021,3111052881,644,Star Projections
http://statistics.data.gov.uk/id/local-authority/38,Oxfordshire County Council,Support at Home 65+ Physical Support,5693,,06/10/2021,3111044804,644.1,SureCare Oxfordshire
http://statistics.data.gov.uk/id/local-authority/38,Oxfordshire County Council,Support at Home U65 Physical Support,5689,,12/10/2021,3111050043,644.21,Casa Care Ltd
http://statistics.data.gov.uk/id/local-authority/38,Oxfordshire County Council,OTHER NON-HOUSEHOLD,5526,Payments to Private Contractors,21/10/2021,2200919414,644.5,Cawleys Ltd
http://statistics.data.gov.uk/id/local-authority/38,Oxfordshire County Council,Support at Home 65+ Physical Support,5693,,06/10/2021,3111044709,644.56,1st Homecare (Oxford) Ltd
http://statistics.data.gov.uk/id/local-authority/38,Oxfordshire County Council,Support at Home 65+ Physical Support,5693,,29/10/2021,3111059287,644.56,1st Homecare (Oxford) Ltd
http://statistics.data.gov.uk/id/local-authority/38,Oxfordshire County Council,Support at Home U65 Learning Disability,5690,,12/10/2021,3111049200,644.8,Style Acre
http://statistics.data.gov.uk/id/local-authority/38,Oxfordshire County Council,PROCUREMENT,4232,Vehicle Fuel,06/10/2021,2200913509,644.82,Certas Energy UK Ltd
http://statistics.data.gov.uk/id/local-authority/38,Oxfordshire County Council,PROCUREMENT,4232,Vehicle Fuel,06/10/2021,2200913511,644.82,Certas Energy UK Ltd
http://statistics.data.gov.uk/id/local-authority/38,Oxfordshire County Council,Support at Home U65 Physical Support,5689,,12/10/2021,3111049388,644.94,Care Outlook Ltd
http://statistics.data.gov.uk/id/local-authority/38,Oxfordshire County Council,LEGAL BUDGET,5251,Legal Costs,05/10/2021,2200913158,645,AlphaBiolabs
http://statistics.data.gov.uk/id/local-authority/38,Oxfordshire County Council,Food & Essential Supplies,4939,,19/10/2021,3111054860,645,Sandhills Primary School
http://statistics.data.gov.uk/id/local-authority/38,Oxfordshire County Council,SEN TRANSPORT,4330,Transport to School Activities,04/10/2021,3111043730,645,Schon Executive Cars Ltd
http://statistics.data.gov.uk/id/local-authority/38,Oxfordshire County Council,Food & Essential Supplies,4939,,19/10/2021,3111054938,645,The Blake CE Primary School
http://statistics.data.gov.uk/id/local-authority/38,Oxfordshire County Council,Food & Essential Supplies,4939,,19/10/2021,3111054859,645,West Kidlington Primary &NurserySch
http://statistics.data.gov.uk/id/local-authority/38,Oxfordshire County Council,MUSEUMS COLLECTIONS,4940,Other Services,07/10/2021,2200914182,645.64,Restore plc
http://statistics.data.gov.uk/id/local-authority/38,Oxfordshire County Council,FOSTERING MAIN,5549,B*Fostering Allowance - Regulation 38,05/10/2021,3111044358,646,Redacted Personal Data
http://statistics.data.gov.uk/id/local-authority/38,Oxfordshire County Council,FOSTERING MAIN,5549,B*Fostering Allowance - Regulation 38,12/10/2021,3111048481,646,Redacted Personal Data
http://statistics.data.gov.uk/id/local-authority/38,Oxfordshire County Council,FOSTERING MAIN,5549,B*Fostering Allowance - Regulation 38,19/10/2021,3111053769,646,Redacted Personal Data
http://statistics.data.gov.uk/id/local-authority/38,Oxfordshire County Council,FOSTERING MAIN,5549,B*Fostering Allowance - Regulation 38,26/10/2021,3111056288,646,Redacted Personal Data
http://statistics.data.gov.uk/id/local-authority/38,Oxfordshire County Council,SEN TRANSPORT,5227,Other Transport Arrangements,08/10/2021,3111045312,646,Town Cars
http://statistics.data.gov.uk/id/local-authority/38,Oxfordshire County Council,Support at Home 65+ Physical Support,5689,,12/10/2021,3111051156,646.05,Response Organisation
http://statistics.data.gov.uk/id/local-authority/38,Oxfordshire County Council,Support at Home U65 Physical Support,5899,Social Care - Direct Payments,26/10/2021,3111058145,646.36,Purple Conversation Com In Co (DP)
http://statistics.data.gov.uk/id/local-authority/38,Oxfordshire County Council,Support at Home U65 Learning Disability,5899,Social Care - Direct Payments,26/10/2021,3111057668,646.6,Redacted Personal Data
http://statistics.data.gov.uk/id/local-authority/38,Oxfordshire County Council,Support at Home U65 Learning Disability,5899,Social Care - Direct Payments,26/10/2021,3111057667,646.6,Redacted Personal Data
http://statistics.data.gov.uk/id/local-authority/38,Oxfordshire County Council,Support at Home U65 Physical Support,5696,,28/10/2021,3111058701,646.79,Orders of St John Care Trust
http://statistics.data.gov.uk/id/local-authority/38,Oxfordshire County Council,Early Years SEN Funding,5537,Payments to Other Establishments,01/10/2021,3111043377,646.8,"St Pauls Nursery, Somerville"
http://statistics.data.gov.uk/id/local-authority/38,Oxfordshire County Council,COMM DRAWDOWN FUNDNG,8511,Legal Fees & expenses,26/10/2021,2200920334,647.5,Bevan Brittan LLP
http://statistics.data.gov.uk/id/local-authority/38,Oxfordshire County Council,Support at Home U65 Learning Disability,5696,,27/10/2021,3111058526,647.88,One Housing Group Limited
http://statistics.data.gov.uk/id/local-authority/38,Oxfordshire County Council,Support at Home U65 Learning Disability,5227,Other Transport Arrangements,04/10/2021,3111043711,648,Ali's Cabs
http://statistics.data.gov.uk/id/local-authority/38,Oxfordshire County Council,SEN TRANSPORT,5227,Other Transport Arrangements,08/10/2021,3111045364,648,Her Ride Limited
http://statistics.data.gov.uk/id/local-authority/38,Oxfordshire County Council,Support at Home 65+ Physical Support,5693,,06/10/2021,3111044725,648.27,CaringPlus Healthcare Services Ltd
http://statistics.data.gov.uk/id/local-authority/38,Oxfordshire County Council,Support at Home U65 HFA,5690,,12/10/2021,3111049134,648.34,Turnstyle
http://statistics.data.gov.uk/id/local-authority/38,Oxfordshire County Council,TRO TEAM,4790,"Publicity, Promotions and Advertisement",22/10/2021,2200919834,648.38,Tmp (Uk) Ltd
http://statistics.data.gov.uk/id/local-authority/38,Oxfordshire County Council,UASC 16&17,5365,Non-Staff Subsistence and Expenses,11/10/2021,9300053048,648.66,OCC SS Oxford City Div 1 Cash
http://statistics.data.gov.uk/id/local-authority/38,Oxfordshire County Council,LIBRARY COLLECTIONS,4539,"Books, DVDs and CDs",15/10/2021,3111053327,648.91,ASKEWS & HOLTS LIBRARY SERVICES LTD
http://statistics.data.gov.uk/id/local-authority/38,Oxfordshire County Council,FOSTERING MAIN,5548,B*Fostering - Special Rates & Plus Amou,05/10/2021,3111044448,648.98,Redacted Personal Data
http://statistics.data.gov.uk/id/local-authority/38,Oxfordshire County Council,POST 16 SEN,4330,Transport to School Activities,22/10/2021,3111055892,649,001 Alpha Cars Ltd
http://statistics.data.gov.uk/id/local-authority/38,Oxfordshire County Council,Support at Home U65 Physical Support,5693,,08/10/2021,3111045508,649,The Care Workshop Limited
http://statistics.data.gov.uk/id/local-authority/38,Oxfordshire County Council,MAINSTREAM-PRIMARY,4330,Transport to School Activities,08/10/2021,3111045575,649.87,Redacted Personal Data
http://statistics.data.gov.uk/id/local-authority/38,Oxfordshire County Council,L&D CORE PROGRAMME,3100,Educational and Vocational Training,12/10/2021,2200915454,650,Autism Live Training
http://statistics.data.gov.uk/id/local-authority/38,Oxfordshire County Council,Support at Home U65 Physical Support,5899,Social Care - Direct Payments,26/10/2021,3111057489,650,Redacted Personal Data
http://statistics.data.gov.uk/id/local-authority/38,Oxfordshire County Council,SEN TRANSPORT,5227,Other Transport Arrangements,11/10/2021,3111045768,650,Cherwell Cars
http://statistics.data.gov.uk/id/local-authority/38,Oxfordshire County Council,Marketing,4705,Printing,14/10/2021,2200916720,650,Fyne Associates Ltd
http://statistics.data.gov.uk/id/local-authority/38,Oxfordshire County Council,FLEET OPERATIONS,4270,HTM / Other Vehicle - Hire Charges,05/10/2021,2200913140,650,London Hire
http://statistics.data.gov.uk/id/local-authority/38,Oxfordshire County Council,,1448,Blackfield Inc & Exp A/c,29/10/2021,3111059272,650,OCC One Time Vendor
http://statistics.data.gov.uk/id/local-authority/38,Oxfordshire County Council,TRANSPORT COSTS,4330,Transport to School Activities,07/10/2021,3111045064,650,Oxon Transport Services Ltd
http://statistics.data.gov.uk/id/local-authority/38,Oxfordshire County Council,Family Solutions Plus Non-staff - South,5227,Other Transport Arrangements,07/10/2021,3111045080,650,Oxon Transport Services Ltd
http://statistics.data.gov.uk/id/local-authority/38,Oxfordshire County Council,SEN Alternative Provision,4861,Hired and Contracted Services,26/10/2021,2200920322,650,Targeted Provision
http://statistics.data.gov.uk/id/local-authority/38,Oxfordshire County Council,Swindon Adoption Support Fund,4861,Hired and Contracted Services,07/10/2021,2200914401,650,The Family Place
http://statistics.data.gov.uk/id/local-authority/38,Oxfordshire County Council,SEN TRANSPORT,5227,Other Transport Arrangements,08/10/2021,3111045323,650,Town Cars
http://statistics.data.gov.uk/id/local-authority/38,Oxfordshire County Council,Support at Home U65 Physical Support,5227,Other Transport Arrangements,04/10/2021,3111043749,650.4,Unitaxi Ltd
http://statistics.data.gov.uk/id/local-authority/38,Oxfordshire County Council,Support at Home 65+ Physical Support,5693,,13/10/2021,3111052565,650.4,We-Care-Recruitment Ltd
http://statistics.data.gov.uk/id/local-authority/38,Oxfordshire County Council,TRANSPORT COSTS,4330,Transport to School Activities,05/10/2021,3111043895,650.44,Chauffeur Executives Oxford Limited
http://statistics.data.gov.uk/id/local-authority/38,Oxfordshire County Council,Support at Home 65+ Physical Support,5693,,13/10/2021,3111052566,650.44,We-Care-Recruitment Ltd
http://statistics.data.gov.uk/id/local-authority/38,Oxfordshire County Council,Support at Home 65+ Memory & Cognition,5693,,13/10/2021,3111052567,650.44,We-Care-Recruitment Ltd
http://statistics.data.gov.uk/id/local-authority/38,Oxfordshire County Council,Support at Home 65+ Mental Health,5693,,13/10/2021,3111052577,650.44,We-Care-Recruitment Ltd
http://statistics.data.gov.uk/id/local-authority/38,Oxfordshire County Council,Support at Home 65+ Physical Support,5689,,12/10/2021,3111049453,650.46,Care Outlook Ltd
http://statistics.data.gov.uk/id/local-authority/38,Oxfordshire County Council,COMM DRAWDOWN FUNDNG,8511,Legal Fees & expenses,26/10/2021,2200920348,650.5,Bevan Brittan LLP
http://statistics.data.gov.uk/id/local-authority/38,Oxfordshire County Council,COVID-19 INFECTION CONTROL 4,5688,,08/10/2021,3111045663,651.04,AVR (Oxon) Ltd
http://statistics.data.gov.uk/id/local-authority/38,Oxfordshire County Council,COVID-19 INFECTION CONTROL 4,5688,,08/10/2021,3111045608,651.04,Cherry Care Services
http://statistics.data.gov.uk/id/local-authority/38,Oxfordshire County Council,Support at Home U65 Physical Support,5899,Social Care - Direct Payments,26/10/2021,3111057893,651.08,Purple Conversation Com In Co (DP)
http://statistics.data.gov.uk/id/local-authority/38,Oxfordshire County Council,SHARED LIVES,5555,Payments to Carers,12/10/2021,3111045868,651.75,Redacted Personal Data
http://statistics.data.gov.uk/id/local-authority/38,Oxfordshire County Council,Support at Home U65 Learning Disability,5698,,12/10/2021,3111049661,652.02,Oxford Private Care
http://statistics.data.gov.uk/id/local-authority/38,Oxfordshire County Council,Support at Home 65+ Memory & Cognition,5693,,13/10/2021,3111052578,653.44,We-Care-Recruitment Ltd
http://statistics.data.gov.uk/id/local-authority/38,Oxfordshire County Council,Support at Home 65+ Physical Support,5689,,12/10/2021,3111048881,653.69,Allied Health-Services Limited
http://statistics.data.gov.uk/id/local-authority/38,Oxfordshire County Council,POST 16 SEN,4330,Transport to School Activities,22/10/2021,3111055897,654,Bicester Cars UK Ltd
http://statistics.data.gov.uk/id/local-authority/38,Oxfordshire County Council,Support at Home 65+ Physical Support,5689,,12/10/2021,3111049847,654.26,Caremark (West Oxfordshire & Cherwe
http://statistics.data.gov.uk/id/local-authority/38,Oxfordshire County Council,Support at Home 65+ Physical Support,5689,,12/10/2021,3111050116,654.59,Oxfordshire Crossroads
http://statistics.data.gov.uk/id/local-authority/38,Oxfordshire County Council,Support at Home 65+ Physical Support,5689,,12/10/2021,3111049821,654.71,Caremark (West Oxfordshire & Cherwe
http://statistics.data.gov.uk/id/local-authority/38,Oxfordshire County Council,Support at Home 65+ Physical Support,5698,,12/10/2021,3111049585,654.75,Oxford Private Care
http://statistics.data.gov.uk/id/local-authority/38,Oxfordshire County Council,Support at Home U65 Physical Support,5899,Social Care - Direct Payments,26/10/2021,3111058220,655.08,Purple Conversation Com In Co (DP)
http://statistics.data.gov.uk/id/local-authority/38,Oxfordshire County Council,CSB - COUNTY,4940,Other Services,19/10/2021,2200918308,655.13,A CARING HAND LTD
http://statistics.data.gov.uk/id/local-authority/38,Oxfordshire County Council,Support at Home U65 Learning Disability,5696,,28/10/2021,3111058857,655.42,Orders of St John Care Trust
http://statistics.data.gov.uk/id/local-authority/38,Oxfordshire County Council,CHC Fast Track - Sup at Homes - Over 65,5691,,22/10/2021,3111055776,656,Breman Healthcare Solutions
http://statistics.data.gov.uk/id/local-authority/38,Oxfordshire County Council,Support at Home U65 Learning Disability,5899,Social Care - Direct Payments,26/10/2021,3111057542,656,Redacted Personal Data
http://statistics.data.gov.uk/id/local-authority/38,Oxfordshire County Council,Support at Home 65+ Physical Support,5689,,12/10/2021,3111048760,656.16,Allied Health-Services Limited
http://statistics.data.gov.uk/id/local-authority/38,Oxfordshire County Council,Support at Home U65 Learning Disability,5688,,12/10/2021,3111047527,656.31,The Brandon Trust
http://statistics.data.gov.uk/id/local-authority/38,Oxfordshire County Council,Support at Home U65 Other /Soc Isolation,5899,Social Care - Direct Payments,26/10/2021,3111058304,656.68,Purple Conversation Com In Co (DP)
http://statistics.data.gov.uk/id/local-authority/38,Oxfordshire County Council,Support at Home 65+ Physical Support,5689,,12/10/2021,3111049855,656.94,Caremark (West Oxfordshire & Cherwe
http://statistics.data.gov.uk/id/local-authority/38,Oxfordshire County Council,Support at Home U65 Learning Disability,5899,Social Care - Direct Payments,26/10/2021,3111057797,657.2,Purple Conversation Com In Co (DP)
http://statistics.data.gov.uk/id/local-authority/38,Oxfordshire County Council,Support at Home 65+ Memory & Cognition,5689,,12/10/2021,3111050364,657.59,Greigcare Home Service
http://statistics.data.gov.uk/id/local-authority/38,Oxfordshire County Council,COUNTY PRINT FINSHRS,4706,Stationery and other office consumables,22/10/2021,2200919661,658,Banbury Litho Ltd
http://statistics.data.gov.uk/id/local-authority/38,Oxfordshire County Council,WIDER TOBACCO CONTRL,4859,Medical and Counselling Fees,06/10/2021,2200913418,658,Project Global Solutions Ltd
http://statistics.data.gov.uk/id/local-authority/38,Oxfordshire County Council,Support at Home U65 Physical Support,5689,,12/10/2021,3111050485,658.13,Home Helpers Care Ltd
http://statistics.data.gov.uk/id/local-authority/38,Oxfordshire County Council,LIBRARY COLLECTIONS,4539,"Books, DVDs and CDs",21/10/2021,2200919283,658.86,Books Asia Ltd
http://statistics.data.gov.uk/id/local-authority/38,Oxfordshire County Council,Support at Home U65 Physical Support,5698,,12/10/2021,3111049516,658.88,Oxford Private Care
http://statistics.data.gov.uk/id/local-authority/38,Oxfordshire County Council,Support at Home U65 Physical Support,5689,,12/10/2021,3111050206,658.89,Genuine Carers Ltd
http://statistics.data.gov.uk/id/local-authority/38,Oxfordshire County Council,Support at Home 65+ Physical Support,5689,,12/10/2021,3111050092,659.51,Oxfordshire Crossroads
http://statistics.data.gov.uk/id/local-authority/38,Oxfordshire County Council,LEGAL SERVICES,5251,Legal Costs,29/10/2021,2200920951,660,Cherwell District Council
http://statistics.data.gov.uk/id/local-authority/38,Oxfordshire County Council,SEN TRANSPORT,5227,Other Transport Arrangements,07/10/2021,3111045256,660,D�Arrive Ltd
http://statistics.data.gov.uk/id/local-authority/38,Oxfordshire County Council,West Berkshire Adoption Support Fund,4861,Hired and Contracted Services,27/10/2021,2200920488,660,Integrate Families
http://statistics.data.gov.uk/id/local-authority/38,Oxfordshire County Council,SEN TRANSPORT,5227,Other Transport Arrangements,08/10/2021,3111045549,660,J & B Cars Ltd
http://statistics.data.gov.uk/id/local-authority/38,Oxfordshire County Council,Support at Home 65+ Other /Soc Isolation,5899,Social Care - Direct Payments,26/10/2021,3111057569,660,Redacted Personal Data
http://statistics.data.gov.uk/id/local-authority/38,Oxfordshire County Council,CORONER,5202,Use of Mortuary Services,12/10/2021,2200915923,660,Oxford University Hospitals NHS Tru
http://statistics.data.gov.uk/id/local-authority/38,Oxfordshire County Council,L&D CORE PROGRAMME,3100,Educational and Vocational Training,25/10/2021,2200920171,660,Premier Partnership
http://statistics.data.gov.uk/id/local-authority/38,Oxfordshire County Council,Food & Essential Supplies,4939,,19/10/2021,3111054882,660,River Learning Trust - WCP
http://statistics.data.gov.uk/id/local-authority/38,Oxfordshire County Council,Support at Home 65+ Physical Support,5689,,12/10/2021,3111050260,660.64,Golden Services Care Ltd
http://statistics.data.gov.uk/id/local-authority/38,Oxfordshire County Council,CONTRACT MANAGEMENT,4001,Uniform Business Rates,28/10/2021,3500079728,661,Cherwell District Council
http://statistics.data.gov.uk/id/local-authority/38,Oxfordshire County Council,LANDLORD & TENANT,4001,Uniform Business Rates,28/10/2021,3500079861,661,Vale of White Horse District Counci
http://statistics.data.gov.uk/id/local-authority/38,Oxfordshire County Council,Support at Home U65 MH OBC Contract,5689,,12/10/2021,3111050826,661.12,Oxford Private Care
http://statistics.data.gov.uk/id/local-authority/38,Oxfordshire County Council,Support at Home 65+ Physical Support,5689,,12/10/2021,3111050663,661.65,My Carer Ltd
http://statistics.data.gov.uk/id/local-authority/38,Oxfordshire County Council,Support at Home 65+ Physical Support,5899,Social Care - Direct Payments,26/10/2021,3111058137,661.84,Purple Conversation Com In Co (DP)
http://statistics.data.gov.uk/id/local-authority/38,Oxfordshire County Council,Support at Home 65+ Physical Support,5698,,12/10/2021,3111049466,662.03,Oxford Private Care
http://statistics.data.gov.uk/id/local-authority/38,Oxfordshire County Council,POST18 UASC DCSF FND,5785,Client Lodgings and Accommodation,27/10/2021,3111058611,662.47,KEY2 FUTURES LTD
http://statistics.data.gov.uk/id/local-authority/38,Oxfordshire County Council,Support at Home 65+ Physical Support,5689,,12/10/2021,3111050419,662.73,Greigcare Home Service
http://statistics.data.gov.uk/id/local-authority/38,Oxfordshire County Council,LIBRARY COLLECTIONS,4539,"Books, DVDs and CDs",22/10/2021,3111055702,662.76,ASKEWS & HOLTS LIBRARY SERVICES LTD
http://statistics.data.gov.uk/id/local-authority/38,Oxfordshire County Council,SEN TRANSPORT,4320,Pupil / Client Travel Reimbursement,25/10/2021,3111055994,663.12,Redacted Personal Data
http://statistics.data.gov.uk/id/local-authority/38,Oxfordshire County Council,Support at Home 65+ Physical Support,5698,,12/10/2021,3111048456,663.38,Day & Night Care Assistance
http://statistics.data.gov.uk/id/local-authority/38,Oxfordshire County Council,Support at Home U65 Learning Disability,5690,,12/10/2021,3111049151,663.4,Turnstyle
http://statistics.data.gov.uk/id/local-authority/38,Oxfordshire County Council,Support at Home 65+ Physical Support,5689,,12/10/2021,3111049199,663.53,Bicester PA and Care LLP
http://statistics.data.gov.uk/id/local-authority/38,Oxfordshire County Council,Support at Home 65+ Physical Support,5689,,12/10/2021,3111051108,663.66,Prestige Nursing Ltd
http://statistics.data.gov.uk/id/local-authority/38,Oxfordshire County Council,GOVERNANCE,7003,"Courses, Classes, Workshops and Clubs",18/10/2021,3111053525,663.75,Redacted Personal Data
http://statistics.data.gov.uk/id/local-authority/38,Oxfordshire County Council,Support at Home U65 Learning Disability,5688,,12/10/2021,3111046195,663.93,ADVANCE HOUSING & SUPPORT LTD
http://statistics.data.gov.uk/id/local-authority/38,Oxfordshire County Council,Support at Home U65 Learning Disability,5688,,12/10/2021,3111046196,663.93,ADVANCE HOUSING & SUPPORT LTD
http://statistics.data.gov.uk/id/local-authority/38,Oxfordshire County Council,Support at Home 65+ Learning Disability,5688,,12/10/2021,3111046199,663.93,ADVANCE HOUSING & SUPPORT LTD
http://statistics.data.gov.uk/id/local-authority/38,Oxfordshire County Council,Support at Home 65+ Learning Disability,5688,,12/10/2021,3111046447,663.93,Mencap Contracts
http://statistics.data.gov.uk/id/local-authority/38,Oxfordshire County Council,Support at Home U65 Learning Disability,5688,,12/10/2021,3111046469,663.93,Mencap Contracts
http://statistics.data.gov.uk/id/local-authority/38,Oxfordshire County Council,Support at Home U65 Learning Disability,5688,,12/10/2021,3111047923,663.93,The Brandon Trust
http://statistics.data.gov.uk/id/local-authority/38,Oxfordshire County Council,Support at Home 65+ Physical Support,5693,,06/10/2021,3111044800,664.23,SureCare Oxfordshire
http://statistics.data.gov.uk/id/local-authority/38,Oxfordshire County Council,Support at Home U65 Other /Soc Isolation,5690,,12/10/2021,3111049022,664.29,Turnstyle
http://statistics.data.gov.uk/id/local-authority/38,Oxfordshire County Council,Support at Home 65+ Physical Support,5698,,12/10/2021,3111048211,664.53,Bridges Home Care Ltd
http://statistics.data.gov.uk/id/local-authority/38,Oxfordshire County Council,Support at Home 65+ Memory & Cognition,5689,,12/10/2021,3111050028,664.81,Casa Care Ltd
http://statistics.data.gov.uk/id/local-authority/38,Oxfordshire County Council,ICT Operations & Maintenance,5039,ICT Services,14/10/2021,2200917004,665,INSIGHT DIRECT (UK) LIMITED
http://statistics.data.gov.uk/id/local-authority/38,Oxfordshire County Council,DISABILITIES TEAM-N,5227,Other Transport Arrangements,07/10/2021,3111045056,665,Oxon Transport Services Ltd
http://statistics.data.gov.uk/id/local-authority/38,Oxfordshire County Council,POST 16 SEN,4330,Transport to School Activities,28/10/2021,3111058904,665,Oxon Transport Services Ltd
http://statistics.data.gov.uk/id/local-authority/38,Oxfordshire County Council,SEN TRANSPORT,5227,Other Transport Arrangements,08/10/2021,3111045321,665,Town Cars
http://statistics.data.gov.uk/id/local-authority/38,Oxfordshire County Council,Support at Home 65+ Physical Support,5693,,20/10/2021,3111054526,665.56,GET CARE LIMITED
http://statistics.data.gov.uk/id/local-authority/38,Oxfordshire County Council,Support at Home 65+ Physical Support,5693,,20/10/2021,3111054527,665.56,GET CARE LIMITED
http://statistics.data.gov.uk/id/local-authority/38,Oxfordshire County Council,Support at Home 65+ Physical Support,5696,,28/10/2021,3111058692,665.57,Orders of St John Care Trust
http://statistics.data.gov.uk/id/local-authority/38,Oxfordshire County Council,Support at Home 65+ Physical Support,5698,,12/10/2021,3111048143,665.72,Bridges Home Care Ltd
http://statistics.data.gov.uk/id/local-authority/38,Oxfordshire County Council,Support at Home 65+ Physical Support,5698,,12/10/2021,3111048115,666.12,Bridges Home Care Ltd
http://statistics.data.gov.uk/id/local-authority/38,Oxfordshire County Council,Support at Home 65+ Physical Support,5698,,12/10/2021,3111048192,666.12,Bridges Home Care Ltd
http://statistics.data.gov.uk/id/local-authority/38,Oxfordshire County Council,Support at Home 65+ Physical Support,5698,,12/10/2021,3111048222,666.12,Bridges Home Care Ltd
http://statistics.data.gov.uk/id/local-authority/38,Oxfordshire County Council,FOSTERING MAIN,5548,B*Fostering - Special Rates & Plus Amou,26/10/2021,3111056335,666.29,Redacted Personal Data
http://statistics.data.gov.uk/id/local-authority/38,Oxfordshire County Council,Contingency Home Care,5689,,12/10/2021,3111050916,666.41,Oxford University Hospitals NHS FT
http://statistics.data.gov.uk/id/local-authority/38,Oxfordshire County Council,OPERATIONS,4685,Clothing and Uniforms,28/10/2021,2200920788,666.5,B & A TEXTILES LIMITED
http://statistics.data.gov.uk/id/local-authority/38,Oxfordshire County Council,Support at Home 65+ Physical Support,5698,,12/10/2021,3111048267,666.52,Bridges Home Care Ltd
http://statistics.data.gov.uk/id/local-authority/38,Oxfordshire County Council,Support at Home 65+ Physical Support,5689,,12/10/2021,3111051256,666.96,AVR (Oxon) Ltd
http://statistics.data.gov.uk/id/local-authority/38,Oxfordshire County Council,Early Years SEN Funding,5537,Payments to Other Establishments,15/10/2021,3111053288,667,Dunmore Pre-School Association
http://statistics.data.gov.uk/id/local-authority/38,Oxfordshire County Council,Early Years SEN Funding,5537,Payments to Other Establishments,15/10/2021,3111053290,667,Dunmore Pre-School Association
http://statistics.data.gov.uk/id/local-authority/38,Oxfordshire County Council,Early Years SEN Funding,5537,Payments to Other Establishments,22/10/2021,3111055691,667,Dunmore Pre-School Association
http://statistics.data.gov.uk/id/local-authority/38,Oxfordshire County Council,SEN TRANSPORT,5227,Other Transport Arrangements,18/10/2021,3111053428,667.08,24/7 LTD
http://statistics.data.gov.uk/id/local-authority/38,Oxfordshire County Council,Support at Home 65+ Mental Health,5899,Social Care - Direct Payments,26/10/2021,3111058406,667.08,Purple Conversation Com In Co (DP)
http://statistics.data.gov.uk/id/local-authority/38,Oxfordshire County Council,Support at Home 65+ Physical Support,5689,,12/10/2021,3111048894,667.7,Allied Health-Services Limited
http://statistics.data.gov.uk/id/local-authority/38,Oxfordshire County Council,Support at Home 65+ Memory & Cognition,5689,,12/10/2021,3111050474,668.48,Home Helpers Care Ltd
http://statistics.data.gov.uk/id/local-authority/38,Oxfordshire County Council,Support at Home 65+ Physical Support,5698,,12/10/2021,3111048137,668.9,Bridges Home Care Ltd
http://statistics.data.gov.uk/id/local-authority/38,Oxfordshire County Council,Support at Home U65 Physical Support,5698,,12/10/2021,3111048821,668.91,Day & Night Care Assistance
http://statistics.data.gov.uk/id/local-authority/38,Oxfordshire County Council,VACANT PROPERTY,4000,Council Tax,29/10/2021,3500079882,669,Oxford City Council
http://statistics.data.gov.uk/id/local-authority/38,Oxfordshire County Council,Support at Home 65+ Mental Health,5696,,28/10/2021,3111058706,669.5,Orders of St John Care Trust
http://statistics.data.gov.uk/id/local-authority/38,Oxfordshire County Council,Support at Home U65 Physical Support,5689,,12/10/2021,3111050274,669.72,Golden Services Care Ltd
http://statistics.data.gov.uk/id/local-authority/38,Oxfordshire County Council,Support at Home U65 Physical Support,5899,Social Care - Direct Payments,26/10/2021,3111058002,669.8,Purple Conversation Com In Co (DP)
http://statistics.data.gov.uk/id/local-authority/38,Oxfordshire County Council,Early Years SEN Funding,5537,Payments to Other Establishments,01/10/2021,3111043378,669.9,"St Pauls Nursery, Somerville"
http://statistics.data.gov.uk/id/local-authority/38,Oxfordshire County Council,Swindon Adoption Support Fund,4859,Medical and Counselling Fees,21/10/2021,2200919592,670,2PIP Theraputic Services
http://statistics.data.gov.uk/id/local-authority/38,Oxfordshire County Council,RBWM Adoption Support Fund,4861,Hired and Contracted Services,01/10/2021,2200912342,670,Hands on Play Therapy
http://statistics.data.gov.uk/id/local-authority/38,Oxfordshire County Council,LIBRARY COLLECTIONS,4539,"Books, DVDs and CDs",19/10/2021,3111054336,670.11,ASKEWS & HOLTS LIBRARY SERVICES LTD
http://statistics.data.gov.uk/id/local-authority/38,Oxfordshire County Council,Support at Home U65 Memory & Cognition,5899,Social Care - Direct Payments,26/10/2021,3111058433,670.28,Purple Conversation Com In Co (DP)
http://statistics.data.gov.uk/id/local-authority/38,Oxfordshire County Council,Care Homes - Over 65 Physical Sypport,5686,,12/10/2021,3111052215,670.29,THE SOCIETY OF ST JAMES
http://statistics.data.gov.uk/id/local-authority/38,Oxfordshire County Council,Support at Home U65 Learning Disability,5899,Social Care - Direct Payments,26/10/2021,3111058443,670.48,Purple Conversation Com In Co (DP)
http://statistics.data.gov.uk/id/local-authority/38,Oxfordshire County Council,Support at Home U65 Physical Support,5689,,12/10/2021,3111050602,670.5,Home Helpers Care Ltd
http://statistics.data.gov.uk/id/local-authority/38,Oxfordshire County Council,Support at Home 65+ Physical Support,5689,,12/10/2021,3111050737,670.53,Oasis Private Care Ltd
http://statistics.data.gov.uk/id/local-authority/38,Oxfordshire County Council,Support at Home U65 Learning Disability,5690,,12/10/2021,3111049321,670.93,Style Acre
http://statistics.data.gov.uk/id/local-authority/38,Oxfordshire County Council,COVID-19 INFECTION CONTROL 4,5688,,08/10/2021,3111045609,671.39,Star Projections
http://statistics.data.gov.uk/id/local-authority/38,Oxfordshire County Council,SEN TRANSPORT,5227,Other Transport Arrangements,19/10/2021,3111054159,672,1St Taxis
http://statistics.data.gov.uk/id/local-authority/38,Oxfordshire County Council,CHC Fast Track - Sup at Homes - Over 65,5691,,01/10/2021,3111043447,672,Caremark (West Oxfordshire & Cherwe
http://statistics.data.gov.uk/id/local-authority/38,Oxfordshire County Council,LEGAL SERVICES,5251,Legal Costs,29/10/2021,2200921001,672,Cherwell District Council
http://statistics.data.gov.uk/id/local-authority/38,Oxfordshire County Council,SEN TRANSPORT,5227,Other Transport Arrangements,05/10/2021,3111043887,672,Crown Cabs Travel Ltd
http://statistics.data.gov.uk/id/local-authority/38,Oxfordshire County Council,Support at Home U65 Mental Health,5693,,29/10/2021,3111059305,672,JMC Care Solutions Limited
http://statistics.data.gov.uk/id/local-authority/38,Oxfordshire County Council,Support at Home 65+ Physical Support,5698,,12/10/2021,3111049820,672,Oxfordshire Crossroads
http://statistics.data.gov.uk/id/local-authority/38,Oxfordshire County Council,Support at Home U65 Mental Health,5693,,22/10/2021,3111055628,672,SIETE LTD
http://statistics.data.gov.uk/id/local-authority/38,Oxfordshire County Council,Support at Home 65+ Physical Support,5689,,12/10/2021,3111051117,672.34,Prestige Nursing Ltd
http://statistics.data.gov.uk/id/local-authority/38,Oxfordshire County Council,SM DISABILITIES,5554,Childrens' Social Care - Direct Payments,26/10/2021,3111057143,672.47,The Disability Resource Centre
http://statistics.data.gov.uk/id/local-authority/38,Oxfordshire County Council,TRADING STANDARDS,4861,Hired and Contracted Services,19/10/2021,2200918009,673,GEMS (SW) LIMITED
http://statistics.data.gov.uk/id/local-authority/38,Oxfordshire County Council,Support at Home U65 Mental Health,5698,,12/10/2021,3111048319,673.06,Day & Night Care Assistance
http://statistics.data.gov.uk/id/local-authority/38,Oxfordshire County Council,Support at Home U65 Learning Disability,5689,,12/10/2021,3111050817,673.4,Oxford Private Care
http://statistics.data.gov.uk/id/local-authority/38,Oxfordshire County Council,Support at Home 65+ Sensory Support,5693,,13/10/2021,3111052564,673.68,We-Care-Recruitment Ltd
http://statistics.data.gov.uk/id/local-authority/38,Oxfordshire County Council,Support at Home U65 Memory & Cognition,5899,Social Care - Direct Payments,26/10/2021,3111058156,674.4,Purple Conversation Com In Co (DP)
http://statistics.data.gov.uk/id/local-authority/38,Oxfordshire County Council,Urgent Response,5689,,12/10/2021,3111050148,674.41,Day and Nightcare Assistance
http://statistics.data.gov.uk/id/local-authority/38,Oxfordshire County Council,Support at Home 65+ Physical Support,5689,,12/10/2021,3111051085,674.56,Premier Personal Care
http://statistics.data.gov.uk/id/local-authority/38,Oxfordshire County Council,TRAFF SIGNALS MTCE,4531,Materials,25/10/2021,2200920222,674.67,Telent Technology Services Limited
http://statistics.data.gov.uk/id/local-authority/38,Oxfordshire County Council,Support at Home 65+ Physical Support,5693,,27/10/2021,3111058490,674.73,CaringPlus Healthcare Services Ltd
http://statistics.data.gov.uk/id/local-authority/38,Oxfordshire County Council,Support at Home U65 Physical Support,5899,Social Care - Direct Payments,26/10/2021,3111058336,674.96,Purple Conversation Com In Co (DP)
http://statistics.data.gov.uk/id/local-authority/38,Oxfordshire County Council,Support at Home 65+ Physical Support,5689,,12/10/2021,3111049638,674.99,Care Outlook Ltd
http://statistics.data.gov.uk/id/local-authority/38,Oxfordshire County Council,LEGAL SERVICES,5251,Legal Costs,19/10/2021,2200918244,675,A Leong
http://statistics.data.gov.uk/id/local-authority/38,Oxfordshire County Council,LEGAL SERVICES,5251,Legal Costs,28/10/2021,2200920808,675,A Leong
http://statistics.data.gov.uk/id/local-authority/38,Oxfordshire County Council,LEGAL SERVICES,5251,Legal Costs,12/10/2021,2200915958,675,James Dove
http://statistics.data.gov.uk/id/local-authority/38,Oxfordshire County Council,OSCB,4940,Other Services,07/10/2021,2200914089,675,Jan Horwath
http://statistics.data.gov.uk/id/local-authority/38,Oxfordshire County Council,LEGAL SERVICES,5251,Legal Costs,22/10/2021,2200919886,675,June Rodgers
http://statistics.data.gov.uk/id/local-authority/38,Oxfordshire County Council,FLEET OPERATIONS,4270,HTM / Other Vehicle - Hire Charges,05/10/2021,2200913251,675,London Hire
http://statistics.data.gov.uk/id/local-authority/38,Oxfordshire County Council,LEGAL SERVICES,5251,Legal Costs,28/10/2021,2200920807,675,Miss Cecilia Barrett
http://statistics.data.gov.uk/id/local-authority/38,Oxfordshire County Council,LEGAL SERVICES,5251,Legal Costs,14/10/2021,2200916761,675,Miss Sara Granshaw
http://statistics.data.gov.uk/id/local-authority/38,Oxfordshire County Council,LEGAL SERVICES,5251,Legal Costs,14/10/2021,2200916749,675,Mr J Turner
http://statistics.data.gov.uk/id/local-authority/38,Oxfordshire County Council,LEGAL SERVICES,5251,Legal Costs,28/10/2021,2200920819,675,Ms K M Styles
http://statistics.data.gov.uk/id/local-authority/38,Oxfordshire County Council,Food & Essential Supplies,4939,,19/10/2021,3111054734,675,Pegasus Primary School
http://statistics.data.gov.uk/id/local-authority/38,Oxfordshire County Council,LEGAL SERVICES,5251,Legal Costs,15/10/2021,2200917118,675,Simon Miller
http://statistics.data.gov.uk/id/local-authority/38,Oxfordshire County Council,ELEC NPR ST LTG,5526,Payments to Private Contractors,13/10/2021,2200916008,675.29,Bouygues E&S Infrastructure UK Ltd
http://statistics.data.gov.uk/id/local-authority/38,Oxfordshire County Council,Support at Home 65+ Physical Support,5689,,12/10/2021,3111050350,675.48,Greigcare Home Service
http://statistics.data.gov.uk/id/local-authority/38,Oxfordshire County Council,Support at Home U65 Physical Support,5899,Social Care - Direct Payments,26/10/2021,3111057279,676,Redacted Personal Data
http://statistics.data.gov.uk/id/local-authority/38,Oxfordshire County Council,Continuing Care - Support at Home - 65+,5691,,15/10/2021,3111053349,676.39,Paterson Recruitment
http://statistics.data.gov.uk/id/local-authority/38,Oxfordshire County Council,Support at Home U65 Learning Disability,5899,Social Care - Direct Payments,26/10/2021,3111057902,676.6,Purple Conversation Com In Co (DP)
http://statistics.data.gov.uk/id/local-authority/38,Oxfordshire County Council,Support at Home 65+ Physical Support,5689,,12/10/2021,3111050948,677.21,Pechiv Ltd
http://statistics.data.gov.uk/id/local-authority/38,Oxfordshire County Council,Support at Home U65 Memory & Cognition,5899,Social Care - Direct Payments,26/10/2021,3111058151,677.28,Purple Conversation Com In Co (DP)
http://statistics.data.gov.uk/id/local-authority/38,Oxfordshire County Council,Support at Home 65+ Physical Support,5686,,12/10/2021,3111046366,678,Orders of St John
http://statistics.data.gov.uk/id/local-authority/38,Oxfordshire County Council,Support at Home U65 Learning Disability,5690,,12/10/2021,3111049060,678.24,Turnstyle
